Workbook

Sheet Section A
A1: Respondent ID | B1: How many (completed) Masters students have you supervised? | C1: How many (completed) PhD Students have you supervised? | D1: How many South African Department of Higher Education and Training (DOHET) Local (South African but not ISI/IBSS) accredited journal articles (in total) have you had published (including those accepted for publication) | E1: How many ISI/IBSS indexed (or internationally accredited) journal articles (in total) have you had published (including those accepted for publication) | F1: How many of your published Department of Higher Education and Training accredited Local or ISI/IBSS accredited journal articles (including those accepted for publication) have been co-authored with another researcher or other researchers? | G1: How many times has your work been published (including those accepted for publication) in peer reviewed conference proceedings? | H1: How many presentations have you made at peer reviewed Conferences? | I1: How many academic research books (not text/prescribed) have you had published? | J1: How many textbooks (educational/prescribed) have you had published? | K1: How many academic research books (not text/prescribed books) have you contributed book chapters to? | L1: How many textbooks (educational/prescribed) have you contributed book chapters to? | M1: RPAve | N1: I generally prefer Qualitative Methods | O1: I generally prefer Quantitative methods | P1: I generally prefer mixed methods | Q1: RISK1 | R1: CA1 | S1: INNO1 | T1: RISK2 | U1: AUTO1 | V1: CA2 | W1: INNO2 | X1: PRO1 | Y1: PRO2 | Z1: CA3 | AA1: RISK3 | AB1: PRO3 | AC1: INNO3 | AD1: AUTO2 | AE1: AUTO3 | AF1: RISKTOT | AG1: CATOT | AH1: INNOTOT | AI1: PROTOT | AJ1: AUTOTOT | AK1: Cfix Most Likeley | AL1: Csearch Most Likely | AM1: UGC Most Likely | AN1: IC Most Likely | AO1: Cvote Most Likely | AP1: Gamification Most Likely | AQ1: What is your age? | AR1: Gender | AS1: South African | AT1: UK | AU1: African | AV1: American | AW1: European | AX1: Other | AY1: English | AZ1: Afrikaans | BA1: Other SA Language (Zulu, Xhosa, etc.) | BB1: Other | BC1: How many years of full-time work experience have you had? | BD1: How many years have you been a researcher? | BE1: How long have you worked for the University of the Witwatersrand as a researcher? | BF1: Have you ever worked for a multinational corporation | BG1: Do you belong to any professional associations? | BH1: . How many years of formal education do you have? | BI1: Mr/Mrs | BJ1: Dr. | BK1: Prof. | BL1: Associate/Adjunct Prof. | BM1: At present, how many people report directly to you in the chain of command? | BN1: Are you married? | BO1: How many children do you support in your family? | BP1: Faculty of Commerce, Law & Management | BQ1: Faculty of Engineering & The Built Environment | BR1: Faculty of Health Sciences | BS1: Faculty of Humanities | BT1: Faculty of Science | BU1: GENERAL FIELD | BV1: Research Field | BW1: Teaching Field | BX1: Most of the satisfaction I get from my job comes primarily from teaching | BY1: Most of the satisfaction I get from my job comes primarily from administrative work | BZ1: Most of the satisfaction I get from my job comes primarily from conducting academic research | CA1: Crowdfunding | CB1: Inducement Prize Contest | CC1: Crowd Fixing | CD1: Crowd Searching | CE1: UGC | CF1: Implicit CS | CG1: Crowdvoting | CH1: Gamification | CI1: SGRPROPAVE
A2: 1 | B2: 8 | C2: 2 | D2: 15 | E2: 12 | F2: 12 | G2: 42 | H2: 8 | I2: 0 | J2: 0 | K2: 0 | L2: 0 | M2: =AVERAGE(C2:L2) -> 9.1 | N2: 0 | O2: 0 | P2: 1 | Q2: 4 | R2: 5 | S2: 5 | T2: 5 | U2: 5 | V2: 4 | W2: 1 | X2: 4 | Y2: 5 | Z2: 5 | AA2: 5 | AB2: 5 | AC2: 2 | AD2: 5 | AE2: 5 | AF2: 4.666666667 | AG2: 4.666666667 | AH2: 2.666666667 | AI2: 4.666666667 | AJ2: 5 | AK2: 0 | AL2: 0 | AM2: 0 | AN2: 0 | AO2: 0 | AP2: 0 | AQ2: 57 | AR2: 1 | AS2: 0 | AT2: 0 | AU2: 1 | AV2: 0 | AW2: 0 | AX2: 0 | AY2: 1 | AZ2: 0 | BA2: 0 | BB2: 1 | BC2: 22 | BD2: 22 | BE2: 14 | BF2: 0 | BG2: 1 | BH2: 12 | BI2: 0 | BJ2: 0 | BK2: 0 | BL2: 1 | BM2: 0 | BN2: 1 | BO2: 2 | BP2: 0 | BQ2: 1 | BR2: 0 | BS2: 0 | BT2: 0 | BU2: Engineering | BV2: Mechatronics | BW2: Mechatronics | BX2: 5 | BY2: 3 | BZ2: 5 | CA2: 3 | CB2: 2 | CC2: 5 | CD2: 3 | CE2: 3 | CF2: 4 | CG2: 3 | CH2: 5 | CI2: =AVERAGE(CA2:CH2) -> 3.5
A3: 2 | B3: 1 | C3: 0 | D3: 0 | E3: 7 | F3: 7 | G3: 0 | H3: 10 | I3: 0 | J3: 0 | K3: 2 | L3: 0 | M3: 2.6 | N3: 1 | O3: 0 | P3: 0 | Q3: 4 | R3: 4 | S3: 2 | T3: 2 | U3: 2 | V3: 2 | W3: 2 | X3: 2 | Y3: 4 | Z3: 2 | AA3: 2 | AB3: 2 | AC3: 2 | AD3: 3 | AE3: 2 | AF3: 2.666666667 | AG3: 2.666666667 | AH3: 2 | AI3: 2.666666667 | AJ3: 2.333333333 | AK3: 0 | AL3: 0 | AM3: 0 | AN3: 0 | AO3: 0 | AP3: 0 | AQ3: 30 | AR3: 1 | AS3: 1 | AT3: 0 | AU3: 0 | AV3: 0 | AW3: 0 | AX3: 0 | AY3: 1 | AZ3: 0 | BA3: 0 | BB3: 0 | BC3: 5 | BD3: 5 | BE3: 5 | BF3: 0 | BG3: 1 | BH3: 9 | BI3: 0 | BJ3: 1 | BK3: 0 | BL3: 0 | BM3: 0 | BN3: 1 | BO3: 0 | BP3: 0 | BQ3: 0 | BR3: 0 | BS3: 0 | BT3: 1 | BU3: Geology | BV3: Sedimentology | BW3: Sedimentology | BX3: 3 | BY3: 1 | BZ3: 5 | CA3: 1 | CB3: 3 | CC3: 3 | CD3: 2 | CE3: 4 | CF3: 4 | CG3: 4 | CH3: 3 | CI3: 3
A4: 3 | B4: 60 | C4: 0 | D4: 4 | E4: 0 | F4: 4 | G4: 0 | H4: 15 | I4: 0 | J4: 0 | K4: 2 | L4: 0 | M4: 2.5 | N4: 1 | O4: 0 | P4: 0 | Q4: 4 | R4: 1 | S4: 3 | T4: 4 | U4: 4 | V4: 1 | W4: 2 | X4: 3 | Y4: 4 | Z4: 1 | AA4: 4 | AB4: 3 | AC4: 2 | AD4: 1 | AE4: 4 | AF4: 4 | AG4: 1 | AH4: 2.333333333 | AI4: 3.333333333 | AJ4: 3 | AK4: 0 | AL4: 0 | AM4: 0 | AN4: 0 | AO4: 1 | AP4: 0 | AQ4: 55 | AR4: 1 | AS4: 0 | AT4: 0 | AU4: 1 | AV4: 0 | AW4: 0 | AX4: 0 | AY4: 1 | AZ4: 0 | BA4: 0 | BB4: 0 | BC4: 25 | BD4: 15 | BE4: 15 | BF4: 0 | BG4: 1 | BH4: 10 | BI4: 0 | BJ4: 1 | BK4: 0 | BL4: 0 | BM4: 0 | BN4: 1 | BO4: 3 | BP4: 0 | BQ4: 1 | BR4: 0 | BS4: 0 | BT4: 0 | BU4: Architecture | BV4: Development and Encironmental Planning | BW4: Development and Environmental Planning | BX4: 5 | BY4: 1 | BZ4: 2 | CA4: 3 | CB4: 3 | CC4: 3 | CD4: 2 | CE4: 2 | CF4: 2 | CG4: 2 | CH4: 3 | CI4: 2.5
A5: 4 | B5: 1 | C5: 0 | D5: 0 | E5: 4 | F5: 4 | G5: 5 | H5: 11 | I5: 0 | J5: 0 | K5: 0 | L5: 0 | M5: 2.4 | N5: 0 | O5: 1 | P5: 0 | Q5: 5 | R5: 3 | S5: 3 | T5: 4 | U5: 4 | V5: 1 | W5: 4 | X5: 3 | Y5: 4 | Z5: 4 | AA5: 3 | AB5: 3 | AC5: 4 | AD5: 4 | AE5: 4 | AF5: 4 | AG5: 2.666666667 | AH5: 3.666666667 | AI5: 3.333333333 | AJ5: 4 | AK5: 0 | AL5: 0 | AM5: 0 | AN5: 0 | AO5: 0 | AP5: 1 | AQ5: 37 | AR5: 0 | AS5: 1 | AT5: 0 | AU5: 0 | AV5: 0 | AW5: 0 | AX5: 0 | AY5: 1 | AZ5: 0 | BA5: 0 | BB5: 0 | BC5: 14 | BD5: 7 | BE5: 14 | BF5: 0 | BG5: 0 | BH5: 12 | BI5: 0 | BJ5: 1 | BK5: 0 | BL5: 0 | BM5: 0 | BN5: 1 | BO5: 1 | BP5: 0 | BQ5: 0 | BR5: 0 | BS5: 0 | BT5: 1 | BU5: Biology | BV5: Plant science | BW5: cell biology and plant science | BX5: 4 | BY5: 1 | BZ5: 4 | CA5: 2 | CB5: 5 | CC5: 2 | CD5: 2 | CE5: 4 | CF5: 2 | CG5: 2 | CH5: 1 | CI5: 2.5
A6: 5 | B6: 12 | C6: 10 | D6: 10 | E6: 60 | F6: 50 | G6: 13 | H6: 100 | I6: 0 | J6: 0 | K6: 1 | L6: 2 | M6: 24.6 | N6: 0 | O6: 1 | P6: 0 | Q6: 3 | R6: 4 | S6: 3 | T6: 5 | U6: 5 | V6: 2 | W6: 5 | X6: 5 | Y6: 5 | Z6: 4 | AA6: 4 | AB6: 3 | AC6: 2 | AD6: 2 | AE6: 3 | AF6: 4 | AG6: 3.333333333 | AH6: 3.333333333 | AI6: 4.333333333 | AJ6: 3.333333333 | AK6: 0 | AL6: 1 | AM6: 0 | AN6: 0 | AO6: 0 | AP6: 0 | AQ6: 55 | AR6: 1 | AS6: 0 | AT6: 1 | AU6: 0 | AV6: 0 | AW6: 0 | AX6: 0 | AY6: 1 | AZ6: 0 | BA6: 0 | BB6: 0 | BC6: 35 | BD6: 25 | BE6: 25 | BF6: 0 | BG6: 1 | BH6: 7 | BI6: 0 | BJ6: 0 | BK6: 0 | BL6: 1 | BM6: 12 | BN6: 0 | BO6: 3 | BP6: 0 | BQ6: 1 | BR6: 0 | BS6: 0 | BT6: 1 | BU6: Biology | BV6: Entomology | BW6: Entomology | BX6: 5 | BY6: 1 | BZ6: 5 | CA6: 2 | CB6: 3 | CC6: 4 | CD6: 1 | CE6: 3 | CF6: 4 | CG6: 3 | CH6: 2 | CI6: 2.75
A7: 6 | B7: 20 | C7: 0 | D7: 6 | E7: 2 | F7: 2 | G7: 10 | H7: 20 | I7: 0 | J7: 0 | K7: 0 | L7: 0 | M7: 4 | N7: 0 | O7: 1 | P7: 0 | Q7: 4 | R7: 4 | S7: 4 | T7: 3 | U7: 4 | V7: 3 | W7: 4 | X7: 3 | Y7: 4 | Z7: 3 | AA7: 4 | AB7: 4 | AC7: 3 | AD7: 4 | AE7: 2 | AF7: 3.666666667 | AG7: 3.333333333 | AH7: 3.666666667 | AI7: 3.666666667 | AJ7: 3.333333333 | AK7: 0 | AL7: 0 | AM7: 0 | AN7: 0 | AO7: 0 | AP7: 0 | AQ7: 47 | AR7: 1 | AS7: 1 | AT7: 0 | AU7: 0 | AV7: 0 | AW7: 0 | AX7: 0 | AY7: 1 | AZ7: 0 | BA7: 0 | BB7: 0 | BC7: 20 | BD7: 20 | BE7: 10 | BF7: 0 | BG7: 1 | BH7: 19 | BI7: 0 | BJ7: 1 | BK7: 0 | BL7: 0 | BM7: 0 | BN7: 0 | BO7: 0 | BP7: 0 | BQ7: 0 | BR7: 0 | BS7: 0 | BT7: 0 | BU7: Engineering | BV7: Operations Research vehicle routing | BW7: operations research | BX7: 4 | BY7: 1 | BZ7: 5 | CA7: 5 | CB7: 2 | CC7: 2 | CD7: 2 | CE7: 4 | CF7: 4 | CG7: 3 | CH7: 1 | CI7: 2.875
A8: 7 | B8: 8 | C8: 1 | D8: 0 | E8: 15 | F8: 15 | G8: 2 | H8: 22 | I8: 0 | J8: 0 | K8: 0 | L8: 0 | M8: 5.5 | N8: 0 | O8: 1 | P8: 0 | Q8: 5 | R8: 4 | S8: 3 | T8: 3 | U8: 5 | V8: 4 | W8: 5 | X8: 5 | Y8: 5 | Z8: 4 | AA8: 2 | AB8: 2 | AC8: 2 | AD8: 3 | AE8: 3 | AF8: 3.333333333 | AG8: 4 | AH8: 3.333333333 | AI8: 4 | AJ8: 3.666666667 | AK8: 0 | AL8: 0 | AM8: 0 | AN8: 0 | AO8: 0 | AP8: 0 | AQ8: 40 | AR8: 0 | AS8: 0 | AT8: 0 | AU8: 0 | AV8: 0 | AW8: 1 | AX8: 0 | AY8: 0 | AZ8: 0 | BA8: 0 | BB8: 1 | BC8: 4 | BD8: 12 | BE8: 6 | BF8: 0 | BG8: 1 | BH8: 21 | BI8: 0 | BJ8: 1 | BK8: 0 | BL8: 0 | BM8: 0 | BN8: 0 | BO8: 0 | BP8: 0 | BQ8: 0 | BR8: 0 | BS8: 0 | BT8: 1 | BU8: Biology | BV8: Animal Ecology | BW8: Ecology | BX8: 1 | BY8: 1 | BZ8: 5 | CA8: 3 | CB8: 5 | CC8: 5 | CD8: 3 | CE8: 3 | CF8: 5 | CG8: 5 | CH8: 3 | CI8: 4
A9: 8 | B9: 11 | C9: 0 | D9: 1 | E9: 1 | F9: 1 | G9: 4 | H9: 2 | I9: 0 | J9: 0 | K9: 0 | L9: 0 | M9: 0.9 | N9: 1 | O9: 0 | P9: 0 | Q9: 4 | R9: 4 | S9: 2 | T9: 2 | U9: 3 | V9: 2 | W9: 2 | X9: 2 | Y9: 4 | Z9: 4 | AA9: 2 | AB9: 4 | AC9: 1 | AD9: 5 | AE9: 2 | AF9: 2.666666667 | AG9: 3.333333333 | AH9: 1.666666667 | AI9: 3.333333333 | AJ9: 3.333333333 | AK9: 0 | AL9: 0 | AM9: 0 | AN9: 1 | AO9: 0 | AP9: 0 | AQ9: 50 | AR9: 1 | AS9: 0 | AT9: 0 | AU9: 0 | AV9: 0 | AW9: 1 | AX9: 0 | AY9: 1 | AZ9: 0 | BA9: 0 | BB9: 0 | BC9: 18 | BD9: 6 | BE9: 2 | BF9: 0 | BG9: 1 | BH9: 15 | BI9: 0 | BJ9: 1 | BK9: 0 | BL9: 0 | BM9: 0 | BN9: 1 | BO9: 2 | BP9: 1 | BQ9: 0 | BR9: 0 | BS9: 0 | BT9: 0 | BU9: Commerce | BV9: Management | BW9: Management | BX9: 4 | BY9: 3 | BZ9: 5 | CA9: 0 | CB9: 0 | CC9: 0 | CD9: 0 | CE9: 0 | CF9: 0 | CG9: 0 | CH9: 0 | CI9: 0
A10: 9 | B10: 5 | C10: 1 | D10: 0 | E10: 20 | F10: 20 | G10: 19 | H10: 33 | I10: 0 | J10: 2 | K10: 1 | L10: 0 | M10: 9.6 | N10: 1 | O10: 0 | P10: 0 | Q10: 4 | R10: 4 | S10: 3 | T10: 4 | U10: 4 | V10: 2 | W10: 4 | X10: 3 | Y10: 4 | Z10: 4 | AA10: 2 | AB10: 3 | AC10: 2 | AD10: 4 | AE10: 3 | AF10: 3.333333333 | AG10: 3.333333333 | AH10: 3 | AI10: 3.333333333 | AJ10: 3.666666667 | AK10: 0 | AL10: 0 | AM10: 0 | AN10: 0 | AO10: 0 | AP10: 0 | AQ10: 58 | AR10: 1 | AS10: 1 | AT10: 0 | AU10: 0 | AV10: 0 | AW10: 0 | AX10: 0 | AY10: 1 | AZ10: 0 | BA10: 0 | BB10: 0 | BC10: 28 | BD10: 28 | BE10: 28 | BF10: 0 | BG10: 0 | BH10: 5 | BI10: 0 | BJ10: 0 | BK10: 0 | BL10: 1 | BM10: 3 | BN10: 0 | BO10: 0 | BP10: 0 | BQ10: 0 | BR10: 0 | BS10: 0 | BT10: 1 | BU10: Biology | BV10: Biology (Phycology) | BW10: Biology (Evolution, Phycology, protistology, hydrology, acquatic ecology, cell biology) | BX10: 3 | BY10: 3 | BZ10: 4 | CA10: 3 | CB10: 5 | CC10: 5 | CD10: 4 | CE10: 4 | CF10: 3 | CG10: 5 | CH10: 4 | CI10: 4.125
A11: 10 | B11: 0 | C11: 0 | D11: 1 | E11: 2 | F11: 0 | G11: 0 | H11: 10 | I11: 0 | J11: 0 | K11: 2 | L11: 0 | M11: 1.5 | N11: 1 | O11: 0 | P11: 0 | Q11: 3 | R11: 4 | S11: 2 | T11: 4 | U11: 3 | V11: 4 | W11: 4 | X11: 4 | Y11: 4 | Z11: 4 | AA11: 3 | AB11: 2 | AC11: 4 | AD11: 3 | AE11: 4 | AF11: 3.333333333 | AG11: 4 | AH11: 3.333333333 | AI11: 3.333333333 | AJ11: 3.333333333 | AK11: 1 | AL11: 0 | AM11: 0 | AN11: 0 | AO11: 0 | AP11: 0 | AQ11: 31 | AR11: 0 | AS11: 0 | AT11: 0 | AU11: 0 | AV11: 0 | AW11: 0 | AX11: 1 | AY11: 0 | AZ11: 0 | BA11: 0 | BB11: 1 | BC11: 6 | BD11: 3 | BE11: 2 | BF11: 0 | BG11: 1 | BH11: 11 | BI11: 1 | BJ11: 0 | BK11: 0 | BL11: 0 | BM11: 0 | BN11: 0 | BO11: 0 | BP11: 0 | BQ11: 0 | BR11: 0 | BS11: 1 | BT11: 0 | BU11: Literature & Languages | BV11: Italian Studies | BW11: Italian Studies | BX11: 3 | BY11: 1 | BZ11: 4 | CA11: 3 | CB11: 3 | CC11: 2 | CD11: 5 | CE11: 2 | CF11: 4 | CG11: 3 | CH11: 2 | CI11: 3
A12: 11 | B12: 0 | C12: 0 | D12: 0 | E12: 3 | F12: 0 | G12: 1 | H12: 5 | I12: 0 | J12: 0 | K12: 0 | L12: 0 | M12: 0.9 | N12: 1 | O12: 0 | P12: 0 | Q12: 3 | R12: 4 | S12: 2 | T12: 3 | U12: 2 | V12: 4 | W12: 4 | X12: 4 | Y12: 4 | Z12: 2 | AA12: 4 | AB12: 3 | AC12: 3 | AD12: 4 | AE12: 4 | AF12: 3.333333333 | AG12: 3.333333333 | AH12: 3 | AI12: 3.666666667 | AJ12: 3.333333333 | AK12: 0 | AL12: 0 | AM12: 0 | AN12: 0 | AO12: 0 | AP12: 0 | AQ12: 29 | AR12: 0 | AS12: 1 | AT12: 0 | AU12: 0 | AV12: 0 | AW12: 0 | AX12: 0 | AY12: 1 | AZ12: 0 | BA12: 0 | BB12: 0 | BC12: 3 | BD12: 7 | BE12: 4 | BF12: 0 | BG12: 0 | BH12: 8 | BI12: 1 | BJ12: 0 | BK12: 0 | BL12: 0 | BM12: 0 | BN12: 0 | BO12: 0 | BP12: 0 | BQ12: 0 | BR12: 0 | BS12: 1 | BT12: 0 | BU12: History | BV12: South African Rural History | BW12: 20th Cnetury European History and Global History | BX12: 2 | BY12: 1 | BZ12: 5 | CA12: 3 | CB12: 5 | CC12: 5 | CD12: 3 | CE12: 3 | CF12: 4 | CG12: 4 | CH12: 5 | CI12: 4
A13: 12 | B13: 0 | C13: 0 | D13: 0 | E13: 6 | F13: 0 | G13: 6 | H13: 0 | I13: 0 | J13: 0 | K13: 0 | L13: 0 | M13: 1.2 | N13: 1 | O13: 0 | P13: 0 | Q13: 5 | R13: 4 | S13: 2 | T13: 3 | U13: 4 | V13: 1 | W13: 5 | X13: 4 | Y13: 5 | Z13: 4 | AA13: 5 | AB13: 3 | AC13: 3 | AD13: 3 | AE13: 3 | AF13: 4.333333333 | AG13: 3 | AH13: 3.333333333 | AI13: 4 | AJ13: 3.333333333 | AK13: 0 | AL13: 0 | AM13: 0 | AN13: 0 | AO13: 0 | AP13: 0 | AQ13: 35 | AR13: 0 | AS13: 1 | AT13: 0 | AU13: 0 | AV13: 0 | AW13: 0 | AX13: 0 | AY13: 0 | AZ13: 1 | BA13: 0 | BB13: 0 | BC13: 1 | BD13: 6 | BE13: 1 | BF13: 0 | BG13: 1 | BH13: 9 | BI13: 0 | BJ13: 1 | BK13: 0 | BL13: 0 | BM13: 0 | BN13: 0 | BO13: 0 | BP13: 0 | BQ13: 0 | BR13: 0 | BS13: 0 | BT13: 1 | BU13: Chemistry | BV13: Chemistry | BW13: Chemistry | BX13: 3 | BY13: 3 | BZ13: 5 | CA13: 4 | CB13: 4 | CC13: 4 | CD13: 4 | CE13: 4 | CF13: 4 | CG13: 4 | CH13: 4 | CI13: 4
A14: 13 | B14: 1 | C14: 0 | D14: 0 | E14: 16 | F14: 20 | G14: 5 | H14: 0 | I14: 0 | J14: 2 | K14: 0 | L14: 0 | M14: 4.3 | N14: 0 | O14: 1 | P14: 0 | Q14: 4 | R14: 4 | S14: 3 | T14: 2 | U14: 4 | V14: 3 | W14: 2 | X14: 3 | Y14: 2 | Z14: 3 | AA14: 4 | AB14: 4 | AC14: 4 | AD14: 2 | AE14: 2 | AF14: 3.333333333 | AG14: 3.333333333 | AH14: 3 | AI14: 3 | AJ14: 2.666666667 | AK14: 0 | AL14: 0 | AM14: 0 | AN14: 0 | AO14: 0 | AP14: 0 | AQ14: 45 | AR14: 0 | AS14: 1 | AT14: 0 | AU14: 0 | AV14: 0 | AW14: 0 | AX14: 0 | AY14: 1 | AZ14: 0 | BA14: 0 | BB14: 0 | BC14: 20 | BD14: 20 | BE14: 2 | BF14: 0 | BG14: 1 | BH14: 8 | BI14: 0 | BJ14: 1 | BK14: 0 | BL14: 0 | BM14: 0 | BN14: 1 | BO14: 2 | BP14: 0 | BQ14: 0 | BR14: 0 | BS14: 0 | BT14: 1 | BU14: Chemsitry | BV14: Chemistry | BW14: Chemistry | BX14: 2 | BY14: 1 | BZ14: 5 | CA14: 3 | CB14: 1 | CC14: 3 | CD14: 5 | CE14: 4 | CF14: 3 | CG14: 4 | CH14: 2 | CI14: 3.125
A15: 14 | B15: 4 | C15: 3 | D15: 0 | E15: 5 | F15: 5 | G15: 17 | H15: 13 | I15: 0 | J15: 0 | K15: 1 | L15: 0 | M15: 4.4 | N15: 1 | O15: 0 | P15: 0 | Q15: 3 | R15: 1 | S15: 4 | T15: 3 | U15: 5 | V15: 3 | W15: 4 | X15: 3 | Y15: 4 | Z15: 3 | AA15: 4 | AB15: 1 | AC15: 2 | AD15: 3 | AE15: 3 | AF15: 3.333333333 | AG15: 2.333333333 | AH15: 3.333333333 | AI15: 2.666666667 | AJ15: 3.666666667 | AK15: 0 | AL15: 0 | AM15: 0 | AN15: 0 | AO15: 1 | AP15: 0 | AQ15: 59 | AR15: 0 | AS15: 1 | AT15: 0 | AU15: 0 | AV15: 0 | AW15: 0 | AX15: 0 | AY15: 1 | AZ15: 0 | BA15: 0 | BB15: 0 | BC15: 15 | BD15: 8 | BE15: 8 | BF15: 0 | BG15: 1 | BH15: 22 | BI15: 0 | BJ15: 1 | BK15: 0 | BL15: 0 | BM15: 2 | BN15: 1 | BO15: 2 | BP15: 0 | BQ15: 0 | BR15: 0 | BS15: 1 | BT15: 0 | BU15: Education | BV15: Education | BW15: Education | BX15: 5 | BY15: 2 | BZ15: 4 | CA15: 5 | CB15: 5 | CC15: 5 | CD15: 5 | CE15: 2 | CF15: 5 | CG15: 2 | CH15: 5 | CI15: 4.25
A16: 15 | B16: 50 | C16: 50 | D16: 360 | E16: 100 | F16: 300 | G16: 100 | H16: 200 | I16: 0 | J16: 5 | K16: 10 | L16: 0 | M16: 112.5 | N16: 0 | O16: 1 | P16: 0 | Q16: 4 | R16: 4 | S16: 4 | T16: 3 | U16: 5 | V16: 5 | W16: 5 | X16: 4 | Y16: 4 | Z16: 4 | AA16: 5 | AB16: 4 | AC16: 3 | AD16: 4 | AE16: 4 | AF16: 4 | AG16: 4.333333333 | AH16: 4 | AI16: 4 | AJ16: 4.333333333 | AK16: 0 | AL16: 0 | AM16: 0 | AN16: 0 | AO16: 0 | AP16: 0 | AQ16: 69 | AR16: 1 | AS16: 1 | AT16: 0 | AU16: 0 | AV16: 0 | AW16: 0 | AX16: 0 | AY16: 1 | AZ16: 0 | BA16: 0 | BB16: 0 | BC16: 38 | BD16: 45 | BE16: 38 | BF16: 0 | BG16: 1 | BH16: 19 | BI16: 0 | BJ16: 0 | BK16: 1 | BL16: 0 | BM16: 10 | BN16: 1 | BO16: 0 | BP16: 0 | BQ16: 0 | BR16: 0 | BS16: 0 | BT16: 1 | BU16: Chemistry | BV16: Chemistry | BW16: Chemistry | BX16: 4 | BY16: 3 | BZ16: 5 | CA16: 0 | CB16: 0 | CC16: 0 | CD16: 0 | CE16: 0 | CF16: 0 | CG16: 0 | CH16: 0 | CI16: 0
A17: 16 | B17: 2 | C17: 0 | D17: 2 | E17: 0 | F17: 0 | G17: 0 | H17: 1 | I17: 0 | J17: 0 | K17: 1 | L17: 0 | M17: 0.4 | N17: 1 | O17: 0 | P17: 0 | Q17: 4 | R17: 5 | S17: 3 | T17: 2 | U17: 2 | V17: 2 | W17: 4 | X17: 4 | Y17: 4 | Z17: 3 | AA17: 2 | AB17: 3 | AC17: 4 | AD17: 4 | AE17: 4 | AF17: 2.666666667 | AG17: 3.333333333 | AH17: 3.666666667 | AI17: 3.666666667 | AJ17: 3.333333333 | AK17: 0 | AL17: 0 | AM17: 1 | AN17: 0 | AO17: 0 | AP17: 0 | AQ17: 34 | AR17: 0 | AS17: 0 | AT17: 1 | AU17: 0 | AV17: 0 | AW17: 0 | AX17: 0 | AY17: 1 | AZ17: 0 | BA17: 0 | BB17: 0 | BC17: 10 | BD17: 10 | BE17: 10 | BF17: 0 | BG17: 1 | BH17: 13 | BI17: 1 | BJ17: 0 | BK17: 0 | BL17: 0 | BM17: 0 | BN17: 0 | BO17: 0 | BP17: 0 | BQ17: 0 | BR17: 0 | BS17: 1 | BT17: 0 | BU17: Education | BV17: higher education, medical sociology | BW17: medical sociology | BX17: 5 | BY17: 3 | BZ17: 4 | CA17: 4 | CB17: 4 | CC17: 3 | CD17: 3 | CE17: 2 | CF17: 3 | CG17: 2 | CH17: 4 | CI17: 3.125
A18: 17 | B18: 8 | C18: 0 | D18: 5 | E18: 5 | F18: 5 | G18: 3 | H18: 30 | I18: 0 | J18: 0 | K18: 2 | L18: 0 | M18: 5 | N18: 0 | O18: 1 | P18: 0 | Q18: 5 | R18: 4 | S18: 2 | T18: 4 | U18: 5 | V18: 2 | W18: 5 | X18: 5 | Y18: 5 | Z18: 4 | AA18: 5 | AB18: 4 | AC18: 4 | AD18: 4 | AE18: 2 | AF18: 4.666666667 | AG18: 3.333333333 | AH18: 3.666666667 | AI18: 4.666666667 | AJ18: 3.666666667 | AK18: 0 | AL18: 0 | AM18: 0 | AN18: 0 | AO18: 0 | AP18: 0 | AQ18: 61 | AR18: 1 | AS18: 0 | AT18: 0 | AU18: 1 | AV18: 0 | AW18: 0 | AX18: 0 | AY18: 0 | AZ18: 0 | BA18: 0 | BB18: 1 | BC18: 40 | BD18: 20 | BE18: 5 | BF18: 1 | BG18: 1 | BH18: 22 | BI18: 0 | BJ18: 1 | BK18: 0 | BL18: 0 | BM18: 1 | BN18: 1 | BO18: 5 | BP18: 0 | BQ18: 0 | BR18: 0 | BS18: 1 | BT18: 0 | BU18: Education | BV18: science education | BW18: science education | BX18: 5 | BY18: 4 | BZ18: 5 | CA18: 3 | CB18: 5 | CC18: 5 | CD18: 5 | CE18: 3 | CF18: 4 | CG18: 4 | CH18: 4 | CI18: 4.125
A19: 18 | B19: 6 | C19: 3 | D19: 35 | E19: 40 | F19: 38 | G19: 30 | H19: 52 | I19: 0 | J19: 0 | K19: 1 | L19: 0 | M19: 19.9 | N19: 0 | O19: 1 | P19: 0 | Q19: 4 | R19: 5 | S19: 3 | T19: 3 | U19: 5 | V19: 5 | W19: 5 | X19: 5 | Y19: 5 | Z19: 5 | AA19: 4 | AB19: 4 | AC19: 3 | AD19: 4 | AE19: 5 | AF19: 3.666666667 | AG19: 5 | AH19: 3.666666667 | AI19: 4.666666667 | AJ19: 4.666666667 | AK19: 1 | AL19: 0 | AM19: 0 | AN19: 0 | AO19: 0 | AP19: 0 | AQ19: 41 | AR19: 1 | AS19: 1 | AT19: 0 | AU19: 0 | AV19: 0 | AW19: 0 | AX19: 0 | AY19: 0 | AZ19: 0 | BA19: 1 | BB19: 0 | BC19: 9 | BD19: 12 | BE19: 12 | BF19: 1 | BG19: 1 | BH19: 20 | BI19: 0 | BJ19: 1 | BK19: 0 | BL19: 0 | BM19: 7 | BN19: 0 | BO19: 1 | BP19: 0 | BQ19: 0 | BR19: 0 | BS19: 0 | BT19: 1 | BU19: Chemistry | BV19: Chemsitry | BW19: Chemistry | BX19: 5 | BY19: 4 | BZ19: 5 | CA19: 5 | CB19: 5 | CC19: 3 | CD19: 5 | CE19: 5 | CF19: 5 | CG19: 5 | CH19: 5 | CI19: 4.75
A20: 19 | B20: 9 | C20: 7 | D20: 162 | E20: 142 | F20: 173 | G20: 53 | H20: 0 | I20: 0 | J20: 9 | K20: 0 | L20: 0 | M20: 54.6 | N20: 0 | O20: 1 | P20: 0 | Q20: 5 | R20: 5 | S20: 3 | T20: 5 | U20: 4 | V20: 4 | W20: 5 | X20: 4 | Y20: 4 | Z20: 4 | AA20: 1 | AB20: 3 | AC20: 2 | AD20: 4 | AE20: 3 | AF20: 3.666666667 | AG20: 4.333333333 | AH20: 3.333333333 | AI20: 3.666666667 | AJ20: 3.666666667 | AK20: 0 | AL20: 0 | AM20: 0 | AN20: 0 | AO20: 1 | AP20: 0 | AQ20: 69 | AR20: 1 | AS20: 0 | AT20: 1 | AU20: 0 | AV20: 0 | AW20: 0 | AX20: 0 | AY20: 1 | AZ20: 0 | BA20: 0 | BB20: 0 | BC20: 40 | BD20: 43 | BE20: 38 | BF20: 0 | BG20: 1 | BH20: 16 | BI20: 0 | BJ20: 0 | BK20: 1 | BL20: 0 | BM20: 0 | BN20: 0 | BO20: 0 | BP20: 0 | BQ20: 0 | BR20: 0 | BS20: 0 | BT20: 1 | BU20: Chemistry | BV20: Materials Science | BW20: Materials Science/Electron Microscopy | BX20: 3 | BY20: 1 | BZ20: 5 | CA20: 3 | CB20: 4 | CC20: 3 | CD20: 4 | CE20: 4 | CF20: 5 | CG20: 1 | CH20: 4 | CI20: 3.5
A21: 20 | B21: 12 | C21: 1 | D21: 16 | E21: 16 | F21: 4 | G21: 20 | H21: 15 | I21: 3 | J21: 0 | K21: 2 | L21: 0 | M21: 7.7 | N21: 1 | O21: 0 | P21: 0 | Q21: 3 | R21: 2 | S21: 2 | T21: 2 | U21: 2 | V21: 2 | W21: 3 | X21: 2 | Y21: 4 | Z21: 2 | AA21: 4 | AB21: 3 | AC21: 3 | AD21: 5 | AE21: 5 | AF21: 3 | AG21: 2 | AH21: 2.666666667 | AI21: 3 | AJ21: 4 | AK21: 0 | AL21: 0 | AM21: 0 | AN21: 1 | AO21: 0 | AP21: 0 | AQ21: 50 | AR21: 1 | AS21: 1 | AT21: 0 | AU21: 0 | AV21: 0 | AW21: 0 | AX21: 0 | AY21: 1 | AZ21: 0 | BA21: 0 | BB21: 0 | BC21: 22 | BD21: 26 | BE21: 18 | BF21: 0 | BG21: 1 | BH21: 10 | BI21: 0 | BJ21: 0 | BK21: 0 | BL21: 1 | BM21: 0 | BN21: 0 | BO21: 0 | BP21: 0 | BQ21: 0 | BR21: 0 | BS21: 1 | BT21: 0 | BU21: History | BV21: SA History, education, migration, youth culture | BW21: SA Histry | BX21: 3 | BY21: 2 | BZ21: 3 | CA21: 5 | CB21: 5 | CC21: 5 | CD21: 5 | CE21: 5 | CF21: 5 | CG21: 5 | CH21: 5 | CI21: 5
A22: 21 | B22: 30 | C22: 0 | D22: 10 | E22: 10 | F22: 5 | G22: 5 | H22: 20 | I22: 2 | J22: 0 | K22: 4 | L22: 0 | M22: 5.6 | N22: 1 | O22: 0 | P22: 0 | Q22: 4 | R22: 4 | S22: 4 | T22: 5 | U22: 3 | V22: 2 | W22: 5 | X22: 5 | Y22: 5 | Z22: 3 | AA22: 4 | AB22: 4 | AC22: 4 | AD22: 4 | AE22: 2 | AF22: 4.333333333 | AG22: 3 | AH22: 4.333333333 | AI22: 4.666666667 | AJ22: 3 | AK22: 0 | AL22: 1 | AM22: 0 | AN22: 0 | AO22: 0 | AP22: 0 | AQ22: 50 | AR22: 1 | AS22: 0 | AT22: 1 | AU22: 0 | AV22: 0 | AW22: 0 | AX22: 0 | AY22: 1 | AZ22: 0 | BA22: 0 | BB22: 0 | BC22: 20 | BD22: 20 | BE22: 20 | BF22: 0 | BG22: 1 | BH22: 10 | BI22: 0 | BJ22: 0 | BK22: 1 | BL22: 0 | BM22: 0 | BN22: 0 | BO22: 0 | BP22: 0 | BQ22: 0 | BR22: 0 | BS22: 1 | BT22: 0 | BU22: Sociology | BV22: Sociology | BW22: Sociology | BX22: 3 | BY22: 1 | BZ22: 4 | CA22: 4 | CB22: 4 | CC22: 3 | CD22: 2 | CE22: 3 | CF22: 3 | CG22: 2 | CH22: 3 | CI22: 3
A23: 22 | B23: 2 | C23: 0 | D23: 1 | E23: 4 | F23: 1 | G23: 0 | H23: 5 | I23: 1 | J23: 0 | K23: 2 | L23: 0 | M23: 1.4 | N23: 1 | O23: 0 | P23: 0 | Q23: 5 | R23: 5 | S23: 3 | T23: 4 | U23: 5 | V23: 4 | W23: 4 | X23: 4 | Y23: 4 | Z23: 3 | AA23: 4 | AB23: 3 | AC23: 3 | AD23: 4 | AE23: 4 | AF23: 4.333333333 | AG23: 4 | AH23: 3.333333333 | AI23: 3.666666667 | AJ23: 4.333333333 | AK23: 0 | AL23: 0 | AM23: 0 | AN23: 0 | AO23: 1 | AP23: 0 | AQ23: 30 | AR23: 1 | AS23: 0 | AT23: 0 | AU23: 0 | AV23: 0 | AW23: 0 | AX23: 0 | AY23: 1 | AZ23: 0 | BA23: 0 | BB23: 0 | BC23: 8 | BD23: 6 | BE23: 1 | BF23: 0 | BG23: 1 | BH23: 8 | BI23: 0 | BJ23: 1 | BK23: 0 | BL23: 0 | BM23: 0 | BN23: 1 | BO23: 2 | BP23: 0 | BQ23: 0 | BR23: 0 | BS23: 1 | BT23: 0 | BU23: Sociology | BV23: Sociol Science | BW23: Social Science | BX23: 4 | BY23: 3 | BZ23: 5 | CA23: 4 | CB23: 4 | CC23: 4 | CD23: 3 | CE23: 2 | CF23: 4 | CG23: 1 | CH23: 5 | CI23: 3.375
A24: 23 | B24: 1 | C24: 0 | D24: 1 | E24: 2 | F24: 1 | G24: 3 | H24: 15 | I24: 1 | J24: 1 | K24: 1 | L24: 0 | M24: 2.5 | N24: 1 | O24: 0 | P24: 0 | Q24: 4 | R24: 3 | S24: 2 | T24: 2 | U24: 3 | V24: 2 | W24: 3 | X24: 3 | Y24: 4 | Z24: 1 | AA24: 2 | AB24: 3 | AC24: 2 | AD24: 3 | AE24: 3 | AF24: 2.666666667 | AG24: 2 | AH24: 2.333333333 | AI24: 3.333333333 | AJ24: 3 | AK24: 0 | AL24: 0 | AM24: 0 | AN24: 0 | AO24: 0 | AP24: 0 | AQ24: 37 | AR24: 0 | AS24: 0 | AT24: 0 | AU24: 0 | AV24: 0 | AW24: 1 | AX24: 0 | AY24: 0 | AZ24: 0 | BA24: 0 | BB24: 1 | BC24: 5 | BD24: 8 | BE24: 2 | BF24: 0 | BG24: 0 | BH24: 9 | BI24: 0 | BJ24: 1 | BK24: 0 | BL24: 0 | BM24: 7 | BN24: 0 | BO24: 0 | BP24: 0 | BQ24: 0 | BR24: 0 | BS24: 1 | BT24: 0 | BU24: Literature & Languages | BV24: Sign Language | BW24: Sign Language | BX24: 5 | BY24: 3 | BZ24: 5 | CA24: 3 | CB24: 4 | CC24: 3 | CD24: 5 | CE24: 3 | CF24: 4 | CG24: 5 | CH24: 5 | CI24: 4
A25: 24 | B25: 1 | C25: 0 | D25: 24 | E25: 24 | F25: 21 | G25: 20 | H25: 20 | I25: 0 | J25: 0 | K25: 1 | L25: 0 | M25: 11 | N25: 0 | O25: 1 | P25: 0 | Q25: 4 | R25: 3 | S25: 4 | T25: 4 | U25: 3 | V25: 2 | W25: 4 | X25: 4 | Y25: 5 | Z25: 3 | AA25: 4 | AB25: 3 | AC25: 4 | AD25: 4 | AE25: 3 | AF25: 4 | AG25: 2.666666667 | AH25: 4 | AI25: 4 | AJ25: 3.333333333 | AK25: 0 | AL25: 0 | AM25: 0 | AN25: 0 | AO25: 0 | AP25: 1 | AQ25: 60 | AR25: 0 | AS25: 1 | AT25: 0 | AU25: 0 | AV25: 0 | AW25: 0 | AX25: 0 | AY25: 1 | AZ25: 0 | BA25: 0 | BB25: 0 | BC25: 35 | BD25: 40 | BE25: 14 | BF25: 0 | BG25: 1 | BH25: 9 | BI25: 0 | BJ25: 1 | BK25: 0 | BL25: 0 | BM25: 0 | BN25: 0 | BO25: 0 | BP25: 0 | BQ25: 0 | BR25: 0 | BS25: 0 | BT25: 1 | BU25: Chemistry | BV25: Chemistry | BW25: Chemistry | BX25: 3 | BY25: 1 | BZ25: 5 | CA25: 5 | CB25: 5 | CC25: 5 | CD25: 5 | CE25: 5 | CF25: 5 | CG25: 5 | CH25: 5 | CI25: 5
A26: 25 | B26: 0 | C26: 0 | D26: 0 | E26: 91 | F26: 0 | G26: 0 | H26: 0 | I26: 0 | J26: 0 | K26: 0 | L26: 0 | M26: 9.1 | N26: 1 | O26: 0 | P26: 0 | Q26: 4 | R26: 5 | S26: 3 | T26: 2 | U26: 4 | V26: 4 | W26: 4 | X26: 2 | Y26: 4 | Z26: 3 | AA26: 2 | AB26: 2 | AC26: 5 | AD26: 2 | AE26: 3 | AF26: 2.666666667 | AG26: 4 | AH26: 4 | AI26: 2.666666667 | AJ26: 3 | AK26: 0 | AL26: 0 | AM26: 1 | AN26: 0 | AO26: 0 | AP26: 0 | AQ26: 34 | AR26: 1 | AS26: 1 | AT26: 0 | AU26: 0 | AV26: 0 | AW26: 0 | AX26: 0 | AY26: 0 | AZ26: 0 | BA26: 0 | BB26: 1 | BC26: 4 | BD26: 11 | BE26: 4 | BF26: 0 | BG26: 1 | BH26: 12 | BI26: 0 | BJ26: 1 | BK26: 0 | BL26: 0 | BM26: 0 | BN26: 0 | BO26: 0 | BP26: 0 | BQ26: 0 | BR26: 0 | BS26: 0 | BT26: 1 | BU26: Chesmitry | BV26: Crystallogrphay | BW26: organic/physcial chemistry | BX26: 4 | BY26: 2 | BZ26: 5 | CA26: 5 | CB26: 5 | CC26: 5 | CD26: 5 | CE26: 4 | CF26: 5 | CG26: 5 | CH26: 5 | CI26: 4.875
A27: 26 | B27: 0 | C27: 0 | D27: 0 | E27: 8 | F27: 8 | G27: 14 | H27: 12 | I27: 0 | J27: 0 | K27: 0 | L27: 0 | M27: 4.2 | N27: 0 | O27: 1 | P27: 0 | Q27: 3 | R27: 5 | S27: 4 | T27: 1 | U27: 5 | V27: 4 | W27: 5 | X27: 5 | Y27: 5 | Z27: 4 | AA27: 3 | AB27: 1 | AC27: 4 | AD27: 5 | AE27: 5 | AF27: 2.333333333 | AG27: 4.333333333 | AH27: 4.333333333 | AI27: 3.666666667 | AJ27: 5 | AK27: 0 | AL27: 0 | AM27: 0 | AN27: 0 | AO27: 0 | AP27: 0 | AR27: 0 | AS27: 0 | AT27: 0 | AU27: 0 | AV27: 0 | AW27: 1 | AX27: 0 | AY27: 1 | AZ27: 0 | BA27: 0 | BB27: 0 | BC27: 17 | BD27: 14 | BE27: 3 | BF27: 0 | BG27: 1 | BH27: 18 | BI27: 0 | BJ27: 1 | BK27: 0 | BL27: 0 | BM27: 0 | BN27: 1 | BO27: 4 | BP27: 0 | BQ27: 0 | BR27: 0 | BS27: 0 | BT27: 1 | BU27: Chemistry | BV27: molecular systematics | BW27: biological control | BX27: 4 | BY27: 3 | BZ27: 5 | CA27: 1 | CB27: 5 | CC27: 1 | CD27: 5 | CE27: 4 | CF27: 2 | CG27: 3 | CH27: 5 | CI27: 3.25
A28: 27 | B28: 0 | C28: 0 | D28: 0 | E28: 3 | F28: 3 | G28: 2 | H28: 1 | I28: 0 | J28: 0 | K28: 0 | L28: 0 | M28: 0.9 | N28: 0 | O28: 0 | P28: 0 | Q28: 3 | R28: 4 | S28: 2 | T28: 3 | U28: 5 | V28: 3 | W28: 5 | X28: 4 | Y28: 5 | Z28: 4 | AA28: 4 | AB28: 3 | AC28: 3 | AD28: 3 | AE28: 2 | AF28: 3.333333333 | AG28: 3.666666667 | AH28: 3.333333333 | AI28: 4 | AJ28: 3.333333333 | AK28: 0 | AL28: 0 | AM28: 0 | AN28: 0 | AO28: 0 | AP28: 0 | AQ28: 45 | AR28: 1 | AS28: 1 | AT28: 0 | AU28: 0 | AV28: 0 | AW28: 0 | AX28: 0 | AY28: 0 | AZ28: 1 | BA28: 0 | BB28: 0 | BC28: 16 | BD28: 14 | BE28: 15 | BF28: 1 | BG28: 1 | BH28: 18 | BI28: 1 | BJ28: 0 | BK28: 0 | BL28: 0 | BM28: 22 | BN28: 1 | BO28: 2 | BP28: 0 | BQ28: 0 | BR28: 0 | BS28: 0 | BT28: 1 | BU28: Physics | BV28: mateiral science | BW28: physics | BX28: 5 | BY28: 2 | BZ28: 5 | CA28: 3 | CB28: 3 | CC28: 4 | CD28: 3 | CE28: 4 | CF28: 4 | CG28: 4 | CH28: 4 | CI28: 3.625
A29: 28 | B29: 9 | C29: 2 | D29: 0 | E29: 4 | F29: 0 | G29: 2 | H29: 4 | I29: 1 | J29: 0 | K29: 4 | L29: 0 | M29: 1.7 | N29: 1 | O29: 0 | P29: 0 | Q29: 4 | R29: 3 | S29: 3 | T29: 2 | U29: 3 | V29: 1 | W29: 5 | X29: 3 | Y29: 4 | Z29: 3 | AA29: 4 | AB29: 4 | AC29: 5 | AD29: 4 | AE29: 5 | AF29: 3.333333333 | AG29: 2.333333333 | AH29: 4.333333333 | AI29: 3.666666667 | AJ29: 4 | AK29: 0 | AL29: 0 | AM29: 0 | AN29: 0 | AO29: 0 | AP29: 0 | AQ29: 44 | AR29: 0 | AS29: 0 | AT29: 0 | AU29: 0 | AV29: 0 | AW29: 1 | AX29: 0 | AY29: 1 | AZ29: 0 | BA29: 0 | BB29: 0 | BC29: 16 | BD29: 6 | BE29: 6 | BF29: 0 | BG29: 0 | BH29: 13 | BI29: 0 | BJ29: 1 | BK29: 0 | BL29: 0 | BM29: 0 | BN29: 0 | BO29: 1 | BP29: 0 | BQ29: 0 | BR29: 0 | BS29: 1 | BT29: 0 | BU29: Sociology | BV29: media, policy, democracy | BW29: media, policy and social theory | BX29: 3 | BY29: 1 | BZ29: 5 | CA29: 1 | CB29: 3 | CC29: 3 | CD29: 3 | CE29: 2 | CF29: 3 | CG29: 3 | CH29: 5 | CI29: 2.875
A30: 29 | B30: 0 | C30: 0 | D30: 0 | E30: 0 | F30: 0 | G30: 0 | H30: 3 | I30: 0 | J30: 0 | K30: 0 | L30: 0 | M30: 0.3 | N30: 1 | O30: 0 | P30: 0 | Q30: 5 | R30: 3 | S30: 3 | T30: 1 | U30: 5 | V30: 4 | W30: 5 | X30: 5 | Y30: 4 | Z30: 4 | AA30: 1 | AB30: 3 | AC30: 4 | AD30: 2 | AE30: 2 | AF30: 2.333333333 | AG30: 3.666666667 | AH30: 4 | AI30: 4 | AJ30: 3 | AK30: 0 | AL30: 0 | AM30: 0 | AN30: 1 | AO30: 0 | AP30: 0 | AQ30: 61 | AR30: 1 | AS30: 0 | AT30: 0 | AU30: 0 | AV30: 0 | AW30: 1 | AX30: 0 | AY30: 0 | AZ30: 0 | BA30: 0 | BB30: 1 | BC30: 36 | BD30: 7 | BE30: 4 | BF30: 0 | BG30: 0 | BH30: 18 | BI30: 1 | BJ30: 0 | BK30: 0 | BL30: 0 | BM30: 0 | BN30: 1 | BO30: 4 | BP30: 0 | BQ30: 0 | BR30: 0 | BS30: 0 | BT30: 1 | BU30: Mathematics | BV30: differential geometry | BW30: calculs/algebra | BX30: 4 | BY30: 1 | BZ30: 5 | CA30: 5 | CB30: 5 | CC30: 5 | CD30: 5 | CE30: 2 | CF30: 3 | CG30: 4 | CH30: 4 | CI30: 4.125
A31: 30 | B31: 2 | C31: 0 | D31: 0 | E31: 3 | F31: 3 | G31: 15 | H31: 8 | I31: 0 | J31: 0 | K31: 0 | L31: 0 | M31: 2.9 | N31: 1 | O31: 0 | P31: 0 | Q31: 4 | R31: 4 | S31: 4 | T31: 4 | U31: 3 | V31: 4 | W31: 4 | X31: 4 | Y31: 4 | Z31: 4 | AA31: 4 | AB31: 3 | AC31: 4 | AD31: 4 | AE31: 4 | AF31: 4 | AG31: 4 | AH31: 4 | AI31: 3.666666667 | AJ31: 3.666666667 | AK31: 0 | AL31: 0 | AM31: 0 | AN31: 0 | AO31: 1 | AP31: 0 | AQ31: 34 | AR31: 1 | AS31: 0 | AT31: 0 | AU31: 0 | AV31: 0 | AW31: 0 | AX31: 1 | AY31: 1 | AZ31: 1 | BA31: 1 | BB31: 1 | BC31: 10 | BD31: 0 | BE31: 1 | BF31: 0 | BG31: 0 | BH31: 1 | BI31: 1 | BJ31: 1 | BK31: 0 | BL31: 0 | BM31: 0 | BN31: 1 | BO31: 1 | BP31: 0 | BQ31: 0 | BR31: 0 | BS31: 0 | BT31: 1 | BU31: Computer Science | BV31: signal processing/telecomms | BW31: telecomms/netowrks | BX31: 4 | BY31: 2 | BZ31: 5 | CA31: 4 | CB31: 3 | CC31: 3 | CD31: 4 | CE31: 4 | CF31: 4 | CG31: 3 | CH31: 4 | CI31: 3.625
A32: 31 | B32: 0 | C32: 0 | D32: 0 | E32: 0 | F32: 0 | G32: 0 | H32: 0 | I32: 0 | J32: 0 | K32: 0 | L32: 0 | M32: 0 | N32: 0 | O32: 1 | P32: 0 | Q32: 3 | R32: 2 | S32: 3 | T32: 3 | U32: 4 | V32: 1 | W32: 3 | X32: 3 | Y32: 3 | Z32: 3 | AA32: 3 | AB32: 3 | AC32: 3 | AD32: 2 | AE32: 3 | AF32: 3 | AG32: 2 | AH32: 3 | AI32: 3 | AJ32: 3 | AK32: 0 | AL32: 0 | AM32: 0 | AN32: 1 | AO32: 0 | AP32: 0 | AQ32: 40 | AR32: 1 | AS32: 0 | AT32: 0 | AU32: 0 | AV32: 0 | AW32: 0 | AX32: 0 | AY32: 0 | AZ32: 0 | BA32: 0 | BB32: 1 | BC32: 15 | BD32: 3 | BE32: 3 | BF32: 0 | BG32: 1 | BI32: 1 | BJ32: 0 | BK32: 0 | BL32: 0 | BM32: 1 | BN32: 1 | BO32: 2 | BP32: 0 | BQ32: 0 | BR32: 0 | BS32: 0 | BT32: 1 | BU32: Statistics & Actuarial Science | BV32: statistics | BW32: statistics | BX32: 4 | BY32: 3 | BZ32: 3 | CA32: 5 | CB32: 5 | CC32: 5 | CD32: 5 | CE32: 3 | CF32: 3 | CG32: 4 | CH32: 4 | CI32: 4.25
A33: 32 | B33: 6 | C33: 2 | D33: 12 | E33: 16 | F33: 1 | G33: 5 | H33: 34 | I33: 2 | J33: 0 | K33: 11 | L33: 3 | M33: 8.6 | N33: 1 | O33: 0 | P33: 0 | Q33: 4 | R33: 5 | S33: 4 | T33: 3 | U33: 4 | V33: 4 | W33: 3 | X33: 5 | Y33: 5 | Z33: 2 | AA33: 4 | AB33: 4 | AC33: 4 | AD33: 4 | AE33: 5 | AF33: 3.666666667 | AG33: 3.666666667 | AH33: 3.666666667 | AI33: 4.666666667 | AJ33: 4.333333333 | AK33: 0 | AL33: 0 | AM33: 1 | AN33: 0 | AO33: 0 | AP33: 0 | AQ33: 41 | AR33: 0 | AS33: 1 | AT33: 0 | AU33: 0 | AV33: 0 | AW33: 0 | AX33: 0 | AY33: 0 | AZ33: 0 | BA33: 1 | BB33: 0 | BC33: 18 | BD33: 20 | BF33: 0 | BG33: 1 | BH33: 20 | BI33: 0 | BJ33: 0 | BK33: 1 | BL33: 0 | BM33: 0 | BN33: 0 | BO33: 2 | BP33: 0 | BQ33: 0 | BR33: 0 | BS33: 1 | BT33: 0 | BU33: Literature & Languages | BV33: humanities | BW33: literary studies | BX33: 5 | BY33: 1 | BZ33: 5 | CA33: 4 | CB33: 4 | CC33: 4 | CD33: 4 | CE33: 3 | CF33: 4 | CG33: 4 | CH33: 4 | CI33: 3.875
A34: 33 | B34: 3 | C34: 0 | D34: 0 | E34: 4 | F34: 4 | G34: 3 | H34: 3 | I34: 6 | J34: 0 | K34: 0 | L34: 0 | M34: 2 | N34: 0 | O34: 1 | P34: 0 | Q34: 5 | R34: 5 | S34: 4 | T34: 4 | U34: 2 | V34: 4 | W34: 4 | X34: 4 | Y34: 5 | Z34: 5 | AA34: 5 | AB34: 3 | AC34: 2 | AD34: 2 | AE34: 2 | AF34: 4.666666667 | AG34: 4.666666667 | AH34: 3.333333333 | AI34: 4 | AJ34: 2 | AK34: 0 | AL34: 0 | AM34: 0 | AN34: 0 | AO34: 0 | AP34: 0 | AQ34: 28 | AR34: 0 | AS34: 1 | AT34: 0 | AU34: 0 | AV34: 0 | AW34: 0 | AX34: 0 | AY34: 1 | AZ34: 0 | BA34: 0 | BB34: 0 | BC34: 5 | BD34: 6 | BE34: 5 | BF34: 0 | BG34: 1 | BH34: 10 | BI34: 1 | BJ34: 0 | BK34: 0 | BL34: 0 | BM34: 4 | BN34: 1 | BO34: 0 | BP34: 0 | BQ34: 0 | BR34: 0 | BS34: 0 | BT34: 1 | BU34: Geography | BV34: environmental health/air quality | BW34: climate and air quality | BX34: 4 | BY34: 2 | BZ34: 5 | CA34: 2 | CB34: 5 | CC34: 4 | CD34: 2 | CE34: 1 | CF34: 3 | CG34: 2 | CH34: 3 | CI34: 2.75
A35: 34 | B35: 1 | C35: 1 | D35: 0 | E35: 0 | F35: 100 | G35: 100 | H35: 10 | I35: 5 | J35: 0 | K35: 0 | L35: 0 | M35: 21.6 | N35: 0 | O35: 1 | P35: 0 | Q35: 3 | R35: 2 | S35: 3 | T35: 3 | U35: 4 | V35: 1 | W35: 4 | X35: 4 | Y35: 3 | Z35: 4 | AA35: 1 | AB35: 4 | AC35: 3 | AD35: 3 | AE35: 2 | AF35: 2.333333333 | AG35: 2.333333333 | AH35: 3.333333333 | AI35: 3.666666667 | AJ35: 3 | AK35: 0 | AL35: 0 | AM35: 1 | AN35: 0 | AO35: 0 | AP35: 0 | AQ35: 40 | AR35: 1 | AS35: 0 | AT35: 0 | AU35: 0 | AV35: 0 | AW35: 0 | AX35: 1 | AY35: 0 | AZ35: 0 | BA35: 0 | BB35: 1 | BC35: 15 | BD35: 15 | BE35: 1 | BF35: 0 | BG35: 1 | BH35: 20 | BI35: 0 | BJ35: 1 | BK35: 0 | BL35: 0 | BM35: 0 | BN35: 0 | BO35: 2 | BP35: 0 | BQ35: 0 | BR35: 0 | BS35: 0 | BT35: 1 | BU35: Physics | BV35: astronomy | BW35: physics | BX35: 2 | BY35: 1 | BZ35: 5 | CA35: 4 | CB35: 4 | CC35: 4 | CD35: 3 | CE35: 1 | CF35: 5 | CG35: 4 | CH35: 3 | CI35: 3.5
A36: 35 | B36: 0 | C36: 0 | D36: 0 | E36: 2 | F36: 2 | G36: 4 | H36: 0 | I36: 0 | J36: 0 | K36: 0 | L36: 0 | M36: 0.8 | N36: 0 | O36: 1 | P36: 0 | Q36: 3 | R36: 5 | S36: 2 | T36: 1 | U36: 4 | V36: 2 | W36: 5 | X36: 5 | Y36: 4 | Z36: 2 | AA36: 2 | AB36: 2 | AC36: 2 | AD36: 2 | AE36: 2 | AF36: 2 | AG36: 3 | AH36: 3 | AI36: 3.666666667 | AJ36: 2.666666667 | AK36: 0 | AL36: 1 | AM36: 0 | AN36: 0 | AO36: 0 | AP36: 0 | AQ36: 45 | AR36: 1 | AS36: 0 | AT36: 0 | AU36: 0 | AV36: 0 | AW36: 0 | AX36: 1 | AY36: 0 | AZ36: 0 | BA36: 0 | BB36: 1 | BC36: 10 | BD36: 4 | BE36: 3 | BF36: 0 | BG36: 1 | BH36: 24 | BI36: 0 | BJ36: 1 | BK36: 0 | BL36: 0 | BM36: 2 | BN36: 1 | BO36: 3 | BP36: 0 | BQ36: 0 | BR36: 0 | BS36: 0 | BT36: 1 | BU36: Mathematics | BV36: mathematics | BW36: mathematics | BX36: 4 | BY36: 3 | BZ36: 2 | CA36: 5 | CB36: 3 | CC36: 3 | CD36: 1 | CE36: 2 | CF36: 1 | CG36: 1 | CH36: 2 | CI36: 2.25
A37: 36 | B37: 15 | C37: 1 | D37: 0 | E37: 12 | F37: 0 | G37: 2 | H37: 20 | I37: 0 | J37: 0 | K37: 6 | L37: 0 | M37: 4.1 | N37: 1 | O37: 0 | P37: 0 | Q37: 4 | R37: 2 | S37: 2 | T37: 2 | U37: 3 | V37: 1 | W37: 4 | X37: 2 | Y37: 5 | Z37: 2 | AA37: 2 | AB37: 2 | AC37: 5 | AD37: 2 | AE37: 2 | AF37: 2.666666667 | AG37: 1.666666667 | AH37: 3.666666667 | AI37: 3 | AJ37: 2.333333333 | AK37: 0 | AL37: 0 | AM37: 0 | AN37: 1 | AO37: 0 | AP37: 0 | AQ37: 50 | AR37: 0 | AS37: 0 | AT37: 0 | AU37: 0 | AV37: 0 | AW37: 1 | AX37: 0 | AY37: 0 | AZ37: 0 | BA37: 0 | BB37: 1 | BC37: 25 | BD37: 15 | BE37: 6 | BF37: 0 | BG37: 1 | BH37: 20 | BI37: 0 | BJ37: 1 | BK37: 0 | BL37: 0 | BM37: 2 | BN37: 1 | BO37: 1 | BP37: 0 | BQ37: 0 | BR37: 0 | BS37: 1 | BT37: 0 | BU37: Sociology | BV37: health, culture, relgiion | BW37: health, culture | BX37: 2 | BY37: 1 | BZ37: 5 | CA37: 3 | CB37: 4 | CC37: 3 | CD37: 3 | CE37: 2 | CF37: 1 | CG37: 4 | CH37: 4 | CI37: 3
A38: 37 | B38: 0 | C38: 0 | D38: 0 | E38: 3 | F38: 3 | G38: 0 | H38: 1 | I38: 0 | J38: 0 | K38: 0 | L38: 0 | M38: 0.7 | N38: 1 | O38: 0 | P38: 0 | Q38: 3 | R38: 4 | S38: 2 | T38: 1 | U38: 3 | V38: 3 | W38: 1 | X38: 3 | Y38: 3 | Z38: 3 | AA38: 4 | AB38: 3 | AC38: 1 | AD38: 3 | AE38: 3 | AF38: 2.666666667 | AG38: 3.333333333 | AH38: 1.333333333 | AI38: 3 | AJ38: 3 | AK38: 0 | AL38: 1 | AM38: 0 | AN38: 0 | AO38: 0 | AP38: 0 | AQ38: 27 | AR38: 0 | AS38: 1 | AT38: 0 | AU38: 0 | AV38: 0 | AW38: 0 | AX38: 0 | AY38: 1 | AZ38: 0 | BA38: 0 | BB38: 0 | BC38: 2 | BD38: 4 | BE38: 4 | BF38: 0 | BG38: 1 | BH38: 8 | BI38: 1 | BJ38: 0 | BK38: 0 | BL38: 0 | BM38: 0 | BN38: 0 | BO38: 0 | BP38: 0 | BQ38: 0 | BR38: 0 | BS38: 0 | BT38: 1 | BU38: Geography | BV38: human geography | BW38: town planning/geography | BX38: 4 | BY38: 1 | BZ38: 4 | CA38: 5 | CB38: 4 | CC38: 4 | CD38: 3 | CE38: 4 | CF38: 2 | CG38: 3 | CH38: 4 | CI38: 3.625
A39: 38 | B39: 5 | C39: 1 | D39: 0 | E39: 6 | F39: 5 | G39: 0 | H39: 3 | I39: 0 | J39: 0 | K39: 0 | L39: 0 | M39: 1.5 | N39: 1 | O39: 0 | P39: 0 | Q39: 3 | R39: 4 | S39: 5 | T39: 4 | U39: 4 | V39: 3 | W39: 4 | X39: 1 | Y39: 5 | Z39: 3 | AA39: 4 | AB39: 2 | AC39: 2 | AD39: 4 | AE39: 4 | AF39: 3.666666667 | AG39: 3.333333333 | AH39: 3.666666667 | AI39: 2.666666667 | AJ39: 4 | AK39: 0 | AL39: 0 | AM39: 0 | AN39: 0 | AO39: 0 | AP39: 0 | AQ39: 44 | AR39: 0 | AS39: 0 | AT39: 0 | AU39: 0 | AV39: 1 | AW39: 0 | AX39: 0 | AY39: 1 | AZ39: 0 | BA39: 0 | BB39: 0 | BC39: 15 | BD39: 20 | BE39: 5 | BF39: 0 | BG39: 1 | BH39: 12 | BI39: 0 | BJ39: 0 | BK39: 0 | BL39: 1 | BM39: 8 | BN39: 1 | BO39: 0 | BP39: 0 | BQ39: 0 | BR39: 0 | BS39: 0 | BT39: 1 | BU39: Biology | BV39: aquatic Ecology | BW39: Acquatic Ecology | BX39: 3 | BY39: 3 | BZ39: 4 | CA39: 5 | CB39: 5 | CC39: 5 | CD39: 5 | CE39: 5 | CF39: 5 | CG39: 5 | CH39: 5 | CI39: 5
A40: 39 | B40: 0 | C40: 0 | D40: 1 | E40: 0 | F40: 0 | G40: 0 | H40: 0 | I40: 0 | J40: 0 | K40: 1 | L40: 0 | M40: 0.2 | N40: 0 | O40: 1 | P40: 0 | Q40: 3 | R40: 4 | S40: 3 | T40: 1 | U40: 2 | V40: 1 | W40: 4 | X40: 4 | Y40: 3 | Z40: 4 | AA40: 2 | AB40: 4 | AC40: 2 | AD40: 2 | AE40: 2 | AF40: 2 | AG40: 3 | AH40: 3 | AI40: 3.666666667 | AJ40: 2 | AK40: 0 | AL40: 0 | AM40: 0 | AN40: 0 | AO40: 0 | AP40: 0 | AQ40: 29 | AR40: 0 | AS40: 1 | AT40: 0 | AU40: 0 | AV40: 0 | AW40: 0 | AX40: 0 | AY40: 1 | AZ40: 0 | BA40: 0 | BB40: 0 | BC40: 7 | BD40: 7 | BE40: 6 | BF40: 0 | BG40: 1 | BH40: 11 | BI40: 0 | BJ40: 1 | BK40: 0 | BL40: 0 | BM40: 3 | BN40: 0 | BO40: 0 | BP40: 0 | BQ40: 0 | BR40: 0 | BS40: 0 | BT40: 1 | BU40: Biology | BV40: biogeography, climatology, ecology | BW40: climatology, bioecology, earth system science | BX40: 5 | BY40: 4 | BZ40: 1 | CA40: 2 | CB40: 3 | CC40: 2 | CD40: 2 | CE40: 4 | CF40: 1 | CG40: 4 | CH40: 3 | CI40: 2.625
A41: 40 | B41: 4 | C41: 1 | D41: 0 | E41: 2 | F41: 2 | G41: 1 | H41: 6 | I41: 0 | J41: 0 | K41: 3 | L41: 0 | M41: 1.5 | N41: 1 | O41: 0 | P41: 0 | Q41: 4 | R41: 5 | S41: 1 | T41: 1 | U41: 2 | V41: 5 | W41: 6 | X41: 6 | Y41: 6 | Z41: 1 | AA41: 6 | AB41: 5 | AC41: 5 | AD41: 5 | AE41: 5 | AF41: 3.666666667 | AG41: 3.666666667 | AH41: 4 | AI41: 5.666666667 | AJ41: 4 | AK41: 0 | AL41: 0 | AM41: 0 | AN41: 0 | AO41: 0 | AP41: 0 | AQ41: 40 | AR41: 1 | AS41: 1 | AT41: 0 | AU41: 0 | AV41: 0 | AW41: 0 | AX41: 0 | AY41: 0 | AZ41: 0 | BA41: 1 | BB41: 0 | BC41: 8 | BD41: 8 | BE41: 8 | BF41: 0 | BG41: 1 | BH41: 12 | BI41: 0 | BJ41: 1 | BK41: 0 | BL41: 0 | BM41: 0 | BN41: 0 | BO41: 0 | BP41: 0 | BQ41: 0 | BR41: 0 | BS41: 1 | BT41: 0 | BU41: Sociology | BV41: disability studies | BW41: sociology | BX41: 3 | BY41: 1 | BZ41: 5 | CA41: 5 | CB41: 2 | CC41: 2 | CD41: 5 | CE41: 2 | CF41: 3 | CG41: 2 | CH41: 2 | CI41: 2.875
A42: 41 | B42: 0 | C42: 0 | D42: 0 | E42: 0 | F42: 0 | G42: 0 | H42: 0 | I42: 0 | J42: 0 | K42: 0 | L42: 0 | M42: 0 | N42: 0 | O42: 1 | P42: 0 | Q42: 3 | R42: 5 | S42: 2 | T42: 2 | U42: 1 | V42: 5 | W42: 2 | X42: 1 | Y42: 5 | Z42: 2 | AA42: 3 | AB42: 5 | AC42: 4 | AD42: 2 | AE42: 4 | AF42: 2.666666667 | AG42: 4 | AH42: 2.666666667 | AI42: 3.666666667 | AJ42: 2.333333333 | AK42: 0 | AL42: 0 | AM42: 0 | AN42: 0 | AO42: 1 | AP42: 0 | AQ42: 29 | AR42: 1 | AS42: 0 | AT42: 0 | AU42: 0 | AV42: 0 | AW42: 0 | AX42: 1 | AY42: 0 | AZ42: 0 | BA42: 0 | BB42: 1 | BC42: 2 | BD42: 2 | BE42: 0 | BF42: 0 | BG42: 1 | BH42: 1 | BI42: 0 | BJ42: 0 | BK42: 0 | BL42: 0 | BM42: 0 | BN42: 0 | BO42: 0 | BP42: 0 | BQ42: 0 | BR42: 0 | BS42: 0 | BT42: 1 | BU42: Mathematics | BV42: Mathematics | BW42: Mathematics | BX42: 4 | BY42: 1 | BZ42: 5 | CA42: 4 | CB42: 1 | CC42: 1 | CD42: 1 | CE42: 1 | CF42: 1 | CG42: 3 | CH42: 1 | CI42: 1.625
A43: 42 | B43: 0 | C43: 0 | D43: 0 | E43: 0 | F43: 0 | G43: 0 | H43: 0 | I43: 0 | J43: 0 | K43: 0 | L43: 0 | M43: 0 | N43: 0 | O43: 1 | P43: 0 | Q43: 3 | R43: 2 | S43: 2 | T43: 4 | U43: 4 | V43: 3 | W43: 2 | X43: 3 | Y43: 4 | Z43: 2 | AA43: 4 | AB43: 4 | AC43: 2 | AD43: 4 | AE43: 3 | AF43: 3.666666667 | AG43: 2.333333333 | AH43: 2 | AI43: 3.666666667 | AJ43: 3.666666667 | AK43: 1 | AL43: 0 | AM43: 0 | AN43: 0 | AO43: 0 | AP43: 0 | AQ43: 23 | AR43: 0 | AS43: 1 | AT43: 0 | AU43: 0 | AV43: 0 | AW43: 0 | AX43: 0 | AY43: 1 | AZ43: 0 | BA43: 0 | BB43: 0 | BC43: 1 | BD43: 1 | BE43: 1 | BF43: 0 | BG43: 1 | BH43: 4 | BI43: 1 | BJ43: 0 | BK43: 0 | BL43: 0 | BM43: 0 | BN43: 0 | BO43: 0 | BP43: 0 | BQ43: 0 | BR43: 1 | BS43: 0 | BT43: 0 | BU43: Psychology | BV43: Emotional Intelligence | BW43: Psychology | BX43: 4 | BY43: 1 | BZ43: 5 | CA43: 1 | CB43: 2 | CC43: 1 | CD43: 1 | CE43: 2 | CF43: 1 | CG43: 1 | CH43: 1 | CI43: 1.25
A44: 43 | B44: 0 | C44: 0 | D44: 0 | E44: 1 | F44: 0 | G44: 4 | H44: 1 | I44: 0 | J44: 0 | K44: 0 | L44: 0 | M44: 0.6 | N44: 1 | O44: 0 | P44: 0 | Q44: 5 | R44: 3 | S44: 4 | T44: 4 | U44: 3 | V44: 4 | W44: 4 | X44: 4 | Y44: 4 | Z44: 5 | AA44: 3 | AB44: 3 | AC44: 4 | AD44: 4 | AE44: 4 | AF44: 4 | AG44: 4 | AH44: 4 | AI44: 3.666666667 | AJ44: 3.666666667 | AK44: 0 | AL44: 1 | AM44: 0 | AN44: 0 | AO44: 0 | AP44: 0 | AQ44: 34 | AR44: 0 | AS44: 0 | AT44: 0 | AU44: 0 | AV44: 0 | AW44: 1 | AX44: 0 | AY44: 0 | AZ44: 0 | BA44: 0 | BB44: 1 | BC44: 5 | BD44: 4 | BE44: 4 | BF44: 0 | BG44: 1 | BH44: 8 | BI44: 0 | BJ44: 1 | BK44: 0 | BL44: 0 | BM44: 1 | BN44: 1 | BO44: 2 | BP44: 0 | BQ44: 0 | BR44: 0 | BS44: 0 | BT44: 1 | BU44: Computer Science | BV44: machine learning, computer vision, AI | BW44: AI, Database Systems | BX44: 4 | BY44: 3 | BZ44: 5 | CA44: 5 | CB44: 5 | CC44: 4 | CD44: 2 | CE44: 4 | CF44: 5 | CG44: 4 | CH44: 5 | CI44: 4.25
A45: 44 | B45: 6 | C45: 0 | D45: 0 | E45: 4 | F45: 0 | G45: 0 | H45: 10 | I45: 0 | J45: 0 | K45: 4 | L45: 0 | M45: 1.8 | N45: 0 | O45: 0 | P45: 1 | Q45: 5 | R45: 2 | S45: 3 | T45: 3 | U45: 3 | V45: 1 | W45: 2 | X45: 3 | Y45: 3 | Z45: 4 | AA45: 4 | AB45: 5 | AC45: 1 | AD45: 1 | AE45: 1 | AF45: 4 | AG45: 2.333333333 | AH45: 2 | AI45: 3.666666667 | AJ45: 1.666666667 | AK45: 0 | AL45: 0 | AM45: 0 | AN45: 0 | AO45: 0 | AP45: 0 | AQ45: 40 | AR45: 1 | AS45: 1 | AT45: 0 | AU45: 0 | AV45: 0 | AW45: 0 | AX45: 0 | AY45: 1 | AZ45: 0 | BA45: 0 | BB45: 0 | BC45: 0 | BD45: 15 | BE45: 5 | BF45: 0 | BG45: 1 | BH45: 12 | BI45: 0 | BJ45: 0 | BK45: 1 | BL45: 0 | BM45: 0 | BN45: 0 | BO45: 0 | BP45: 0 | BQ45: 0 | BR45: 0 | BS45: 0 | BT45: 1 | BU45: Computer Science | BV45: computer science | BW45: computer science | BX45: 5 | BY45: 1 | BZ45: 5 | CA45: 5 | CB45: 4 | CC45: 3 | CD45: 5 | CE45: 4 | CF45: 2 | CG45: 5 | CH45: 5 | CI45: 4.125
A46: 45 | B46: 1 | C46: 0 | D46: 0 | E46: 3 | F46: 3 | G46: 1 | H46: 1 | I46: 0 | J46: 0 | K46: 0 | L46: 0 | M46: 0.8 | N46: 0 | O46: 1 | P46: 0 | Q46: 4 | R46: 4 | S46: 2 | T46: 2 | U46: 2 | V46: 2 | W46: 4 | X46: 4 | Y46: 4 | Z46: 4 | AA46: 3 | AB46: 3 | AC46: 2 | AD46: 4 | AE46: 2 | AF46: 3 | AG46: 3.333333333 | AH46: 2.666666667 | AI46: 3.666666667 | AJ46: 2.666666667 | AK46: 0 | AL46: 0 | AM46: 0 | AN46: 0 | AO46: 0 | AP46: 0 | AQ46: 27 | AR46: 1 | AS46: 1 | AT46: 0 | AU46: 0 | AV46: 0 | AW46: 0 | AX46: 0 | AY46: 1 | AZ46: 0 | BA46: 0 | BB46: 0 | BC46: 3 | BD46: 3 | BE46: 3 | BF46: 0 | BG46: 1 | BH46: 8 | BI46: 0 | BJ46: 1 | BK46: 0 | BL46: 0 | BM46: 0 | BN46: 1 | BO46: 0 | BP46: 0 | BQ46: 0 | BR46: 0 | BS46: 0 | BT46: 1 | BU46: Computational & Applied Mathematics | BV46: computational and applied mathematics | BW46: statistics, numerical methods | BX46: 4 | BY46: 1 | BZ46: 5 | CA46: 1 | CB46: 2 | CC46: 2 | CD46: 1 | CE46: 2 | CF46: 2 | CG46: 2 | CH46: 2 | CI46: 1.75
A47: 46 | B47: 0 | C47: 0 | D47: 0 | E47: 0 | F47: 0 | G47: 1 | H47: 1 | I47: 0 | J47: 0 | K47: 0 | L47: 0 | M47: 0.2 | N47: 1 | O47: 0 | P47: 0 | Q47: 5 | R47: 3 | S47: 4 | T47: 1 | U47: 3 | V47: 3 | W47: 4 | X47: 4 | Y47: 4 | Z47: 3 | AA47: 2 | AB47: 4 | AC47: 3 | AD47: 4 | AE47: 3 | AF47: 2.666666667 | AG47: 3 | AH47: 3.666666667 | AI47: 4 | AJ47: 3.333333333 | AK47: 0 | AL47: 0 | AM47: 0 | AN47: 1 | AO47: 0 | AP47: 0 | AQ47: 48 | AR47: 0 | AS47: 1 | AT47: 0 | AU47: 0 | AV47: 0 | AW47: 0 | AX47: 0 | AY47: 1 | AZ47: 0 | BA47: 0 | BB47: 0 | BC47: 22 | BD47: 5 | BE47: 1 | BF47: 0 | BG47: 1 | BH47: 20 | BI47: 1 | BJ47: 0 | BK47: 0 | BL47: 0 | BM47: 0 | BN47: 0 | BO47: 0 | BP47: 0 | BQ47: 0 | BR47: 0 | BS47: 0 | BT47: 1 | BU47: Computational & Applied Mathematics | BV47: maths | BW47: maths | BX47: 5 | BY47: 1 | BZ47: 5 | CA47: 2 | CB47: 3 | CC47: 4 | CD47: 3 | CE47: 4 | CF47: 3 | CG47: 2 | CH47: 4 | CI47: 3.125
A48: 47 | B48: 15 | C48: 1 | D48: 30 | E48: 30 | F48: 25 | G48: 0 | H48: 30 | I48: 0 | J48: 1 | K48: 0 | L48: 0 | M48: 11.7 | N48: 0 | O48: 0 | P48: 1 | Q48: 3 | R48: 5 | S48: 4 | T48: 3 | U48: 4 | V48: 3 | W48: 5 | X48: 5 | Y48: 5 | Z48: 4 | AA48: 4 | AB48: 5 | AC48: 4 | AD48: 4 | AE48: 2 | AF48: 3.333333333 | AG48: 4 | AH48: 4.333333333 | AI48: 5 | AJ48: 3.333333333 | AK48: 0 | AL48: 0 | AM48: 0 | AN48: 0 | AO48: 0 | AP48: 0 | AQ48: 54 | AR48: 1 | AS48: 0 | AT48: 0 | AU48: 0 | AV48: 0 | AW48: 0 | AX48: 1 | AY48: 0 | AZ48: 0 | BA48: 0 | BB48: 1 | BC48: 38 | BD48: 30 | BE48: 4 | BF48: 0 | BG48: 1 | BH48: 19 | BI48: 0 | BJ48: 0 | BK48: 1 | BL48: 0 | BM48: 6 | BN48: 1 | BO48: 3 | BP48: 0 | BQ48: 0 | BR48: 0 | BS48: 0 | BT48: 1 | BU48: Computational & Applied Mathematics | BV48: mathematics | BW48: mathematics | BX48: 2 | BY48: 2 | BZ48: 5 | CA48: 4 | CB48: 5 | CC48: 5 | CD48: 3 | CE48: 3 | CF48: 3 | CG48: 5 | CH48: 5 | CI48: 4.125
A49: 48 | B49: 1 | C49: 0 | D49: 0 | E49: 0 | F49: 0 | G49: 0 | H49: 1 | I49: 0 | J49: 0 | K49: 0 | L49: 0 | M49: 0.1 | N49: 1 | O49: 0 | P49: 0 | Q49: 4 | R49: 2 | S49: 4 | T49: 3 | U49: 5 | V49: 1 | W49: 3 | X49: 4 | Y49: 4 | Z49: 4 | AA49: 5 | AB49: 4 | AC49: 3 | AD49: 2 | AE49: 3 | AF49: 4 | AG49: 2.333333333 | AH49: 3.333333333 | AI49: 4 | AJ49: 3.333333333 | AK49: 0 | AL49: 0 | AM49: 0 | AN49: 0 | AO49: 0 | AP49: 0 | AQ49: 57 | AR49: 1 | AS49: 1 | AT49: 0 | AU49: 0 | AV49: 0 | AW49: 0 | AX49: 0 | AY49: 1 | AZ49: 0 | BA49: 0 | BB49: 0 | BC49: 10 | BD49: 17 | BE49: 19 | BF49: 0 | BG49: 1 | BH49: 8 | BI49: 0 | BJ49: 1 | BK49: 0 | BL49: 0 | BM49: 0 | BN49: 1 | BO49: 0 | BP49: 0 | BQ49: 0 | BR49: 0 | BS49: 0 | BT49: 1 | BU49: Computational & Applied Mathematics | BV49: mathematics | BW49: mathematics | BX49: 3 | BY49: 1 | BZ49: 5 | CA49: 5 | CB49: 5 | CC49: 5 | CD49: 5 | CE49: 5 | CF49: 5 | CG49: 5 | CH49: 5 | CI49: 5
A50: 49 | B50: 2 | C50: 0 | D50: 4 | E50: 2 | F50: 1 | G50: 0 | H50: 0 | I50: 0 | J50: 0 | K50: 0 | L50: 0 | M50: 0.7 | N50: 0 | O50: 1 | P50: 0 | Q50: 5 | R50: 4 | S50: 5 | T50: 5 | U50: 3 | V50: 5 | W50: 4 | X50: 2 | Y50: 2 | Z50: 3 | AA50: 4 | AB50: 1 | AC50: 1 | AD50: 5 | AE50: 1 | AF50: 4.666666667 | AG50: 4 | AH50: 3.333333333 | AI50: 1.666666667 | AJ50: 3 | AK50: 0 | AL50: 0 | AM50: 0 | AN50: 0 | AO50: 0 | AP50: 0 | AQ50: 62 | AR50: 0 | AS50: 1 | AT50: 0 | AU50: 0 | AV50: 0 | AW50: 0 | AX50: 0 | AY50: 1 | AZ50: 0 | BA50: 0 | BB50: 0 | BC50: 28 | BD50: 20 | BE50: 20 | BF50: 0 | BG50: 1 | BH50: 9 | BI50: 0 | BJ50: 0 | BK50: 1 | BL50: 0 | BM50: 0 | BN50: 0 | BO50: 2 | BP50: 0 | BQ50: 0 | BR50: 0 | BS50: 0 | BT50: 1 | BU50: Computational & Applied Mathematics | BV50: maths | BW50: maths | BX50: 4 | BY50: 2 | BZ50: 5 | CA50: 5 | CB50: 5 | CC50: 5 | CD50: 5 | CE50: 5 | CF50: 5 | CG50: 5 | CH50: 5 | CI50: 5
A51: 50 | B51: 4 | C51: 0 | D51: 10 | E51: 4 | F51: 6 | G51: 2 | H51: 6 | I51: 0 | J51: 0 | K51: 0 | L51: 0 | M51: 2.8 | N51: 0 | O51: 1 | P51: 0 | Q51: 5 | R51: 5 | S51: 3 | T51: 5 | U51: 4 | V51: 4 | W51: 5 | X51: 4 | Y51: 4 | Z51: 4 | AA51: 1 | AB51: 3 | AC51: 2 | AD51: 4 | AE51: 3 | AF51: 3.666666667 | AG51: 4.333333333 | AH51: 3.333333333 | AI51: 3.666666667 | AJ51: 3.666666667 | AK51: 0 | AL51: 0 | AM51: 0 | AN51: 0 | AO51: 0 | AP51: 0 | AQ51: 47 | AR51: 1 | AS51: 0 | AT51: 0 | AU51: 0 | AV51: 0 | AW51: 1 | AX51: 0 | AY51: 0 | AZ51: 0 | BA51: 0 | BB51: 1 | BC51: 11 | BD51: 13 | BE51: 6 | BF51: 0 | BG51: 1 | BH51: 9 | BI51: 0 | BJ51: 1 | BK51: 0 | BL51: 0 | BM51: 2 | BN51: 0 | BO51: 0 | BP51: 0 | BQ51: 0 | BR51: 0 | BS51: 0 | BT51: 1 | BU51: Physics | BV51: physics | BW51: physics | BX51: 3 | BY51: 2 | BZ51: 5 | CA51: 5 | CB51: 5 | CC51: 5 | CD51: 5 | CE51: 5 | CF51: 5 | CG51: 5 | CH51: 5 | CI51: 5
A52: 51 | B52: 3 | C52: 0 | D52: 0 | E52: 3 | F52: 3 | G52: 0 | H52: 7 | I52: 0 | J52: 0 | K52: 0 | L52: 0 | M52: 1.3 | N52: 0 | O52: 1 | P52: 0 | Q52: 5 | R52: 1 | S52: 4 | T52: 4 | U52: 4 | V52: 1 | W52: 3 | X52: 3 | Y52: 4 | Z52: 2 | AA52: 4 | AB52: 2 | AC52: 3 | AD52: 2 | AE52: 2 | AF52: 4.333333333 | AG52: 1.333333333 | AH52: 3.333333333 | AI52: 3 | AJ52: 2.666666667 | AK52: 0 | AL52: 1 | AM52: 0 | AN52: 0 | AO52: 0 | AP52: 0 | AQ52: 33 | AR52: 0 | AS52: 0 | AT52: 0 | AU52: 0 | AV52: 0 | AW52: 0 | AX52: 1 | AY52: 0 | AZ52: 0 | BA52: 0 | BB52: 1 | BC52: 10 | BD52: 3 | BE52: 2 | BF52: 1 | BG52: 1 | BH52: 8 | BI52: 1 | BJ52: 0 | BK52: 0 | BL52: 0 | BM52: 0 | BN52: 0 | BO52: 1 | BP52: 0 | BQ52: 0 | BR52: 1 | BS52: 0 | BT52: 0 | BU52: Psychology | BV52: neuropsychology | BW52: neuropsychology | BX52: 3 | BY52: 1 | BZ52: 5 | CA52: 4 | CB52: 4 | CC52: 4 | CD52: 3 | CF52: 4 | CG52: 2 | CH52: 2 | CI52: 3.285714286
A53: 52 | B53: 0 | C53: 0 | D53: 0 | E53: 1 | F53: 1 | G53: 0 | H53: 0 | I53: 0 | J53: 0 | K53: 0 | L53: 6 | M53: 0.8 | N53: 1 | O53: 0 | P53: 0 | Q53: 4 | R53: 2 | S53: 2 | T53: 1 | U53: 5 | V53: 1 | W53: 2 | X53: 1 | Y53: 2 | Z53: 2 | AA53: 1 | AB53: 2 | AC53: 2 | AD53: 4 | AE53: 3 | AF53: 2 | AG53: 1.666666667 | AH53: 2 | AI53: 1.666666667 | AJ53: 4 | AK53: 0 | AL53: 1 | AM53: 0 | AN53: 0 | AO53: 0 | AP53: 0 | AQ53: 37 | AR53: 0 | AS53: 1 | AT53: 0 | AU53: 0 | AV53: 0 | AW53: 0 | AX53: 0 | AY53: 1 | AZ53: 0 | BA53: 0 | BB53: 0 | BC53: 8 | BD53: 2 | BE53: 1 | BF53: 0 | BG53: 1 | BH53: 7 | BI53: 1 | BJ53: 0 | BK53: 0 | BL53: 0 | BM53: 0 | BN53: 1 | BO53: 2 | BP53: 0 | BQ53: 0 | BR53: 1 | BS53: 0 | BT53: 0 | BU53: Psychology | BV53: Psychology | BW53: Psychology | BX53: 4 | BY53: 2 | BZ53: 4 | CA53: 5 | CB53: 5 | CC53: 5 | CD53: 3 | CE53: 3 | CF53: 3 | CG53: 2 | CH53: 4 | CI53: 3.75
A54: 53 | B54: 7 | C54: 0 | D54: 3 | E54: 14 | F54: 10 | G54: 0 | H54: 19 | I54: 0 | J54: 0 | K54: 2 | L54: 0 | M54: 4.8 | N54: 1 | O54: 0 | P54: 0 | Q54: 3 | R54: 4 | S54: 2 | T54: 3 | U54: 3 | V54: 3 | W54: 4 | X54: 3 | Y54: 4 | Z54: 2 | AA54: 4 | AB54: 3 | AC54: 3 | AD54: 3 | AE54: 3 | AF54: 3.333333333 | AG54: 3 | AH54: 3 | AI54: 3.333333333 | AJ54: 3 | AK54: 0 | AL54: 1 | AM54: 0 | AN54: 0 | AO54: 0 | AP54: 0 | AQ54: 37 | AR54: 1 | AS54: 1 | AT54: 0 | AU54: 0 | AV54: 0 | AW54: 0 | AX54: 0 | AY54: 1 | AZ54: 0 | BA54: 0 | BB54: 0 | BC54: 7 | BD54: 14 | BE54: 4 | BF54: 0 | BG54: 1 | BH54: 24 | BI54: 0 | BJ54: 0 | BK54: 0 | BL54: 1 | BM54: 0 | BN54: 1 | BO54: 0 | BP54: 0 | BQ54: 0 | BR54: 1 | BS54: 0 | BT54: 0 | BU54: Psychology | BV54: psychology | BW54: Psychology | BX54: 2 | BY54: 1 | BZ54: 4 | CA54: 5 | CB54: 5 | CC54: 4 | CD54: 3 | CE54: 4 | CF54: 4 | CG54: 3 | CH54: 4 | CI54: 4
A55: 54 | B55: 2 | C55: 0 | D55: 5 | E55: 5 | F55: 0 | G55: 3 | H55: 10 | I55: 0 | J55: 0 | K55: 0 | L55: 0 | M55: 2.3 | N55: 0 | O55: 1 | P55: 0 | Q55: 5 | R55: 3 | S55: 5 | T55: 4 | U55: 3 | V55: 3 | W55: 5 | X55: 4 | Y55: 5 | Z55: 4 | AA55: 2 | AB55: 4 | AC55: 4 | AD55: 4 | AE55: 4 | AF55: 3.666666667 | AG55: 3.333333333 | AH55: 4.666666667 | AI55: 4.333333333 | AJ55: 3.666666667 | AK55: 1 | AL55: 0 | AM55: 0 | AN55: 0 | AO55: 0 | AP55: 1 | AQ55: 31 | AR55: 0 | AS55: 0 | AT55: 0 | AU55: 0 | AV55: 0 | AW55: 1 | AX55: 0 | AY55: 0 | AZ55: 0 | BA55: 0 | BB55: 1 | BC55: 15 | BD55: 8 | BE55: 8 | BF55: 0 | BG55: 1 | BH55: 15 | BI55: 0 | BJ55: 1 | BK55: 0 | BL55: 0 | BM55: 5 | BN55: 1 | BO55: 2 | BP55: 0 | BQ55: 0 | BR55: 0 | BS55: 0 | BT55: 1 | BU55: Physics | BV55: Physics | BW55: Physics | BX55: 4 | BY55: 2 | BZ55: 5 | CA55: 2 | CB55: 2 | CC55: 3 | CD55: 4 | CE55: 4 | CF55: 3 | CG55: 2 | CH55: 2 | CI55: 2.75
A56: 55 | B56: 30 | C56: 20 | D56: 50 | E56: 50 | F56: 50 | G56: 30 | H56: 80 | I56: 0 | J56: 0 | K56: 3 | L56: 0 | M56: 28.3 | N56: 0 | O56: 1 | P56: 0 | Q56: 4 | R56: 2 | S56: 4 | T56: 4 | U56: 5 | V56: 2 | W56: 5 | X56: 5 | Y56: 5 | Z56: 3 | AA56: 5 | AB56: 3 | AC56: 3 | AD56: 4 | AE56: 4 | AF56: 4.333333333 | AG56: 2.333333333 | AH56: 4 | AI56: 4.333333333 | AJ56: 4.333333333 | AK56: 0 | AL56: 0 | AM56: 0 | AN56: 0 | AO56: 0 | AP56: 0 | AQ56: 64 | AR56: 1 | AS56: 0 | AT56: 0 | AU56: 1 | AV56: 0 | AW56: 0 | AX56: 0 | AY56: 0 | AZ56: 0 | BA56: 0 | BB56: 1 | BC56: 38 | BD56: 42 | BE56: 11 | BF56: 0 | BG56: 1 | BH56: 19 | BI56: 0 | BJ56: 0 | BK56: 1 | BL56: 0 | BM56: 10 | BN56: 0 | BO56: 0 | BP56: 0 | BQ56: 0 | BR56: 0 | BS56: 0 | BT56: 1 | BU56: Physics | BV56: Astrophysics | BW56: Physics, Mathematics, astrophysics | BX56: 5 | BY56: 1 | BZ56: 5 | CA56: 5 | CB56: 5 | CC56: 5 | CD56: 5 | CE56: 5 | CF56: 5 | CG56: 5 | CH56: 5 | CI56: 5
A57: 56 | B57: 60 | C57: 21 | D57: 18 | E57: 80 | F57: 75 | G57: 197 | H57: 75 | I57: 0 | J57: 0 | K57: 3 | L57: 0 | M57: 46.9 | N57: 0 | O57: 1 | P57: 0 | Q57: 5 | R57: 2 | S57: 4 | T57: 4 | U57: 2 | V57: 1 | W57: 4 | X57: 3 | Y57: 4 | Z57: 3 | AA57: 4 | AB57: 3 | AC57: 4 | AD57: 5 | AE57: 4 | AF57: 4.333333333 | AG57: 2 | AH57: 4 | AI57: 3.333333333 | AJ57: 3.666666667 | AK57: 0 | AL57: 0 | AM57: 1 | AN57: 0 | AO57: 0 | AP57: 0 | AQ57: 70 | AR57: 1 | AS57: 1 | AT57: 0 | AU57: 0 | AV57: 0 | AW57: 0 | AX57: 0 | AY57: 1 | AZ57: 0 | BA57: 0 | BB57: 0 | BC57: 50 | BD57: 40 | BE57: 40 | BF57: 0 | BG57: 1 | BH57: 16 | BI57: 0 | BJ57: 0 | BK57: 1 | BL57: 0 | BM57: 1 | BN57: 0 | BO57: 0 | BP57: 0 | BQ57: 1 | BR57: 0 | BS57: 0 | BT57: 0 | BU57: Engineering | BV57: engineering | BW57: engineering | BX57: 3 | BY57: 2 | BZ57: 5 | CA57: 5 | CB57: 5 | CC57: 4 | CD57: 4 | CE57: 3 | CF57: 4 | CG57: 3 | CH57: 5 | CI57: 4.125
A58: 57 | B58: 24 | C58: 26 | D58: 0 | E58: 106 | F58: 0 | G58: 0 | H58: 26 | I58: 0 | J58: 0 | K58: 4 | L58: 0 | M58: 16.2 | N58: 1 | O58: 0 | P58: 0 | Q58: 4 | R58: 2 | S58: 1 | T58: 3 | U58: 5 | V58: 2 | W58: 4 | X58: 4 | Y58: 4 | Z58: 4 | AA58: 3 | AB58: 3 | AC58: 3 | AD58: 4 | AE58: 4 | AF58: 3.333333333 | AG58: 2.666666667 | AH58: 2.666666667 | AI58: 3.666666667 | AJ58: 4.333333333 | AK58: 0 | AL58: 0 | AM58: 0 | AN58: 0 | AO58: 1 | AP58: 0 | AQ58: 52 | AR58: 1 | AS58: 1 | AT58: 0 | AU58: 0 | AV58: 0 | AW58: 0 | AX58: 0 | AY58: 1 | AZ58: 0 | BA58: 0 | BB58: 0 | BC58: 22 | BD58: 28 | BE58: 22 | BF58: 0 | BG58: 1 | BH58: 9 | BI58: 0 | BJ58: 0 | BK58: 1 | BL58: 0 | BM58: 0 | BN58: 1 | BO58: 4 | BP58: 0 | BQ58: 0 | BR58: 0 | BS58: 0 | BT58: 1 | BU58: Chemistry | BV58: Chemistry | BW58: Chemistry | BX58: 4 | BY58: 1 | BZ58: 5 | CA58: 4 | CB58: 4 | CC58: 2 | CD58: 3 | CE58: 4 | CF58: 4 | CG58: 2 | CH58: 2 | CI58: 3.125
A59: 58 | B59: 1 | C59: 0 | D59: 1 | E59: 3 | F59: 21 | G59: 0 | H59: 20 | I59: 0 | J59: 0 | K59: 9 | L59: 0 | M59: 5.4 | N59: 0 | O59: 0 | P59: 1 | Q59: 3 | R59: 5 | S59: 2 | T59: 5 | U59: 4 | V59: 5 | W59: 4 | X59: 3 | Y59: 5 | Z59: 4 | AA59: 4 | AB59: 5 | AC59: 5 | AD59: 3 | AE59: 5 | AF59: 4 | AG59: 4.666666667 | AH59: 3.666666667 | AI59: 4.333333333 | AJ59: 4 | AK59: 1 | AL59: 0 | AM59: 0 | AN59: 0 | AO59: 0 | AP59: 0 | AQ59: 33 | AR59: 1 | AS59: 1 | AT59: 0 | AU59: 0 | AV59: 0 | AW59: 0 | AX59: 0 | AY59: 0 | AZ59: 1 | BA59: 0 | BB59: 0 | BC59: 9 | BD59: 9 | BE59: 5 | BF59: 0 | BG59: 1 | BH59: 9 | BI59: 0 | BJ59: 1 | BK59: 0 | BL59: 0 | BM59: 11 | BN59: 0 | BO59: 0 | BP59: 0 | BQ59: 0 | BR59: 0 | BS59: 0 | BT59: 1 | BU59: Geography | BV59: tourism geography | BW59: urban geography, environmental gepgraphy | BX59: 2 | BY59: 1 | BZ59: 5 | CA59: 1 | CB59: 2 | CC59: 2 | CD59: 1 | CE59: 5 | CF59: 1 | CG59: 2 | CH59: 2 | CI59: 2
A60: 59 | B60: 4 | C60: 1 | D60: 0 | E60: 39 | F60: 34 | G60: 4 | H60: 40 | I60: 0 | J60: 0 | K60: 1 | L60: 0 | M60: 11.9 | N60: 1 | O60: 0 | P60: 0 | Q60: 4 | R60: 4 | S60: 1 | T60: 5 | U60: 5 | V60: 4 | W60: 4 | X60: 4 | Y60: 5 | Z60: 5 | AA60: 2 | AB60: 4 | AC60: 1 | AD60: 3 | AE60: 5 | AF60: 3.666666667 | AG60: 4.333333333 | AH60: 2 | AI60: 4.333333333 | AJ60: 4.333333333 | AK60: 0 | AL60: 0 | AM60: 0 | AN60: 0 | AO60: 0 | AP60: 0 | AQ60: 41 | AR60: 1 | AS60: 1 | AT60: 0 | AU60: 0 | AV60: 0 | AW60: 0 | AX60: 0 | AY60: 0 | AZ60: 0 | BA60: 1 | BB60: 0 | BC60: 17 | BD60: 12 | BE60: 6 | BF60: 0 | BG60: 1 | BH60: 11 | BI60: 0 | BJ60: 0 | BK60: 1 | BL60: 0 | BM60: 0 | BN60: 1 | BO60: 2 | BP60: 0 | BQ60: 0 | BR60: 0 | BS60: 0 | BT60: 1 | BU60: Mathematics | BV60: partial differential equations | BW60: symmetry analysis | BX60: 5 | BY60: 4 | BZ60: 5 | CA60: 5 | CB60: 5 | CC60: 5 | CD60: 5 | CE60: 4 | CF60: 5 | CG60: 5 | CH60: 5 | CI60: 4.875
A61: 60 | B61: 42 | C61: 9 | D61: 16 | E61: 29 | F61: 28 | G61: 24 | H61: 18 | I61: 0 | J61: 0 | K61: 1 | L61: 0 | M61: 12.5 | N61: 0 | O61: 1 | P61: 0 | Q61: 5 | R61: 4 | S61: 3 | T61: 4 | U61: 5 | V61: 5 | W61: 5 | X61: 4 | Y61: 4 | Z61: 4 | AA61: 5 | AB61: 4 | AC61: 3 | AD61: 4 | AE61: 3 | AF61: 4.666666667 | AG61: 4.333333333 | AH61: 3.666666667 | AI61: 4 | AJ61: 4 | AK61: 1 | AL61: 1 | AM61: 0 | AN61: 0 | AO61: 0 | AP61: 0 | AQ61: 48 | AR61: 1 | AS61: 0 | AT61: 0 | AU61: 0 | AV61: 0 | AW61: 0 | AX61: 1 | AY61: 0 | AZ61: 0 | BA61: 0 | BB61: 1 | BC61: 20 | BD61: 20 | BE61: 1 | BF61: 0 | BG61: 1 | BH61: 10 | BI61: 0 | BJ61: 0 | BK61: 1 | BL61: 0 | BM61: 43 | BN61: 1 | BO61: 2 | BP61: 0 | BQ61: 0 | BR61: 0 | BS61: 0 | BT61: 1 | BU61: Computer Science | BV61: remote sensing/GIS | BW61: remote sensing/GIS | BX61: 5 | BY61: 4 | BZ61: 5 | CA61: 3 | CB61: 4 | CC61: 2 | CD61: 2 | CE61: 3 | CF61: 5 | CG61: 3 | CH61: 5 | CI61: 3.375
A62: 61 | B62: 3 | C62: 3 | D62: 8 | E62: 12 | F62: 1 | G62: 2 | H62: 20 | I62: 3 | J62: 3 | K62: 7 | L62: 0 | M62: 5.9 | N62: 1 | O62: 0 | P62: 0 | Q62: 3 | R62: 4 | S62: 3 | T62: 3 | U62: 4 | V62: 2 | W62: 4 | X62: 3 | Y62: 4 | Z62: 3 | AA62: 3 | AB62: 4 | AC62: 3 | AD62: 4 | AE62: 3 | AF62: 3 | AG62: 3 | AH62: 3.333333333 | AI62: 3.666666667 | AJ62: 3.666666667 | AK62: 0 | AL62: 0 | AM62: 0 | AN62: 0 | AO62: 0 | AP62: 0 | AQ62: 60 | AR62: 1 | AS62: 1 | AT62: 0 | AU62: 0 | AV62: 0 | AW62: 0 | AX62: 0 | AY62: 1 | AZ62: 0 | BA62: 0 | BB62: 1 | BC62: 40 | BD62: 30 | BE62: 25 | BF62: 0 | BG62: 1 | BH62: 9 | BI62: 0 | BJ62: 0 | BK62: 1 | BL62: 0 | BM62: 12 | BN62: 1 | BO62: 1 | BP62: 1 | BQ62: 0 | BR62: 0 | BS62: 1 | BT62: 0 | BU62: Literature & Languages | BV62: history/literature | BW62: literature | BX62: 4 | BY62: 3 | BZ62: 4 | CA62: 5 | CB62: 5 | CC62: 5 | CD62: 5 | CE62: 5 | CF62: 5 | CG62: 5 | CH62: 5 | CI62: 5
A63: 62 | B63: 2 | C63: 0 | D63: 3 | E63: 8 | F63: 11 | G63: 2 | H63: 10 | I63: 0 | J63: 0 | K63: 0 | L63: 0 | M63: 3.4 | N63: 0 | O63: 1 | P63: 0 | Q63: 3 | R63: 4 | S63: 3 | T63: 3 | U63: 4 | V63: 3 | W63: 3 | X63: 3 | Y63: 5 | Z63: 3 | AA63: 4 | AB63: 2 | AC63: 2 | AD63: 2 | AE63: 1 | AF63: 3.333333333 | AG63: 3.333333333 | AH63: 2.666666667 | AI63: 3.333333333 | AJ63: 2.333333333 | AK63: 0 | AL63: 1 | AM63: 0 | AN63: 0 | AO63: 0 | AP63: 0 | AQ63: 35 | AR63: 1 | AS63: 0 | AT63: 0 | AU63: 1 | AV63: 0 | AW63: 0 | AX63: 0 | AY63: 1 | AZ63: 0 | BA63: 0 | BB63: 1 | BC63: 9 | BD63: 6 | BE63: 0 | BF63: 0 | BG63: 1 | BH63: 0 | BI63: 0 | BJ63: 0 | BK63: 0 | BL63: 1 | BM63: 5 | BN63: 1 | BO63: 3 | BP63: 1 | BQ63: 0 | BR63: 0 | BS63: 0 | BT63: 0 | BU63: Commerce | BV63: finance | BW63: finance | BX63: 4 | BY63: 2 | BZ63: 4 | CA63: 5 | CB63: 5 | CC63: 5 | CD63: 5 | CE63: 5 | CF63: 5 | CG63: 5 | CH63: 5 | CI63: 5
A64: 63 | B64: 10 | C64: 0 | D64: 0 | E64: 4 | F64: 4 | G64: 0 | H64: 7 | I64: 0 | J64: 0 | K64: 0 | L64: 0 | M64: 1.5 | N64: 1 | O64: 0 | P64: 0 | Q64: 4 | R64: 3 | S64: 2 | T64: 2 | U64: 5 | V64: 2 | W64: 5 | X64: 4 | Y64: 4 | Z64: 3 | AA64: 4 | AB64: 2 | AC64: 2 | AD64: 2 | AE64: 3 | AF64: 3.333333333 | AG64: 2.666666667 | AH64: 3 | AI64: 3.333333333 | AJ64: 3.333333333 | AK64: 0 | AL64: 1 | AM64: 0 | AN64: 0 | AO64: 0 | AP64: 0 | AQ64: 30 | AR64: 1 | AS64: 1 | AT64: 0 | AU64: 0 | AV64: 0 | AW64: 0 | AX64: 0 | AY64: 1 | AZ64: 0 | BA64: 0 | BB64: 0 | BC64: 0 | BD64: 1 | BE64: 17 | BF64: 1 | BG64: 0 | BH64: 0 | BI64: 1 | BJ64: 0 | BK64: 0 | BL64: 0 | BM64: 3 | BN64: 0 | BO64: 0 | BP64: 1 | BQ64: 0 | BR64: 0 | BS64: 0 | BT64: 0 | BU64: Commerce | BV64: investment and corporate finance | BW64: investment | BX64: 4 | BY64: 1 | BZ64: 4 | CA64: 5 | CB64: 5 | CC64: 4 | CD64: 3 | CE64: 4 | CF64: 5 | CG64: 3 | CH64: 3 | CI64: 4
A65: 64 | B65: 7 | C65: 4 | D65: 0 | E65: 46 | F65: 44 | G65: 8 | H65: 30 | I65: 0 | J65: 0 | K65: 4 | L65: 0 | M65: 13.6 | N65: 1 | O65: 0 | P65: 0 | Q65: 5 | R65: 4 | S65: 4 | T65: 3 | U65: 3 | V65: 5 | W65: 5 | X65: 5 | Y65: 5 | Z65: 5 | AA65: 5 | AB65: 5 | AC65: 3 | AD65: 3 | AE65: 3 | AF65: 4.333333333 | AG65: 4.666666667 | AH65: 4 | AI65: 5 | AJ65: 3 | AK65: 0 | AL65: 0 | AM65: 1 | AN65: 0 | AO65: 0 | AP65: 0 | AQ65: 47 | AR65: 1 | AS65: 0 | AT65: 0 | AU65: 1 | AV65: 0 | AW65: 0 | AX65: 0 | AY65: 1 | AZ65: 0 | BA65: 0 | BB65: 0 | BC65: 24 | BD65: 24 | BE65: 23 | BF65: 0 | BG65: 1 | BH65: 11 | BI65: 0 | BJ65: 0 | BK65: 1 | BL65: 0 | BM65: 40 | BN65: 1 | BO65: 1 | BP65: 0 | BQ65: 0 | BR65: 0 | BS65: 0 | BT65: 1 | BU65: Mathematics | BV65: mathematics | BW65: mathematics | BX65: 4 | BY65: 1 | BZ65: 5 | CA65: 3 | CB65: 5 | CC65: 3 | CD65: 5 | CE65: 1 | CF65: 1 | CG65: 5 | CH65: 3 | CI65: 3.25
A66: 65 | B66: 4 | C66: 1 | D66: 0 | E66: 6 | F66: 1 | G66: 0 | H66: 10 | I66: 2 | J66: 0 | K66: 3 | L66: 0 | M66: =AVERAGE(C66:L66) -> 2.3 | N66: 1 | O66: 0 | P66: 0 | Q66: 5 | R66: 4 | S66: 3 | T66: 5 | U66: 2 | V66: 4 | W66: 5 | X66: 3 | Y66: 4 | Z66: 3 | AA66: 4 | AB66: 3 | AC66: 4 | AD66: 4 | AE66: 4 | AF66: 4.666666667 | AG66: 3.666666667 | AH66: 4 | AI66: 3.333333333 | AJ66: 3.333333333 | AK66: 0 | AL66: 1 | AM66: 1 | AN66: 1 | AO66: 1 | AP66: 1 | AQ66: 36 | AR66: 0 | AS66: 0 | AT66: 0 | AU66: 1 | AV66: 0 | AW66: 0 | AX66: 0 | AY66: 1 | AZ66: 0 | BA66: 0 | BB66: 1 | BC66: 6 | BD66: 6 | BE66: 6 | BF66: 0 | BG66: 1 | BH66: 8 | BI66: 0 | BJ66: 1 | BK66: 0 | BL66: 0 | BM66: 0 | BN66: 1 | BO66: 1 | BP66: 0 | BQ66: 0 | BR66: 0 | BS66: 1 | BT66: 0 | BU66: Media & Cultural Studies | BV66: cultural studies | BW66: media, cultural studies | BX66: 4 | BY66: 1 | BZ66: 5 | CA66: 3 | CB66: 5 | CC66: 3 | CD66: 1 | CE66: 1 | CF66: 1 | CG66: 1 | CH66: 2 | CI66: =AVERAGE(CA66:CH66) -> 2.125
A67: 66 | B67: 12 | C67: 22 | D67: 30 | E67: 20 | F67: 3 | G67: 0 | H67: 30 | I67: 3 | J67: 0 | K67: 25 | L67: 0 | M67: 13.3 | N67: 1 | O67: 0 | P67: 0 | Q67: 5 | R67: 4 | S67: 4 | T67: 3 | U67: 2 | V67: 3 | W67: 4 | X67: 4 | Y67: 4 | Z67: 4 | AA67: 3 | AB67: 4 | AC67: 4 | AD67: 4 | AE67: 4 | AF67: 3.666666667 | AG67: 3.666666667 | AH67: 4 | AI67: 4 | AJ67: 3.333333333 | AK67: 0 | AL67: 0 | AM67: 0 | AN67: 0 | AO67: 0 | AP67: 0 | AQ67: 60 | AR67: 0 | AS67: 1 | AT67: 0 | AU67: 0 | AV67: 0 | AW67: 0 | AX67: 0 | AY67: 1 | AZ67: 0 | BA67: 0 | BB67: 0 | BC67: 30 | BD67: 30 | BE67: 30 | BF67: 0 | BG67: 1 | BH67: 12 | BI67: 0 | BJ67: 0 | BK67: 1 | BL67: 0 | BM67: 0 | BN67: 0 | BO67: 0 | BP67: 0 | BQ67: 0 | BR67: 0 | BS67: 1 | BT67: 0 | BU67: Literature & Languages | BV67: postcolonial literature | BW67: postcolonial literature | BX67: 3 | BY67: 3 | BZ67: 5 | CA67: 5 | CB67: 5 | CC67: 5 | CD67: 5 | CE67: 5 | CF67: 5 | CG67: 5 | CH67: 5 | CI67: 5
A68: 67 | B68: 4 | C68: 3 | D68: 5 | E68: 80 | F68: 40 | G68: 30 | H68: 50 | I68: 7 | J68: 2 | K68: 12 | L68: 4 | M68: 23.3 | N68: 0 | O68: 0 | P68: 1 | Q68: 4 | R68: 3 | S68: 3 | T68: 2 | U68: 3 | V68: 4 | W68: 3 | X68: 4 | Y68: 5 | Z68: 5 | AA68: 4 | AB68: 5 | AC68: 4 | AD68: 5 | AE68: 5 | AF68: 3.333333333 | AG68: 4 | AH68: 3.333333333 | AI68: 4.666666667 | AJ68: 4.333333333 | AK68: 0 | AL68: 0 | AM68: 1 | AN68: 0 | AO68: 0 | AP68: 0 | AQ68: 43 | AR68: 1 | AS68: 0 | AT68: 1 | AU68: 0 | AV68: 0 | AW68: 0 | AX68: 0 | AY68: 1 | AZ68: 0 | BA68: 0 | BB68: 0 | BC68: 20 | BD68: 20 | BE68: 3 | BF68: 0 | BG68: 1 | BH68: 8 | BI68: 0 | BJ68: 0 | BK68: 1 | BL68: 0 | BM68: 2 | BN68: 0 | BO68: 0 | BP68: 0 | BQ68: 0 | BR68: 0 | BS68: 0 | BT68: 1 | BU68: Geography | BV68: geology | BW68: geography | BX68: 4 | BY68: 3 | BZ68: 4 | CA68: 4 | CB68: 5 | CC68: 5 | CD68: 4 | CE68: 4 | CF68: 5 | CG68: 5 | CH68: 5 | CI68: 4.625
A69: 68 | B69: 3 | C69: 2 | D69: 5 | E69: 5 | F69: 3 | G69: 0 | H69: 1 | I69: 0 | J69: 0 | K69: 0 | L69: 0 | M69: 1.6 | N69: 0 | O69: 1 | P69: 0 | Q69: 5 | R69: 5 | S69: 4 | T69: 5 | U69: 3 | V69: 1 | W69: 5 | X69: 5 | Y69: 4 | Z69: 4 | AA69: 4 | AB69: 2 | AC69: 2 | AD69: 3 | AE69: 2 | AF69: 4.666666667 | AG69: 3.333333333 | AH69: 3.666666667 | AI69: 3.666666667 | AJ69: 2.666666667 | AK69: 0 | AL69: 0 | AM69: 0 | AN69: 0 | AO69: 0 | AP69: 0 | AQ69: 30 | AR69: 0 | AS69: 0 | AT69: 0 | AU69: 1 | AV69: 0 | AW69: 0 | AX69: 0 | AY69: 0 | AZ69: 0 | BA69: 0 | BB69: 1 | BC69: 3 | BD69: 3 | BE69: 3 | BF69: 0 | BG69: 1 | BH69: 6 | BI69: 0 | BJ69: 1 | BK69: 0 | BL69: 0 | BM69: 0 | BN69: 1 | BO69: 1 | BP69: 1 | BQ69: 0 | BR69: 0 | BS69: 0 | BT69: 0 | BU69: Economics | BV69: labor economics | BW69: econoimcs | BX69: 3 | BY69: 3 | BZ69: 5 | CA69: 3 | CB69: 2 | CC69: 4 | CD69: 2 | CE69: 3 | CF69: 2 | CG69: 5 | CH69: 4 | CI69: 3.125
A70: 69 | B70: 5 | C70: 2 | D70: 13 | E70: 3 | F70: 8 | G70: 1 | H70: 6 | I70: 2 | J70: 0 | K70: 2 | L70: 1 | M70: 3.8 | N70: 1 | O70: 1 | P70: 0 | Q70: 3 | R70: 4 | S70: 5 | T70: 4 | U70: 5 | V70: 5 | W70: 5 | X70: 5 | Y70: 5 | Z70: 5 | AA70: 2 | AB70: 4 | AC70: 4 | AD70: 4 | AE70: 4 | AF70: 3 | AG70: 4.666666667 | AH70: 4.666666667 | AI70: 4.666666667 | AJ70: 4.333333333 | AK70: 0 | AL70: 1 | AM70: 0 | AN70: 1 | AO70: 0 | AP70: 0 | AQ70: 37 | AR70: 0 | AS70: 0 | AT70: 0 | AU70: 1 | AV70: 0 | AW70: 0 | AX70: 0 | AY70: 0 | AZ70: 0 | BA70: 0 | BB70: 1 | BC70: 6 | BD70: 6 | BE70: 6 | BF70: 0 | BG70: 1 | BH70: 22 | BI70: 0 | BJ70: 0 | BK70: 0 | BL70: 1 | BM70: 2 | BN70: 1 | BO70: 3 | BP70: 1 | BQ70: 0 | BR70: 0 | BS70: 0 | BT70: 0 | BU70: Economics | BV70: labor economics | BW70: economics | BX70: 1 | BY70: 3 | BZ70: 4 | CA70: 2 | CB70: 2 | CC70: 3 | CD70: 2 | CE70: 3 | CF70: 4 | CG70: 1 | CH70: 3 | CI70: 2.5
A71: 70 | B71: 10 | C71: 0 | D71: 10 | E71: 10 | F71: 10 | G71: 0 | H71: 5 | I71: 0 | J71: 0 | K71: 0 | L71: 0 | M71: 3.5 | N71: 0 | O71: 1 | P71: 0 | Q71: 3 | R71: 2 | S71: 3 | T71: 3 | U71: 4 | V71: 2 | W71: 5 | X71: 3 | Y71: 4 | Z71: 3 | AA71: 3 | AB71: 3 | AC71: 2 | AD71: 4 | AE71: 3 | AF71: 3 | AG71: 2.333333333 | AH71: 3.333333333 | AI71: 3.333333333 | AJ71: 3.666666667 | AK71: 0 | AL71: 0 | AM71: 0 | AN71: 0 | AO71: 0 | AP71: 0 | AQ71: 37 | AR71: 1 | AS71: 1 | AT71: 0 | AU71: 0 | AV71: 0 | AW71: 0 | AX71: 0 | AY71: 1 | AZ71: 0 | BA71: 0 | BB71: 0 | BC71: 14 | BD71: 10 | BE71: 7 | BF71: 1 | BG71: 1 | BH71: 7 | BI71: 0 | BJ71: 0 | BK71: 0 | BL71: 1 | BM71: 0 | BN71: 1 | BO71: 2 | BP71: 0 | BQ71: 0 | BR71: 0 | BS71: 0 | BT71: 1 | BU71: Archaeology | BV71: archaeology | BW71: archaeology | BX71: 3 | BY71: 3 | BZ71: 3 | CA71: 3 | CB71: 3 | CC71: 3 | CD71: 3 | CE71: 3 | CF71: 3 | CG71: 3 | CH71: 3 | CI71: 3
A72: 71 | B72: 6 | C72: 1 | D72: 8 | E72: 4 | F72: 1 | G72: 1 | H72: 2 | I72: 0 | J72: 0 | K72: 0 | L72: 0 | M72: 1.7 | N72: 1 | O72: 0 | P72: 0 | Q72: 3 | R72: 5 | S72: 5 | T72: 2 | U72: 1 | V72: 2 | W72: 5 | X72: 4 | Y72: 2 | Z72: 4 | AA72: 1 | AB72: 5 | AC72: 5 | AD72: 5 | AE72: 5 | AF72: 2 | AG72: 3.666666667 | AH72: 5 | AI72: 3.666666667 | AJ72: 3.666666667 | AK72: 0 | AL72: 1 | AM72: 0 | AN72: 0 | AO72: 0 | AP72: 0 | AQ72: 43 | AR72: 1 | AS72: 0 | AT72: 0 | AU72: 1 | AV72: 0 | AW72: 0 | AX72: 0 | AY72: 0 | AZ72: 0 | BA72: 0 | BB72: 1 | BC72: 21 | BD72: 7 | BE72: 2 | BF72: 0 | BG72: 1 | BH72: 7 | BI72: 0 | BJ72: 1 | BK72: 0 | BL72: 0 | BM72: 0 | BN72: 0 | BO72: 3 | BP72: 1 | BQ72: 0 | BR72: 0 | BS72: 0 | BT72: 0 | BU72: Commerce | BV72: banking and corporate | BW72: banking | BX72: 2 | BY72: 3 | BZ72: 5 | CA72: 4 | CB72: 1 | CC72: 1 | CD72: 1 | CE72: 3 | CF72: 3 | CG72: 5 | CH72: 5 | CI72: 2.875
A73: 72 | B73: 15 | C73: 8 | D73: 0 | E73: 15 | F73: 1 | G73: 1 | H73: 0 | I73: 0 | J73: 0 | K73: 3 | L73: 0 | M73: 2.8 | N73: 0 | O73: 0 | P73: 1 | Q73: 3 | R73: 5 | S73: 4 | T73: 1 | U73: 2 | V73: 2 | W73: 3 | X73: 4 | Y73: 4 | Z73: 3 | AA73: 3 | AB73: 4 | AC73: 2 | AD73: 3 | AE73: 4 | AF73: 2.333333333 | AG73: 3.333333333 | AH73: 3 | AI73: 4 | AJ73: 3 | AK73: 0 | AL73: 0 | AM73: 0 | AN73: 1 | AO73: 0 | AP73: 0 | AQ73: 57 | AR73: 1 | AS73: 1 | AT73: 0 | AU73: 0 | AV73: 0 | AW73: 0 | AX73: 0 | AY73: 1 | AZ73: 0 | BA73: 0 | BB73: 0 | BC73: 36 | BD73: 33 | BE73: 21 | BF73: 0 | BG73: 1 | BH73: 11 | BI73: 0 | BJ73: 1 | BK73: 0 | BL73: 0 | BM73: 4 | BN73: 1 | BO73: 0 | BP73: 0 | BQ73: 0 | BR73: 0 | BS73: 1 | BT73: 0 | BU73: Literature & Languages | BV73: morphology and syntax | BW73: morphology and syntax | BX73: 3 | BY73: 1 | BZ73: 5 | CA73: 4 | CB73: 5 | CC73: 5 | CD73: 5 | CE73: 3 | CF73: 4 | CG73: 4 | CH73: 2 | CI73: 4
A74: 73 | B74: 6 | C74: 2 | D74: 3 | E74: 4 | F74: 0 | G74: 3 | H74: 20 | I74: 0 | J74: 0 | K74: 0 | L74: 0 | M74: 3.2 | N74: 1 | O74: 0 | P74: 0 | Q74: 4 | R74: 4 | S74: 3 | T74: 2 | U74: 1 | V74: 4 | W74: 3 | X74: 2 | Y74: 3 | Z74: 3 | AA74: 3 | AB74: 3 | AC74: 4 | AD74: 4 | AE74: 4 | AF74: 3 | AG74: 3.666666667 | AH74: 3.333333333 | AI74: 2.666666667 | AJ74: 3 | AK74: 0 | AL74: 0 | AM74: 0 | AN74: 0 | AO74: 0 | AP74: 0 | AQ74: 30 | AR74: 0 | AS74: 0 | AT74: 0 | AU74: 1 | AV74: 0 | AW74: 0 | AX74: 0 | AY74: 0 | AZ74: 0 | BA74: 0 | BB74: 1 | BC74: 6 | BD74: 10 | BE74: 3 | BF74: 0 | BG74: 1 | BH74: 14 | BI74: 0 | BJ74: 1 | BK74: 0 | BL74: 0 | BM74: 0 | BN74: 1 | BO74: 1 | BP74: 0 | BQ74: 0 | BR74: 0 | BS74: 1 | BT74: 0 | BU74: Political Science | BV74: political science | BW74: political science | BX74: 3 | BY74: 1 | BZ74: 5 | CA74: 5 | CB74: 5 | CC74: 5 | CD74: 5 | CE74: 5 | CF74: 5 | CG74: 5 | CH74: 5 | CI74: 5
A75: 74 | B75: 8 | C75: 0 | D75: 1 | E75: 8 | F75: 8 | G75: 0 | H75: 4 | I75: 0 | J75: 0 | K75: 0 | L75: 2 | M75: 2.3 | N75: 0 | O75: 1 | P75: 0 | Q75: 4 | R75: 3 | S75: 4 | T75: 3 | U75: 4 | V75: 2 | W75: 4 | X75: 4 | Y75: 4 | Z75: 4 | AA75: 3 | AB75: 2 | AC75: 3 | AD75: 2 | AE75: 3 | AF75: 3.333333333 | AG75: 3 | AH75: 3.666666667 | AI75: 3.333333333 | AJ75: 3 | AK75: 0 | AL75: 0 | AM75: 0 | AN75: 1 | AO75: 0 | AP75: 1 | AQ75: 42 | AR75: 1 | AS75: 0 | AT75: 0 | AU75: 0 | AV75: 0 | AW75: 1 | AX75: 0 | AY75: 0 | AZ75: 0 | BA75: 0 | BB75: 1 | BC75: 19 | BD75: 10 | BE75: 7 | BF75: 1 | BG75: 1 | BH75: 6 | BI75: 1 | BJ75: 0 | BK75: 0 | BL75: 0 | BM75: 8 | BN75: 1 | BO75: 2 | BP75: 1 | BQ75: 0 | BR75: 0 | BS75: 0 | BT75: 1 | BU75: Economics | BV75: applied economics | BW75: economics | BX75: 3 | BY75: 4 | BZ75: 1 | CA75: 2 | CB75: 3 | CC75: 2 | CD75: 3 | CE75: 3 | CF75: 2 | CG75: 4 | CH75: 2 | CI75: 2.625
A76: 75 | B76: 4 | C76: 0 | D76: 6 | E76: 3 | F76: 3 | G76: 2 | H76: 2 | I76: 0 | J76: 0 | K76: 1 | L76: 0 | M76: 1.7 | N76: 1 | O76: 0 | P76: 0 | Q76: 5 | R76: 1 | S76: 1 | T76: 3 | U76: 5 | V76: 1 | W76: 1 | X76: 1 | Y76: 5 | Z76: 5 | AA76: 1 | AB76: 1 | AC76: 1 | AD76: 5 | AE76: 3 | AF76: 3 | AG76: 2.333333333 | AH76: 1 | AI76: 2.333333333 | AJ76: 4.333333333 | AK76: 0 | AL76: 0 | AM76: 0 | AN76: 0 | AO76: 1 | AP76: 0 | AQ76: 34 | AR76: 0 | AS76: 0 | AT76: 0 | AU76: 1 | AV76: 0 | AW76: 0 | AX76: 0 | AY76: 1 | AZ76: 0 | BA76: 0 | BB76: 1 | BC76: 9 | BD76: 11 | BE76: 9 | BF76: 0 | BG76: 0 | BH76: 15 | BI76: 1 | BJ76: 0 | BK76: 0 | BL76: 0 | BM76: 0 | BN76: 1 | BO76: 2 | BP76: 1 | BQ76: 0 | BR76: 0 | BS76: 0 | BT76: 0 | BU76: Law | BV76: Law | BW76: Law | BX76: 5 | BY76: 1 | BZ76: 3 | CA76: 5 | CB76: 1 | CC76: 1 | CD76: 5 | CE76: 5 | CF76: 5 | CG76: 1 | CH76: 5 | CI76: 3.5
A77: 76 | B77: 1 | C77: 0 | D77: 22 | E77: 22 | F77: 22 | G77: 14 | H77: 19 | I77: 0 | J77: 0 | K77: 2 | L77: 0 | M77: 10.1 | N77: 0 | O77: 1 | P77: 0 | Q77: 5 | R77: 5 | S77: 3 | T77: 5 | U77: 5 | V77: 5 | W77: 5 | X77: 5 | Y77: 5 | Z77: 3 | AA77: 4 | AB77: 3 | AC77: 3 | AD77: 4 | AE77: 3 | AF77: 4.666666667 | AG77: 4.333333333 | AH77: 3.666666667 | AI77: 4.333333333 | AJ77: 4 | AK77: 0 | AL77: 0 | AM77: 0 | AN77: 0 | AO77: 0 | AP77: 0 | AQ77: 35 | AR77: 1 | AS77: 0 | AT77: 0 | AU77: 0 | AV77: 1 | AW77: 0 | AX77: 0 | AY77: 1 | AZ77: 0 | BA77: 0 | BB77: 0 | BC77: 4 | BD77: 2 | BE77: 2 | BF77: 1 | BG77: 1 | BH77: 12 | BI77: 0 | BJ77: 1 | BK77: 0 | BL77: 0 | BM77: 5 | BN77: 1 | BO77: 0 | BP77: 0 | BQ77: 0 | BR77: 0 | BS77: 0 | BT77: 1 | BU77: Palaeontolgy | BV77: palaeontology | BW77: biology | BX77: 3 | BY77: 1 | BZ77: 5 | CA77: 4 | CB77: 5 | CC77: 5 | CD77: 5 | CE77: 5 | CF77: 5 | CG77: 5 | CH77: 5 | CI77: 4.875
A78: 77 | B78: 0 | C78: 0 | D78: 1 | E78: 1 | F78: 1 | G78: 11 | H78: 8 | I78: 0 | J78: 0 | K78: 0 | L78: 0 | M78: 2.2 | N78: 0 | O78: 1 | P78: 0 | Q78: 4 | R78: 5 | S78: 3 | T78: 3 | U78: 2 | V78: 3 | W78: 4 | X78: 3 | Y78: 4 | Z78: 5 | AA78: 5 | AB78: 4 | AC78: 3 | AD78: 4 | AE78: 2 | AF78: 4 | AG78: 4.333333333 | AH78: 3.333333333 | AI78: 3.666666667 | AJ78: 2.666666667 | AK78: 0 | AL78: 0 | AM78: 0 | AN78: 0 | AO78: 0 | AP78: 0 | AQ78: 32 | AR78: 1 | AS78: 1 | AT78: 0 | AU78: 0 | AV78: 0 | AW78: 0 | AX78: 0 | AY78: 1 | AZ78: 0 | BA78: 0 | BB78: 0 | BC78: 11 | BD78: 4 | BE78: 4 | BF78: 1 | BG78: 0 | BH78: 13 | BI78: 1 | BJ78: 0 | BK78: 0 | BL78: 0 | BM78: 0 | BN78: 0 | BO78: 2 | BP78: 0 | BQ78: 0 | BR78: 0 | BS78: 0 | BT78: 1 | BU78: Palaeontology | BV78: palaeontology | BW78: pevolutionary theory | BX78: 4 | BY78: 3 | BZ78: 5 | CA78: 2 | CB78: 4 | CC78: 4 | CD78: 5 | CE78: 5 | CF78: 5 | CG78: 5 | CH78: 5 | CI78: 4.375
A79: 78 | B79: 100 | C79: 20 | D79: 50 | E79: 30 | F79: 40 | G79: 40 | H79: 50 | I79: 0 | J79: 1 | K79: 4 | L79: 0 | M79: 23.5 | N79: 0 | O79: 1 | P79: 0 | Q79: 5 | R79: 1 | S79: 4 | T79: 5 | U79: 1 | V79: 2 | W79: 5 | X79: 3 | Y79: 4 | Z79: 1 | AA79: 5 | AB79: 5 | AC79: 3 | AD79: 5 | AE79: 4 | AF79: 5 | AG79: 1.333333333 | AH79: 4 | AI79: 4 | AJ79: 3.333333333 | AK79: 1 | AL79: 0 | AM79: 0 | AN79: 0 | AO79: 0 | AP79: 0 | AQ79: 65 | AR79: 1 | AS79: 0 | AT79: 0 | AU79: 0 | AV79: 0 | AW79: 0 | AX79: 1 | AY79: 1 | AZ79: 0 | BA79: 0 | BB79: 0 | BC79: 20 | BD79: 20 | BE79: 5 | BF79: 1 | BG79: 1 | BH79: 1 | BI79: 1 | BJ79: 0 | BK79: 1 | BL79: 0 | BM79: 0 | BN79: 1 | BO79: 3 | BP79: 1 | BQ79: 0 | BR79: 0 | BS79: 0 | BT79: 0 | BU79: Commerce | BV79: Strategy and business ethics | BW79: strategy | BX79: 3 | BY79: 3 | BZ79: 5 | CA79: 3 | CB79: 5 | CC79: 3 | CD79: 4 | CE79: 1 | CF79: 3 | CG79: 3 | CH79: 3 | CI79: 3.125
A80: 79 | B80: 4 | C80: 3 | D80: 100 | E80: 400 | F80: 400 | G80: 20 | H80: 150 | I80: 1 | J80: 2 | K80: 0 | L80: 0 | M80: 107.6 | N80: 0 | O80: 1 | P80: 0 | Q80: 5 | R80: 5 | S80: 1 | T80: 3 | U80: 5 | V80: 5 | W80: 5 | X80: 3 | Y80: 5 | Z80: 4 | AA80: 2 | AB80: 3 | AC80: 3 | AD80: 3 | AE80: 5 | AF80: 3.333333333 | AG80: 4.666666667 | AH80: 3 | AI80: 3.666666667 | AJ80: 4.333333333 | AK80: 0 | AL80: 0 | AM80: 0 | AN80: 0 | AO80: 0 | AP80: 0 | AQ80: 45 | AR80: 1 | AS80: 0 | AT80: 0 | AU80: 0 | AV80: 0 | AW80: 1 | AX80: 0 | AY80: 0 | AZ80: 0 | BA80: 0 | BB80: 1 | BC80: 20 | BD80: 20 | BE80: 1 | BF80: 0 | BG80: 1 | BH80: 20 | BI80: 0 | BJ80: 0 | BK80: 1 | BL80: 0 | BM80: 0 | BN80: 1 | BO80: 1 | BP80: 0 | BQ80: 0 | BR80: 0 | BS80: 0 | BT80: 1 | BU80: Mathematics | BV80: math | BW80: math | BX80: 3 | BY80: 1 | BZ80: 5 | CA80: 5 | CB80: 3 | CC80: 5 | CD80: 5 | CE80: 3 | CF80: 3 | CG80: 3 | CH80: 3 | CI80: 3.75
A81: 80 | B81: 0 | C81: 0 | D81: 0 | E81: 7 | F81: 7 | G81: 3 | H81: 3 | I81: 0 | J81: 0 | K81: 0 | L81: 0 | M81: 2 | N81: 1 | O81: 0 | P81: 0 | Q81: 5 | R81: 5 | S81: 4 | T81: 3 | U81: 5 | V81: 5 | W81: 5 | X81: 4 | Y81: 5 | Z81: 5 | AA81: 4 | AB81: 4 | AC81: 3 | AD81: 2 | AE81: 2 | AF81: 4 | AG81: 5 | AH81: 4 | AI81: 4.333333333 | AJ81: 3 | AK81: 0 | AL81: 0 | AM81: 1 | AN81: 0 | AO81: 0 | AP81: 0 | AQ81: 33 | AR81: 1 | AS81: 1 | AT81: 0 | AU81: 0 | AV81: 0 | AW81: 0 | AX81: 0 | AY81: 0 | AZ81: 0 | BA81: 1 | BB81: 0 | BC81: 2 | BD81: 10 | BE81: 1 | BF81: 1 | BG81: 1 | BH81: 10 | BI81: 0 | BJ81: 1 | BK81: 0 | BL81: 0 | BM81: 2 | BN81: 0 | BO81: 3 | BP81: 0 | BQ81: 0 | BR81: 0 | BS81: 0 | BT81: 1 | BU81: Chemistry | BV81: chemistry | BW81: chemistry | BX81: 5 | BY81: 1 | BZ81: 4 | CA81: 3 | CB81: 5 | CC81: 4 | CD81: 4 | CE81: 3 | CF81: 2 | CG81: 2 | CH81: 2 | CI81: 3.125
A82: 81 | B82: 20 | C82: 5 | D82: 0 | E82: 65 | F82: 30 | G82: 3 | H82: 30 | I82: 0 | J82: 0 | K82: 0 | L82: 0 | M82: 13.3 | N82: 0 | O82: 0 | P82: 1 | Q82: 4 | R82: 5 | S82: 3 | T82: 4 | U82: 4 | V82: 4 | W82: 4 | X82: 4 | Y82: 4 | Z82: 4 | AA82: 4 | AB82: 4 | AC82: 3 | AD82: 4 | AE82: 3 | AF82: 4 | AG82: 4.333333333 | AH82: 3.333333333 | AI82: 4 | AJ82: 3.666666667 | AK82: 0 | AL82: 0 | AM82: 0 | AN82: 0 | AO82: 0 | AP82: 0 | AQ82: 48 | AR82: 1 | AS82: 0 | AT82: 0 | AU82: 1 | AV82: 0 | AW82: 0 | AX82: 0 | AY82: 0 | AZ82: 0 | BA82: 0 | BB82: 1 | BC82: 12 | BD82: 12 | BE82: 7 | BF82: 1 | BG82: 1 | BH82: 17 | BI82: 0 | BJ82: 0 | BK82: 1 | BL82: 0 | BM82: 12 | BN82: 1 | BO82: 2 | BP82: 0 | BQ82: 0 | BR82: 0 | BS82: 0 | BT82: 1 | BU82: Chemistry | BV82: analytical chemistry | BW82: chemistry | BX82: 2 | BY82: 3 | BZ82: 4 | CA82: 4 | CB82: 4 | CC82: 5 | CD82: 3 | CE82: 3 | CF82: 3 | CG82: 3 | CH82: 3 | CI82: 3.5
A83: 82 | B83: 9 | C83: 0 | D83: 0 | E83: 0 | F83: 0 | G83: 0 | H83: 0 | I83: 0 | J83: 0 | K83: 0 | L83: 0 | M83: 0 | N83: 0 | O83: 1 | P83: 0 | Q83: 4 | R83: 4 | S83: 3 | T83: 4 | U83: 2 | V83: 3 | W83: 2 | X83: 4 | Y83: 4 | Z83: 3 | AA83: 2 | AB83: 2 | AC83: 2 | AD83: 4 | AE83: 3 | AF83: 3.333333333 | AG83: 3.333333333 | AH83: 2.333333333 | AI83: 3.333333333 | AJ83: 3 | AK83: 0 | AL83: 0 | AM83: 0 | AN83: 0 | AO83: 0 | AP83: 0 | AQ83: 54 | AR83: 0 | AS83: 1 | AT83: 0 | AU83: 0 | AV83: 0 | AW83: 0 | AX83: 0 | AY83: 1 | AZ83: 0 | BA83: 0 | BB83: 0 | BC83: 30 | BD83: 5 | BE83: 5 | BF83: 0 | BG83: 1 | BH83: 11 | BI83: 0 | BJ83: 1 | BK83: 0 | BL83: 0 | BM83: 0 | BN83: 0 | BO83: 2 | BP83: 0 | BQ83: 0 | BR83: 1 | BS83: 0 | BT83: 0 | BU83: Psychology | BV83: organizational and social psychology | BW83: organizational psychology | BX83: 5 | BY83: 3 | BZ83: 5 | CA83: 4 | CB83: 5 | CC83: 4 | CD83: 4 | CE83: 4 | CF83: 4 | CG83: 4 | CH83: 4 | CI83: 4.125
A84: 83 | B84: 15 | C84: 3 | D84: 7 | E84: 8 | F84: 9 | G84: 0 | H84: 11 | I84: 0 | J84: 1 | K84: 2 | L84: 0 | M84: 4.1 | N84: 1 | O84: 0 | P84: 0 | Q84: 1 | R84: 2 | S84: 3 | T84: 5 | U84: 4 | V84: 3 | W84: 2 | X84: 2 | Y84: 3 | Z84: 2 | AA84: 2 | AB84: 3 | AC84: 4 | AD84: 4 | AE84: 5 | AF84: 2.666666667 | AG84: 2.333333333 | AH84: 3 | AI84: 2.666666667 | AJ84: 4.333333333 | AK84: 0 | AL84: 1 | AM84: 0 | AN84: 0 | AO84: 0 | AP84: 0 | AQ84: 27 | AR84: 0 | AS84: 0 | AT84: 0 | AU84: 0 | AV84: 1 | AW84: 0 | AX84: 0 | AY84: 1 | AZ84: 0 | BA84: 0 | BB84: 0 | BC84: 6 | BD84: 6 | BE84: 6 | BF84: 0 | BG84: 0 | BH84: 15 | BI84: 0 | BJ84: 0 | BK84: 0 | BL84: 1 | BM84: 2 | BN84: 0 | BO84: 0 | BP84: 0 | BQ84: 0 | BR84: 1 | BS84: 0 | BT84: 0 | BU84: Psychology | BV84: psychology | BW84: psychology | BX84: 5 | BY84: 1 | BZ84: 1 | CA84: 3 | CB84: 2 | CC84: 2 | CD84: 3 | CE84: 3 | CF84: 2 | CG84: 2 | CH84: 2 | CI84: 2.375
A85: 84 | B85: 7 | C85: 2 | D85: 6 | E85: 21 | F85: 10 | G85: 1 | H85: 20 | I85: 0 | J85: 0 | K85: 2 | L85: 0 | M85: 6.2 | N85: 0 | O85: 0 | P85: 1 | Q85: 3 | R85: 2 | S85: 4 | T85: 3 | U85: 3 | V85: 2 | W85: 4 | X85: 4 | Y85: 4 | Z85: 3 | AA85: 4 | AB85: 4 | AC85: 4 | AD85: 4 | AE85: 3 | AF85: 3.333333333 | AG85: 2.333333333 | AH85: 4 | AI85: 4 | AJ85: 3.333333333 | AK85: 1 | AL85: 1 | AM85: 0 | AN85: 0 | AO85: 0 | AP85: 0 | AQ85: 43 | AR85: 1 | AS85: 1 | AT85: 0 | AU85: 0 | AV85: 0 | AW85: 0 | AX85: 0 | AY85: 1 | AZ85: 1 | BA85: 0 | BB85: 0 | BC85: 16 | BD85: 19 | BE85: 14 | BF85: 0 | BG85: 0 | BH85: 9 | BI85: 0 | BJ85: 0 | BK85: 1 | BL85: 0 | BM85: 0 | BN85: 1 | BO85: 2 | BP85: 0 | BQ85: 0 | BR85: 0 | BS85: 0 | BT85: 1 | BU85: Computational & Applied Mathematics | BV85: mathematics/computer science | BW85: mathematics/computer science | BX85: 4 | BY85: 1 | BZ85: 4 | CA85: 4 | CB85: 4 | CC85: 3 | CD85: 3 | CE85: 4 | CF85: 4 | CG85: 4 | CH85: 4 | CI85: 3.75
A86: 85 | B86: 1 | C86: 0 | D86: 0 | E86: 0 | F86: 0 | G86: 0 | H86: 1 | I86: 2 | J86: 0 | K86: 1 | L86: 1 | M86: 0.5 | N86: 0 | O86: 0 | P86: 5 | Q86: 1 | R86: 5 | S86: 3 | T86: 3 | U86: 2 | V86: 5 | W86: 5 | X86: 5 | Y86: 4 | Z86: 5 | AA86: 1 | AB86: 3 | AC86: 3 | AD86: 3 | AE86: 3 | AF86: 1.666666667 | AG86: 5 | AH86: 3.666666667 | AI86: 4 | AJ86: 2.666666667 | AK86: 0 | AL86: 0 | AM86: 0 | AN86: 0 | AO86: 0 | AP86: 0 | AQ86: 47 | AR86: 1 | AS86: 1 | AT86: 0 | AU86: 0 | AV86: 0 | AW86: 0 | AX86: 0 | AY86: 0 | AZ86: 0 | BA86: 1 | BB86: 0 | BC86: 14 | BD86: 7 | BE86: 0 | BF86: 0 | BG86: 0 | BH86: 14 | BI86: 1 | BJ86: 0 | BK86: 0 | BL86: 0 | BM86: 0 | BN86: 1 | BO86: 2 | BP86: 0 | BQ86: 0 | BR86: 0 | BS86: 1 | BT86: 0 | BU86: Media | BV86: media | BW86: media | BX86: 5 | BY86: 5 | BZ86: 5 | CA86: 5 | CB86: 5 | CC86: 5 | CD86: 5 | CE86: 5 | CF86: 5 | CG86: 5 | CH86: 5 | CI86: 5
A87: 86 | B87: 6 | C87: 0 | D87: 2 | E87: 1 | F87: 0 | G87: 2 | H87: 3 | I87: 0 | J87: 0 | K87: 1 | L87: 0 | M87: 0.9 | N87: 1 | O87: 0 | P87: 0 | Q87: 3 | R87: 4 | S87: 4 | T87: 4 | U87: 3 | V87: 2 | W87: 1 | X87: 5 | Y87: 5 | Z87: 3 | AA87: 1 | AB87: 3 | AC87: 1 | AD87: 3 | AE87: 2 | AF87: 2.666666667 | AG87: 3 | AH87: 2 | AI87: 4.333333333 | AJ87: 2.666666667 | AK87: 0 | AL87: 0 | AM87: 0 | AN87: 0 | AO87: 0 | AP87: 1 | AQ87: 43 | AR87: 1 | AS87: 1 | AT87: 0 | AU87: 0 | AV87: 0 | AW87: 0 | AX87: 0 | AY87: 0 | AZ87: 0 | BA87: 0 | BB87: 1 | BC87: 17 | BD87: 7 | BE87: 7 | BF87: 0 | BG87: 0 | BH87: 11 | BI87: 0 | BJ87: 1 | BK87: 0 | BL87: 0 | BM87: 0 | BN87: 1 | BO87: 2 | BP87: 0 | BQ87: 0 | BR87: 0 | BS87: 1 | BT87: 0 | BU87: International Relations | BV87: international politics | BW87: international relations | BX87: 5 | BY87: 1 | BZ87: 4 | CA87: 5 | CB87: 4 | CC87: 4 | CD87: 4 | CE87: 5 | CF87: 5 | CG87: 3 | CH87: 2 | CI87: 4
A88: 87 | B88: 6 | C88: 0 | D88: 0 | E88: 1 | F88: 0 | G88: 1 | H88: 3 | I88: 0 | J88: 0 | K88: 1 | L88: 0 | M88: 0.6 | N88: 1 | O88: 0 | P88: 0 | Q88: 3 | R88: 2 | S88: 2 | T88: 2 | U88: 3 | V88: 2 | W88: 3 | X88: 2 | Y88: 4 | Z88: 2 | AA88: 2 | AB88: 1 | AC88: 2 | AD88: 4 | AE88: 2 | AF88: 2.333333333 | AG88: 2 | AH88: 2.333333333 | AI88: 2.333333333 | AJ88: 3 | AK88: 0 | AL88: 1 | AM88: 0 | AN88: 0 | AO88: 0 | AP88: 0 | AQ88: 38 | AR88: 0 | AS88: 1 | AT88: 0 | AU88: 0 | AV88: 0 | AW88: 0 | AX88: 0 | AY88: 0 | AZ88: 0 | BA88: 0 | BB88: 1 | BC88: 13 | BD88: 4 | BE88: 4 | BF88: 0 | BG88: 0 | BH88: 8 | BI88: 1 | BJ88: 0 | BK88: 0 | BL88: 0 | BM88: 0 | BN88: 0 | BO88: 0 | BP88: 0 | BQ88: 0 | BR88: 0 | BS88: 1 | BT88: 0 | BU88: International Relations | BV88: international relations | BW88: international relations | BX88: 5 | BY88: 4 | BZ88: 3 | CA88: 3 | CB88: 4 | CC88: 4 | CD88: 3 | CE88: 4 | CF88: 5 | CG88: 3 | CH88: 5 | CI88: 3.875
A89: 88 | B89: 5 | C89: 0 | D89: 5 | E89: 40 | F89: 40 | G89: 2 | H89: 10 | I89: 0 | J89: 0 | K89: 4 | L89: 0 | M89: 10.1 | N89: 0 | O89: 1 | P89: 0 | Q89: 3 | R89: 4 | S89: 3 | T89: 3 | U89: 5 | V89: 2 | W89: 4 | X89: 4 | Y89: 4 | Z89: 2 | AA89: 3 | AB89: 3 | AC89: 2 | AD89: 3 | AE89: 3 | AF89: 3 | AG89: 2.666666667 | AH89: 3 | AI89: 3.666666667 | AJ89: 3.666666667 | AK89: 0 | AL89: 1 | AM89: 0 | AN89: 0 | AO89: 0 | AP89: 0 | AQ89: 46 | AR89: 1 | AS89: 0 | AT89: 1 | AU89: 0 | AV89: 0 | AW89: 0 | AX89: 0 | AY89: 1 | AZ89: 0 | BA89: 0 | BB89: 0 | BC89: 22 | BD89: 22 | BE89: 3 | BF89: 0 | BG89: 1 | BH89: 5 | BI89: 0 | BJ89: 0 | BK89: 0 | BL89: 1 | BM89: 0 | BN89: 1 | BO89: 2 | BP89: 0 | BQ89: 0 | BR89: 0 | BS89: 0 | BT89: 1 | BU89: Geography | BV89: air and water pollution | BW89: geography/environment | BX89: 4 | BY89: 2 | BZ89: 5 | CA89: 4 | CB89: 5 | CC89: 3 | CD89: 3 | CE89: 4 | CF89: 4 | CG89: 3 | CH89: 4 | CI89: 3.75
A90: 89 | B90: 5 | C90: 1 | D90: 0 | E90: 2 | F90: 1 | G90: 4 | H90: 8 | I90: 0 | J90: 4 | K90: 0 | L90: 0 | M90: 2 | N90: 1 | O90: 0 | P90: 0 | Q90: 3 | R90: 4 | S90: 4 | T90: 2 | U90: 3 | V90: 3 | W90: 3 | X90: 4 | Y90: 3 | Z90: 3 | AA90: 2 | AB90: 2 | AC90: 3 | AD90: 3 | AE90: 3 | AF90: 2.333333333 | AG90: 3.333333333 | AH90: 3.333333333 | AI90: 3 | AJ90: 3 | AK90: 0 | AL90: 0 | AM90: 0 | AN90: 0 | AO90: 0 | AP90: 0 | AQ90: 64 | AR90: 0 | AS90: 1 | AT90: 0 | AU90: 0 | AV90: 0 | AW90: 0 | AX90: 0 | AY90: 1 | AZ90: 0 | BA90: 0 | BB90: 0 | BC90: 43 | BD90: 15 | BE90: 0 | BF90: 1 | BG90: 1 | BH90: 4 | BI90: 1 | BJ90: 0 | BK90: 0 | BL90: 0 | BM90: 11 | BN90: 1 | BO90: 0 | BP90: 0 | BQ90: 0 | BR90: 0 | BS90: 0 | BT90: 1 | BU90: Geography | BV90: supervision | BW90: environment | BX90: 5 | BY90: 4 | BZ90: 3 | CA90: 4 | CB90: 5 | CC90: 4 | CD90: 3 | CE90: 3 | CF90: 4 | CG90: 4 | CH90: 4 | CI90: 3.875
A91: 90 | B91: 0 | C91: 0 | D91: 0 | E91: 4 | F91: 4 | G91: 0 | H91: 3 | I91: 0 | J91: 0 | K91: 0 | L91: 0 | M91: 1.1 | N91: 0 | O91: 1 | P91: 0 | Q91: 4 | R91: 3 | S91: 3 | T91: 2 | U91: 3 | V91: 4 | W91: 4 | X91: 4 | Y91: 4 | Z91: 3 | AA91: 2 | AB91: 3 | AC91: 3 | AD91: 4 | AE91: 4 | AF91: 2.666666667 | AG91: 3.333333333 | AH91: 3.333333333 | AI91: 3.666666667 | AJ91: 3.666666667 | AK91: 1 | AL91: 0 | AM91: 0 | AN91: 0 | AO91: 0 | AP91: 0 | AQ91: 27 | AR91: 0 | AS91: 1 | AT91: 0 | AU91: 0 | AV91: 0 | AW91: 0 | AX91: 0 | AY91: 0 | AZ91: 0 | BA91: 0 | BB91: 1 | BC91: 1 | BD91: 1 | BE91: 1 | BF91: 0 | BG91: 0 | BH91: 8 | BI91: 0 | BJ91: 1 | BK91: 0 | BL91: 0 | BM91: 0 | BN91: 0 | BO91: 0 | BP91: 0 | BQ91: 0 | BR91: 0 | BS91: 0 | BT91: 1 | BU91: Mathematics | BV91: mathematics and financial mathematics | BW91: mathematics | BX91: 4 | BY91: 3 | BZ91: 4 | CA91: 4 | CB91: 3 | CC91: 2 | CD91: 2 | CE91: 2 | CF91: 3 | CG91: 2 | CH91: 2 | CI91: 2.5
A92: 91 | B92: 2 | C92: 0 | D92: 1 | E92: 0 | F92: 1 | G92: 1 | H92: 1 | I92: 0 | J92: 1 | K92: 1 | L92: 0 | M92: 0.6 | N92: 1 | O92: 0 | P92: 0 | Q92: 5 | R92: 5 | S92: 3 | T92: 1 | U92: 5 | V92: 3 | W92: 2 | X92: 3 | Y92: 4 | Z92: 1 | AA92: 2 | AB92: 2 | AC92: 3 | AD92: 2 | AE92: 3 | AF92: 2.666666667 | AG92: 3 | AH92: 2.666666667 | AI92: 3 | AJ92: 3.333333333 | AK92: 0 | AL92: 1 | AM92: 0 | AN92: 0 | AO92: 0 | AP92: 0 | AQ92: 67 | AR92: 1 | AS92: 1 | AT92: 0 | AU92: 0 | AV92: 0 | AW92: 0 | AX92: 0 | AY92: 1 | AZ92: 0 | BA92: 0 | BB92: 0 | BC92: 40 | BD92: 40 | BE92: 10 | BF92: 0 | BG92: 1 | BH92: 8 | BI92: 0 | BJ92: 0 | BK92: 1 | BL92: 0 | BM92: 0 | BN92: 1 | BO92: 0 | BP92: 0 | BQ92: 0 | BR92: 0 | BS92: 0 | BT92: 1 | BU92: Computer Science | BV92: computer science | BW92: computer science | BX92: 4 | BY92: 1 | BZ92: 5 | CA92: 2 | CB92: 3 | CC92: 3 | CD92: 1 | CE92: 1 | CF92: 3 | CG92: 1 | CH92: 4 | CI92: 2.25
A93: 92 | B93: 15 | C93: 8 | D93: 2 | E93: 80 | F93: 70 | G93: 7 | H93: 5 | I93: 0 | J93: 0 | K93: 2 | L93: 0 | M93: 17.4 | N93: 1 | O93: 0 | P93: 0 | Q93: 4 | R93: 3 | S93: 4 | T93: 1 | U93: 2 | V93: 3 | W93: 3 | X93: 3 | Y93: 4 | Z93: 3 | AA93: 2 | AB93: 3 | AC93: 2 | AD93: 4 | AE93: 4 | AF93: 2.333333333 | AG93: 3 | AH93: 3 | AI93: 3.333333333 | AJ93: 3.333333333 | AK93: 1 | AL93: 0 | AM93: 0 | AN93: 0 | AO93: 0 | AP93: 0 | AQ93: 69 | AR93: 1 | AS93: 0 | AT93: 1 | AU93: 0 | AV93: 0 | AW93: 0 | AX93: 0 | AY93: 1 | AZ93: 0 | BA93: 0 | BB93: 0 | BC93: 40 | BD93: 45 | BE93: 43 | BF93: 0 | BG93: 1 | BH93: 7 | BI93: 0 | BJ93: 0 | BK93: 1 | BL93: 0 | BM93: 0 | BN93: 0 | BO93: 0 | BP93: 0 | BQ93: 0 | BR93: 0 | BS93: 0 | BT93: 1 | BU93: Computational & Applied Mathematics | BV93: continuum mechanics | BW93: continuum mechanics | BX93: 4 | BY93: 4 | BZ93: 5 | CA93: 5 | CB93: 5 | CC93: 3 | CD93: 5 | CE93: 5 | CF93: 5 | CG93: 5 | CH93: 5 | CI93: 4.75
A94: 93 | B94: 0 | C94: 0 | D94: 0 | E94: 5 | F94: 5 | G94: 0 | H94: 5 | I94: 0 | J94: 0 | K94: 1 | L94: 0 | M94: 1.6 | N94: 0 | O94: 1 | P94: 0 | Q94: 3 | R94: 5 | S94: 4 | T94: 2 | U94: 5 | V94: 5 | W94: 5 | X94: 5 | Y94: 5 | Z94: 5 | AA94: 3 | AB94: 5 | AC94: 5 | AD94: 5 | AE94: 5 | AF94: 2.666666667 | AG94: 5 | AH94: 4.666666667 | AI94: 5 | AJ94: 5 | AK94: 0 | AL94: 0 | AM94: 0 | AN94: 0 | AO94: 1 | AP94: 0 | AQ94: 29 | AR94: 1 | AS94: 0 | AT94: 0 | AU94: 0 | AV94: 0 | AW94: 0 | AX94: 1 | AY94: 1 | AZ94: 0 | BA94: 0 | BB94: 1 | BC94: 5 | BD94: 4 | BE94: 1 | BF94: 1 | BG94: 1 | BH94: 7 | BI94: 0 | BJ94: 1 | BK94: 0 | BL94: 0 | BM94: 3 | BN94: 0 | BO94: 0 | BP94: 0 | BQ94: 0 | BR94: 0 | BS94: 0 | BT94: 1 | BU94: Statistics & Actuarial Science | BV94: biostatistics | BW94: biostatistics | BX94: 2 | BY94: 1 | BZ94: 1 | CA94: 4 | CB94: 3 | CC94: 4 | CD94: 4 | CE94: 3 | CF94: 3 | CG94: 2 | CH94: 3 | CI94: 3.25
A95: 94 | B95: 3 | C95: 1 | D95: 18 | E95: 18 | F95: 12 | G95: 8 | H95: 14 | I95: 0 | J95: 0 | K95: 0 | L95: 0 | M95: 7.1 | N95: 1 | O95: 0 | P95: 0 | Q95: 3 | R95: 3 | S95: 3 | T95: 5 | U95: 2 | V95: 1 | W95: 5 | X95: 2 | Y95: 3 | Z95: 4 | AA95: 4 | AB95: 3 | AC95: 3 | AD95: 3 | AE95: 2 | AF95: 4 | AG95: 2.666666667 | AH95: 3.666666667 | AI95: 2.666666667 | AJ95: 2.333333333 | AK95: 0 | AL95: 0 | AM95: 0 | AN95: 0 | AO95: 0 | AP95: 0 | AQ95: 60 | AR95: 1 | AS95: 1 | AT95: 0 | AU95: 0 | AV95: 0 | AW95: 0 | AX95: 0 | AY95: 1 | AZ95: 0 | BA95: 0 | BB95: 0 | BC95: 38 | BD95: 32 | BE95: 14 | BF95: 0 | BG95: 1 | BH95: 12 | BI95: 0 | BJ95: 0 | BK95: 1 | BL95: 0 | BM95: 0 | BN95: 0 | BO95: 1 | BP95: 0 | BQ95: 0 | BR95: 0 | BS95: 0 | BT95: 1 | BU95: Mathematics | BV95: mathematics | BW95: mathematics | BX95: 4 | BY95: 2 | BZ95: 4 | CA95: 4 | CB95: 5 | CC95: 5 | CD95: 5 | CE95: 5 | CF95: 5 | CG95: 5 | CH95: 5 | CI95: 4.875
A96: 95 | B96: 0 | C96: 0 | D96: 1 | E96: 0 | F96: 0 | G96: 0 | H96: 0 | I96: 0 | J96: 0 | K96: 1 | L96: 0 | M96: 0.2 | N96: 1 | O96: 0 | P96: 0 | Q96: 4 | R96: 4 | S96: 1 | T96: 3 | U96: 5 | V96: 2 | W96: 5 | X96: 2 | Y96: 4 | Z96: 2 | AA96: 3 | AB96: 2 | AC96: 2 | AD96: 2 | AE96: 2 | AF96: 3.333333333 | AG96: 2.666666667 | AH96: 2.666666667 | AI96: 2.666666667 | AJ96: 3 | AK96: 0 | AL96: 0 | AM96: 0 | AN96: 0 | AO96: 0 | AP96: 0 | AQ96: 33 | AR96: 0 | AS96: 1 | AT96: 0 | AU96: 0 | AV96: 0 | AW96: 0 | AX96: 0 | AY96: 0 | AZ96: 1 | BA96: 0 | BB96: 0 | BC96: 10 | BD96: 10 | BE96: 3 | BF96: 0 | BG96: 0 | BH96: 6 | BI96: 1 | BJ96: 0 | BK96: 0 | BL96: 0 | BM96: 0 | BN96: 1 | BO96: 2 | BP96: 1 | BQ96: 0 | BR96: 0 | BS96: 0 | BT96: 0 | BU96: Law | BV96: child law | BW96: family law | BX96: 2 | BY96: 1 | BZ96: 5 | CA96: 5 | CB96: 5 | CC96: 5 | CD96: 5 | CE96: 5 | CF96: 4 | CG96: 5 | CH96: 5 | CI96: 4.875
A97: 96 | B97: 25 | C97: 0 | D97: 6 | E97: 8 | F97: 5 | G97: 1 | H97: 2 | I97: 0 | J97: 1 | K97: 0 | L97: 0 | M97: 2.3 | N97: 1 | O97: 0 | P97: 0 | Q97: 3 | R97: 3 | S97: 1 | T97: 1 | U97: 2 | V97: 3 | W97: 2 | X97: 2 | Y97: 4 | Z97: 2 | AA97: 3 | AB97: 4 | AC97: 2 | AD97: 3 | AE97: 3 | AF97: 2.333333333 | AG97: 2.666666667 | AH97: 1.666666667 | AI97: 3.333333333 | AJ97: 2.666666667 | AK97: 0 | AL97: 1 | AM97: 0 | AN97: 0 | AO97: 0 | AP97: 0 | AQ97: 36 | AR97: 0 | AS97: 1 | AT97: 0 | AU97: 0 | AV97: 0 | AW97: 0 | AX97: 0 | AY97: 1 | AZ97: 0 | BA97: 0 | BB97: 0 | BC97: 13 | BD97: 11 | BE97: 11 | BF97: 0 | BG97: 0 | BH97: 8 | BI97: 0 | BJ97: 1 | BK97: 0 | BL97: 0 | BM97: 0 | BN97: 0 | BO97: 0 | BP97: 1 | BQ97: 0 | BR97: 0 | BS97: 0 | BT97: 0 | BU97: Law | BV97: contract law | BW97: contract law | BX97: 3 | BY97: 1 | BZ97: 4 | CA97: 5 | CB97: 5 | CC97: 5 | CD97: 2 | CE97: 4 | CF97: 3 | CG97: 3 | CH97: 5 | CI97: 4
A98: 97 | B98: 15 | C98: 3 | D98: 20 | E98: 10 | F98: 1 | G98: 5 | H98: 15 | I98: 5 | J98: 0 | K98: 12 | L98: 0 | M98: 7.1 | N98: 1 | O98: 0 | P98: 0 | Q98: 3 | R98: 4 | S98: 1 | T98: 3 | U98: 1 | V98: 4 | W98: 2 | X98: 2 | Y98: 4 | Z98: 3 | AA98: 2 | AB98: 4 | AC98: 2 | AD98: 4 | AE98: 4 | AF98: 2.666666667 | AG98: 3.666666667 | AH98: 1.666666667 | AI98: 3.333333333 | AJ98: 3 | AK98: 0 | AL98: 0 | AM98: 0 | AN98: 0 | AO98: 1 | AP98: 0 | AQ98: 55 | AR98: 0 | AS98: 1 | AT98: 0 | AU98: 0 | AV98: 0 | AW98: 0 | AX98: 0 | AY98: 1 | AZ98: 0 | BA98: 0 | BB98: 0 | BC98: 20 | BD98: 20 | BE98: 17 | BF98: 0 | BG98: 1 | BH98: 20 | BI98: 0 | BJ98: 0 | BK98: 1 | BL98: 0 | BM98: 0 | BN98: 1 | BO98: 1 | BP98: 1 | BQ98: 0 | BR98: 0 | BS98: 0 | BT98: 0 | BU98: Law | BV98: pubclic constitutional and admin law | BW98: public, constituional and admin law | BX98: 3 | BY98: 1 | BZ98: 5 | CA98: 4 | CB98: 4 | CC98: 4 | CD98: 3 | CE98: 2 | CF98: 3 | CG98: 2 | CH98: 4 | CI98: 3.25
A99: 98 | B99: 1 | C99: 0 | D99: 0 | E99: 0 | F99: 0 | G99: 0 | H99: 1 | I99: 0 | J99: 0 | K99: 0 | L99: 1 | M99: 0.2 | N99: 0 | O99: 1 | P99: 0 | Q99: 4 | R99: 5 | S99: 4 | T99: 4 | U99: 3 | V99: 4 | W99: 5 | X99: 4 | Y99: 5 | Z99: 5 | AA99: 4 | AB99: 3 | AC99: 3 | AD99: 4 | AE99: 2 | AF99: 4 | AG99: 4.666666667 | AH99: 4 | AI99: 4 | AJ99: 3 | AK99: 0 | AL99: 0 | AM99: 0 | AN99: 0 | AO99: 0 | AP99: 0 | AQ99: 45 | AR99: 1 | AS99: 1 | AT99: 0 | AU99: 0 | AV99: 0 | AW99: 0 | AX99: 0 | AY99: 1 | AZ99: 0 | BA99: 0 | BB99: 0 | BC99: 15 | BD99: 6 | BE99: 10 | BF99: 1 | BG99: 0 | BH99: 20 | BI99: 1 | BJ99: 0 | BK99: 0 | BL99: 0 | BM99: 0 | BN99: 0 | BO99: 1 | BP99: 1 | BQ99: 0 | BR99: 0 | BS99: 0 | BT99: 0 | BU99: Economics | BV99: economics | BW99: econmincs | BX99: 3 | BY99: 2 | BZ99: 5 | CA99: 5 | CB99: 5 | CC99: 5 | CD99: 5 | CE99: 5 | CF99: 5 | CG99: 5 | CH99: 5 | CI99: 5
A100: 99 | B100: 0 | C100: 0 | D100: 15 | E100: 14 | F100: 12 | G100: 4 | H100: 6 | I100: 0 | J100: 0 | K100: 0 | L100: 1 | M100: 5.2 | N100: 0 | O100: 1 | P100: 0 | Q100: 4 | R100: 3 | S100: 3 | T100: 4 | U100: 1 | V100: 3 | W100: 4 | X100: 5 | Y100: 4 | Z100: 3 | AA100: 2 | AB100: 3 | AC100: 1 | AD100: 3 | AE100: 3 | AF100: 3.333333333 | AG100: 3 | AH100: 2.666666667 | AI100: 4 | AJ100: 2.333333333 | AK100: 0 | AL100: 0 | AM100: 0 | AN100: 0 | AO100: 1 | AP100: 0 | AQ100: 46 | AR100: 1 | AS100: 0 | AT100: 0 | AU100: 0 | AV100: 0 | AW100: 1 | AX100: 0 | AY100: 0 | AZ100: 0 | BA100: 0 | BB100: 1 | BC100: 1517 | BD100: 2 | BE100: 0 | BF100: 1 | BG100: 1 | BH100: 0 | BI100: 0 | BJ100: 0 | BK100: 0 | BL100: 1 | BM100: 7 | BN100: 1 | BO100: 2 | BP100: 1 | BQ100: 0 | BR100: 0 | BS100: 0 | BT100: 0 | BU100: Commerce | BV100: HR management | BW100: HR mangement | BX100: 4 | BY100: 3 | BZ100: 4 | CA100: 3 | CB100: 3 | CC100: 4 | CD100: 3 | CE100: 3 | CF100: 3 | CG100: 4 | CH100: 5 | CI100: 3.5
A101: 100 | B101: 0 | C101: 0 | D101: 0 | E101: 0 | F101: 0 | G101: 0 | H101: 1 | I101: 0 | J101: 0 | K101: 0 | L101: 0 | M101: 0.1 | N101: 0 | O101: 1 | P101: 0 | Q101: 5 | R101: 4 | S101: 5 | T101: 5 | U101: 2 | V101: 4 | W101: 4 | X101: 5 | Y101: 5 | Z101: 5 | AA101: 4 | AB101: 3 | AC101: 1 | AD101: 4 | AE101: 2 | AF101: 4.666666667 | AG101: 4.333333333 | AH101: 3.333333333 | AI101: 4.333333333 | AJ101: 2.666666667 | AK101: 0 | AL101: 0 | AM101: 0 | AN101: 1 | AO101: 0 | AP101: 0 | AQ101: 27 | AR101: 0 | AS101: 1 | AT101: 0 | AU101: 0 | AV101: 0 | AW101: 0 | AX101: 0 | AY101: 1 | AZ101: 0 | BA101: 0 | BB101: 0 | BC101: 5 | BD101: 8 | BE101: 8 | BF101: 0 | BG101: 0 | BH101: 6 | BI101: 1 | BJ101: 0 | BK101: 0 | BL101: 0 | BM101: 3 | BN101: 0 | BO101: 0 | BP101: 1 | BQ101: 0 | BR101: 0 | BS101: 0 | BT101: 0 | BU101: Economics | BV101: economics | BW101: economics | BX101: 5 | BY101: 1 | BZ101: 5 | CA101: 4 | CB101: 4 | CC101: 3 | CD101: 2 | CE101: 2 | CF101: 2 | CG101: 2 | CH101: 2 | CI101: 2.625
A102: 101 | B102: 0 | C102: 0 | D102: 0 | E102: 0 | F102: 0 | G102: 0 | H102: 4 | I102: 0 | J102: 0 | K102: 0 | L102: 0 | M102: 0.4 | N102: 1 | O102: 0 | P102: 0 | Q102: 2 | R102: 2 | S102: 2 | T102: 5 | U102: 4 | V102: 2 | W102: 4 | X102: 3 | Y102: 4 | Z102: 3 | AA102: 2 | AB102: 2 | AC102: 2 | AD102: 4 | AE102: 2 | AF102: 3 | AG102: 2.333333333 | AH102: 2.666666667 | AI102: 3 | AJ102: 3.333333333 | AK102: 0 | AL102: 0 | AM102: 0 | AN102: 0 | AO102: 1 | AP102: 0 | AQ102: 29 | AR102: 0 | AS102: 0 | AT102: 0 | AU102: 0 | AV102: 0 | AW102: 1 | AX102: 0 | AY102: 0 | AZ102: 0 | BA102: 0 | BB102: 1 | BC102: 5 | BD102: 5 | BE102: 5 | BF102: 0 | BG102: 1 | BH102: 7 | BI102: 1 | BJ102: 0 | BK102: 0 | BL102: 0 | BM102: 2 | BN102: 1 | BO102: 0 | BP102: 1 | BQ102: 0 | BR102: 0 | BS102: 0 | BT102: 0 | BU102: Commerce | BV102: Insurance and Risk Management | BW102: Insurance and Risk Management | BX102: 5 | BY102: 1 | BZ102: 3 | CA102: 4 | CB102: 5 | CC102: 3 | CD102: 2 | CE102: 3 | CF102: 2 | CG102: 2 | CH102: 4 | CI102: 3.125
A103: 102 | B103: 3 | C103: 0 | D103: 0 | E103: 4 | F103: 1 | G103: 0 | H103: 12 | I103: 0 | J103: 0 | K103: 1 | L103: 0 | M103: 1.8 | N103: 1 | O103: 0 | P103: 0 | Q103: 4 | R103: 5 | S103: 3 | T103: 2 | U103: 1 | V103: 2 | W103: 5 | X103: 4 | Y103: 5 | Z103: 2 | AA103: 4 | AB103: 4 | AC103: 4 | AD103: 5 | AE103: 5 | AF103: 3.333333333 | AG103: 3 | AH103: 4 | AI103: 4.333333333 | AJ103: 3.666666667 | AK103: 0 | AL103: 0 | AM103: 0 | AN103: 1 | AO103: 0 | AP103: 0 | AQ103: 36 | AR103: 1 | AS103: 1 | AT103: 0 | AU103: 0 | AV103: 0 | AW103: 0 | AX103: 0 | AY103: 1 | AZ103: 0 | BA103: 0 | BB103: 0 | BC103: 4 | BD103: 2 | BE103: 2 | BF103: 0 | BG103: 0 | BH103: 11 | BI103: 0 | BJ103: 1 | BK103: 0 | BL103: 0 | BM103: 0 | BN103: 1 | BO103: 0 | BP103: 1 | BQ103: 0 | BR103: 0 | BS103: 1 | BT103: 0 | BU103: Political Science | BV103: History, Law, Politics | BW103: Politics | BX103: 4 | BY103: 1 | BZ103: 4 | CA103: 5 | CB103: 5 | CC103: 4 | CD103: 4 | CE103: 5 | CF103: 3 | CG103: 4 | CH103: 5 | CI103: 4.375
A104: 103 | B104: 0 | C104: 0 | D104: 1 | E104: 4 | F104: 4 | G104: 1 | H104: 3 | I104: 0 | J104: 0 | K104: 0 | L104: 0 | M104: 1.3 | N104: 1 | O104: 0 | P104: 0 | Q104: 2 | R104: 2 | S104: 3 | T104: 1 | U104: 3 | V104: 1 | W104: 2 | X104: 1 | Y104: 1 | Z104: 1 | AA104: 2 | AB104: 4 | AC104: 2 | AD104: 1 | AE104: 2 | AF104: 1.666666667 | AG104: 1.333333333 | AH104: 2.333333333 | AI104: 2 | AJ104: 2 | AK104: 1 | AL104: 0 | AM104: 0 | AN104: 0 | AO104: 0 | AP104: 0 | AQ104: 25 | AR104: 0 | AS104: 1 | AT104: 0 | AU104: 0 | AV104: 0 | AW104: 0 | AX104: 0 | AY104: 1 | AZ104: 0 | BA104: 0 | BB104: 0 | BC104: 1 | BD104: 1 | BE104: 1 | BF104: 0 | BG104: 0 | BH104: 5 | BI104: 1 | BJ104: 0 | BK104: 0 | BL104: 0 | BM104: 0 | BN104: 0 | BO104: 0 | BP104: 0 | BQ104: 0 | BR104: 0 | BS104: 0 | BT104: 1 | BU104: Computational & Applied Mathematics | BV104: mechanics modelling | BW104: modelling | BX104: 2 | BY104: 5 | BZ104: 1 | CA104: 3 | CB104: 2 | CC104: 1 | CD104: 4 | CE104: 2 | CF104: 1 | CG104: 4 | CH104: 3 | CI104: 2.5
A105: 104 | B105: 0 | C105: 1 | D105: 0 | E105: 10 | F105: 10 | G105: 11 | H105: 10 | I105: 0 | J105: 0 | K105: 0 | L105: 0 | M105: 4.2 | N105: 1 | O105: 0 | P105: 0 | Q105: 5 | R105: 4 | S105: 4 | T105: 3 | U105: 2 | V105: 4 | W105: 5 | X105: 4 | Y105: 4 | Z105: 4 | AA105: 5 | AB105: 3 | AC105: 5 | AD105: 5 | AE105: 5 | AF105: 4.333333333 | AG105: 4 | AH105: 4.666666667 | AI105: 3.666666667 | AJ105: 4 | AK105: 1 | AL105: 0 | AM105: 0 | AN105: 0 | AO105: 0 | AP105: 1 | AQ105: 38 | AR105: 0 | AS105: 0 | AT105: 0 | AU105: 0 | AV105: 0 | AW105: 1 | AX105: 0 | AY105: 0 | AZ105: 0 | BA105: 0 | BB105: 1 | BC105: 12 | BD105: 12 | BE105: 5 | BF105: 0 | BG105: 0 | BH105: 7 | BI105: 0 | BJ105: 1 | BK105: 0 | BL105: 0 | BM105: 0 | BN105: 1 | BO105: 1 | BP105: 0 | BQ105: 0 | BR105: 0 | BS105: 0 | BT105: 1 | BU105: Computational & Applied Mathematics | BV105: applied mathematics | BW105: mathematics | BX105: 4 | BY105: 1 | BZ105: 5 | CA105: 2 | CB105: 4 | CC105: 2 | CD105: 5 | CE105: 4 | CF105: 5 | CG105: 4 | CH105: 2 | CI105: 3.5
A106: 105 | B106: 4 | C106: 0 | D106: 3 | E106: 4 | F106: 0 | G106: 2 | H106: 3 | I106: 0 | J106: 0 | K106: 2 | L106: 0 | M106: 1.4 | N106: 1 | O106: 0 | P106: 0 | Q106: 4 | R106: 3 | S106: 4 | T106: 3 | U106: 2 | V106: 2 | W106: 5 | X106: 3 | Y106: 5 | Z106: 4 | AA106: 3 | AB106: 3 | AC106: 4 | AD106: 4 | AE106: 4 | AF106: 3.333333333 | AG106: 3 | AH106: 4.333333333 | AI106: 3.666666667 | AJ106: 3.333333333 | AK106: 1 | AL106: 0 | AM106: 0 | AN106: 0 | AO106: 0 | AP106: 0 | AQ106: 34 | AR106: 0 | AS106: 1 | AT106: 0 | AU106: 0 | AV106: 0 | AW106: 0 | AX106: 0 | AY106: 1 | AZ106: 1 | BA106: 0 | BB106: 0 | BC106: 4 | BD106: 5 | BE106: 2 | BF106: 0 | BG106: 1 | BH106: 10 | BI106: 0 | BJ106: 1 | BK106: 0 | BL106: 0 | BM106: 0 | BN106: 0 | BO106: 0 | BP106: 0 | BQ106: 0 | BR106: 0 | BS106: 1 | BT106: 0 | BU106: Literature & Languages | BV106: literature | BW106: literature | BX106: 3 | BY106: 1 | BZ106: 5 | CA106: 5 | CB106: 5 | CC106: 5 | CD106: 4 | CE106: 4 | CF106: 4 | CG106: 2 | CH106: 5 | CI106: 4.25
A107: 106 | B107: 2 | C107: 0 | D107: 1 | E107: 1 | F107: 0 | G107: 1 | H107: 10 | I107: 1 | J107: 0 | K107: 2 | L107: 0 | M107: 1.6 | N107: 0 | O107: 0 | P107: 1 | Q107: 5 | R107: 5 | S107: 1 | T107: 3 | U107: 5 | V107: 3 | W107: 3 | X107: 1 | Y107: 3 | Z107: 5 | AA107: 4 | AB107: 4 | AC107: 3 | AD107: 5 | AE107: 5 | AF107: 4 | AG107: 4.333333333 | AH107: 2.333333333 | AI107: 2.666666667 | AJ107: 5 | AK107: 0 | AL107: 0 | AM107: 1 | AN107: 0 | AO107: 0 | AP107: 0 | AQ107: 50 | AR107: 0 | AS107: 1 | AT107: 0 | AU107: 0 | AV107: 0 | AW107: 0 | AX107: 0 | AY107: 1 | AZ107: 0 | BA107: 0 | BB107: 0 | BC107: 24 | BD107: 4 | BE107: 3 | BF107: 0 | BG107: 1 | BH107: 12 | BI107: 0 | BJ107: 1 | BK107: 0 | BL107: 0 | BM107: 0 | BN107: 1 | BO107: 2 | BP107: 0 | BQ107: 0 | BR107: 0 | BS107: 1 | BT107: 0 | BU107: Media | BV107: media and democracy | BW107: newspaper journalism | BX107: 3 | BY107: 1 | BZ107: 5 | CA107: 5 | CB107: 5 | CC107: 5 | CD107: 5 | CE107: 3 | CF107: 5 | CG107: 5 | CH107: 5 | CI107: 4.75
A108: 107 | B108: 0 | C108: 0 | D108: 0 | E108: 0 | F108: 0 | G108: 2 | H108: 3 | I108: 0 | J108: 0 | K108: 2 | L108: 0 | M108: 0.7 | N108: 1 | O108: 0 | P108: 0 | Q108: 5 | R108: 1 | S108: 2 | T108: 3 | U108: 1 | V108: 1 | W108: 5 | X108: 2 | Y108: 4 | Z108: 1 | AA108: 4 | AB108: 2 | AC108: 4 | AD108: 4 | AE108: 4 | AF108: 4 | AG108: 1 | AH108: 3.666666667 | AI108: 2.666666667 | AJ108: 3 | AK108: 0 | AL108: 0 | AM108: 0 | AN108: 0 | AO108: 0 | AP108: 0 | AQ108: 33 | AR108: 0 | AS108: 0 | AT108: 0 | AU108: 0 | AV108: 0 | AW108: 1 | AX108: 0 | AY108: 0 | AZ108: 0 | BA108: 0 | BB108: 1 | BC108: 12 | BD108: 3 | BE108: 3 | BF108: 1 | BG108: 0 | BH108: 7 | BI108: 1 | BJ108: 0 | BK108: 0 | BL108: 0 | BM108: 2 | BN108: 0 | BO108: 0 | BP108: 0 | BQ108: 0 | BR108: 0 | BS108: 1 | BT108: 0 | BU108: Literature & Languages | BV108: migration/ethnography | BW108: languges | BX108: 4 | BY108: 1 | BZ108: 4 | CA108: 4 | CB108: 4 | CC108: 4 | CD108: 4 | CE108: 4 | CF108: 4 | CG108: 4 | CH108: 4 | CI108: 4
A109: 108 | B109: 2 | C109: 0 | D109: 15 | E109: 4 | F109: 0 | G109: 2 | H109: 4 | I109: 1 | J109: 0 | K109: 3 | L109: 0 | M109: 2.9 | N109: 1 | O109: 0 | P109: 0 | Q109: 5 | R109: 4 | S109: 4 | T109: 4 | U109: 1 | V109: 5 | W109: 5 | X109: 5 | Y109: 5 | Z109: 5 | AA109: 3 | AB109: 4 | AC109: 5 | AD109: 5 | AE109: 5 | AF109: 4 | AG109: 4.666666667 | AH109: 4.666666667 | AI109: 4.666666667 | AJ109: 3.666666667 | AK109: 0 | AL109: 0 | AM109: 0 | AN109: 0 | AO109: 0 | AP109: 0 | AQ109: 45 | AR109: 0 | AS109: 1 | AT109: 0 | AU109: 0 | AV109: 0 | AW109: 0 | AX109: 0 | AY109: 1 | AZ109: 0 | BA109: 1 | BB109: 0 | BC109: 17 | BD109: 6 | BE109: 6 | BF109: 0 | BG109: 1 | BH109: 11 | BI109: 0 | BJ109: 1 | BK109: 0 | BL109: 0 | BM109: 3 | BN109: 1 | BO109: 3 | BP109: 0 | BQ109: 0 | BR109: 0 | BS109: 1 | BT109: 0 | BU109: Literature & Languages | BV109: african language | BW109: literature | BX109: 2 | BY109: 1 | BZ109: 5 | CA109: 1 | CB109: 2 | CC109: 1 | CD109: 1 | CE109: 1 | CF109: 1 | CG109: 1 | CH109: 1 | CI109: 1.125
A110: 109 | B110: 0 | C110: 0 | D110: 25 | E110: 30 | F110: 17 | G110: 441 | H110: 7 | I110: 0 | J110: 0 | K110: 0 | L110: 1 | M110: 52.1 | N110: 0 | O110: 1 | P110: 0 | Q110: 3 | R110: 5 | S110: 2 | T110: 4 | U110: 3 | V110: 4 | W110: 3 | X110: 3 | Y110: 3 | Z110: 4 | AA110: 4 | AB110: 4 | AC110: 2 | AD110: 4 | AE110: 2 | AF110: 3.666666667 | AG110: 4.333333333 | AH110: 2.333333333 | AI110: 3.333333333 | AJ110: 3 | AK110: 0 | AL110: 1 | AM110: 0 | AN110: 1 | AO110: 0 | AP110: 0 | AQ110: 49 | AR110: 1 | AS110: 0 | AT110: 0 | AU110: 1 | AV110: 0 | AW110: 0 | AX110: 0 | AY110: 0 | AZ110: 0 | BA110: 0 | BB110: 1 | BC110: 6 | BD110: 8 | BE110: 7 | BF110: 0 | BG110: 1 | BH110: 7 | BI110: 0 | BJ110: 0 | BK110: 0 | BL110: 1 | BM110: 2 | BN110: 1 | BO110: 4 | BP110: 0 | BQ110: 0 | BR110: 0 | BS110: 0 | BT110: 1 | BU110: Mathematics | BV110: mathematics | BW110: mathematics | BX110: 2 | BY110: 2 | BZ110: 4 | CA110: 3 | CB110: 2 | CC110: 2 | CD110: 1 | CE110: 3 | CF110: 1 | CG110: 1 | CH110: 3 | CI110: 2
A111: 110 | B111: 5 | C111: 0 | D111: 9 | E111: 9 | F111: 2 | G111: 0 | H111: 3 | I111: 0 | J111: 0 | K111: 0 | L111: 0 | M111: 2.3 | N111: 1 | O111: 0 | P111: 0 | Q111: 4 | R111: 4 | S111: 3 | T111: 1 | U111: 1 | V111: 5 | W111: 5 | X111: 5 | Y111: 5 | Z111: 5 | AA111: 1 | AB111: 5 | AC111: 5 | AD111: 5 | AE111: 5 | AF111: 2 | AG111: 4.666666667 | AH111: 4.333333333 | AI111: 5 | AJ111: 3.666666667 | AK111: 0 | AL111: 0 | AM111: 0 | AN111: 0 | AO111: 0 | AP111: 0 | AQ111: 46 | AR111: 0 | AS111: 0 | AT111: 0 | AU111: 1 | AV111: 0 | AW111: 0 | AX111: 0 | AY111: 1 | AZ111: 0 | BA111: 0 | BB111: 0 | BC111: 22 | BD111: 16 | BE111: 6 | BF111: 0 | BG111: 1 | BH111: 10 | BI111: 0 | BJ111: 0 | BK111: 1 | BL111: 0 | BM111: 0 | BN111: 0 | BO111: 3 | BP111: 0 | BQ111: 0 | BR111: 0 | BS111: 0 | BT111: 1 | BU111: Mathematics | BV111: maths | BW111: maths | BX111: 4 | BY111: 1 | BZ111: 3 | CA111: 1 | CB111: 1 | CC111: 1 | CD111: 1 | CE111: 5 | CF111: 1 | CG111: 5 | CH111: 5 | CI111: 2.5
A112: 111 | B112: 2 | C112: 1 | D112: 0 | E112: 16 | F112: 14 | G112: 4 | H112: 4 | I112: 0 | J112: 0 | K112: 0 | L112: 0 | M112: 3.9 | N112: 0 | O112: 1 | P112: 0 | Q112: 3 | R112: 4 | S112: 2 | T112: 4 | U112: 4 | V112: 4 | W112: 3 | X112: 2 | Y112: 3 | Z112: 4 | AA112: 2 | AB112: 3 | AC112: 2 | AD112: 2 | AE112: 2 | AF112: 3 | AG112: 4 | AH112: 2.333333333 | AI112: 2.666666667 | AJ112: 2.666666667 | AK112: 1 | AL112: 0 | AM112: 0 | AN112: 0 | AO112: 0 | AP112: 0 | AQ112: 58 | AR112: 0 | AS112: 0 | AT112: 0 | AU112: 0 | AV112: 0 | AW112: 1 | AX112: 0 | AY112: 1 | AZ112: 0 | BA112: 0 | BB112: 1 | BC112: 36 | BD112: 10 | BE112: 10 | BF112: 0 | BG112: 0 | BH112: 9 | BI112: 0 | BJ112: 0 | BK112: 0 | BL112: 1 | BM112: 8 | BN112: 1 | BO112: 0 | BP112: 0 | BQ112: 0 | BR112: 0 | BS112: 0 | BT112: 1 | BU112: Mathematics | BV112: maths | BW112: maths | BX112: 4 | BY112: 4 | BZ112: 3 | CA112: 4 | CB112: 3 | CC112: 2 | CD112: 2 | CE112: 3 | CF112: 4 | CG112: 3 | CH112: 3 | CI112: 3
A113: 112 | B113: 0 | C113: 0 | D113: 3 | E113: 3 | F113: 3 | G113: 3 | H113: 4 | I113: 0 | J113: 0 | K113: 0 | L113: 0 | M113: 1.6 | N113: 0 | O113: 1 | P113: 0 | Q113: 5 | R113: 3 | S113: 2 | T113: 3 | U113: 5 | V113: 2 | W113: 4 | X113: 3 | Y113: 4 | Z113: 2 | AA113: 5 | AB113: 4 | AC113: 3 | AD113: 2 | AE113: 3 | AF113: 4.333333333 | AG113: 2.333333333 | AH113: 3 | AI113: 3.666666667 | AJ113: 3.333333333 | AK113: 0 | AL113: 0 | AM113: 1 | AN113: 0 | AO113: 0 | AP113: 0 | AQ113: 40 | AR113: 1 | AS113: 1 | AT113: 0 | AU113: 0 | AV113: 0 | AW113: 0 | AX113: 0 | AY113: 1 | AZ113: 0 | BA113: 0 | BB113: 0 | BC113: 17 | BD113: 3 | BE113: 3 | BF113: 1 | BG113: 1 | BH113: 13 | BI113: 1 | BJ113: 0 | BK113: 0 | BL113: 0 | BM113: 0 | BN113: 1 | BO113: 2 | BP113: 0 | BQ113: 0 | BR113: 0 | BS113: 0 | BT113: 1 | BU113: Statistics & Actuarial Science | BV113: actuarial science | BW113: acturial science | BX113: 3 | BY113: 1 | BZ113: 4 | CA113: 1 | CB113: 5 | CC113: 4 | CD113: 2 | CE113: 2 | CF113: 4 | CG113: 2 | CH113: 4 | CI113: 3
A114: 113 | B114: 7 | C114: 0 | D114: 4 | E114: 8 | F114: 2 | G114: 0 | H114: 10 | I114: 0 | J114: 0 | K114: 1 | L114: 0 | M114: 2.5 | N114: 1 | O114: 0 | P114: 0 | Q114: 3 | R114: 4 | S114: 3 | T114: 4 | U114: 4 | V114: 4 | W114: 3 | X114: 2 | Y114: 4 | Z114: 4 | AA114: 4 | AB114: 3 | AC114: 2 | AD114: 2 | AE114: 4 | AF114: 3.666666667 | AG114: 4 | AH114: 2.666666667 | AI114: 3 | AJ114: 3.333333333 | AK114: 0 | AL114: 0 | AM114: 0 | AN114: 0 | AO114: 0 | AP114: 0 | AQ114: 36 | AR114: 0 | AS114: 1 | AT114: 0 | AU114: 0 | AV114: 0 | AW114: 0 | AX114: 0 | AY114: 0 | AZ114: 0 | BA114: 1 | BB114: 0 | BC114: 11 | BD114: 10 | BE114: 10 | BF114: 0 | BG114: 1 | BH114: 9 | BI114: 0 | BJ114: 0 | BK114: 0 | BL114: 1 | BM114: 3 | BN114: 1 | BO114: 2 | BP114: 1 | BQ114: 0 | BR114: 0 | BS114: 0 | BT114: 0 | BU114: Law | BV114: interntional and constitutional law | BW114: international and constitutional law | BX114: 4 | BY114: 1 | BZ114: 5 | CA114: 5 | CB114: 5 | CC114: 5 | CD114: 5 | CE114: 5 | CF114: 5 | CG114: 5 | CH114: 5 | CI114: 5
A115: 114 | B115: 15 | C115: 5 | D115: 0 | E115: 25 | F115: 0 | G115: 5 | H115: 11 | I115: 0 | J115: 1 | K115: 0 | L115: 2 | M115: 4.9 | N115: 1 | O115: 0 | P115: 0 | Q115: 5 | R115: 3 | S115: 1 | T115: 1 | U115: 1 | V115: 3 | W115: 4 | X115: 4 | Y115: 5 | Z115: 2 | AA115: 4 | AB115: 3 | AC115: 1 | AD115: 5 | AE115: 3 | AF115: 3.333333333 | AG115: 2.666666667 | AH115: 2 | AI115: 4 | AJ115: 3 | AK115: 0 | AL115: 0 | AM115: 0 | AN115: 0 | AO115: 0 | AP115: 0 | AQ115: 56 | AR115: 1 | AS115: 1 | AT115: 0 | AU115: 0 | AV115: 0 | AW115: 0 | AX115: 0 | AY115: 1 | AZ115: 0 | BA115: 0 | BB115: 0 | BC115: 18 | BD115: 10 | BE115: 10 | BF115: 0 | BG115: 1 | BH115: 6 | BI115: 0 | BJ115: 0 | BK115: 0 | BL115: 1 | BM115: 0 | BN115: 1 | BO115: 0 | BP115: 1 | BQ115: 0 | BR115: 0 | BS115: 0 | BT115: 0 | BU115: Law | BV115: law | BW115: procedural alw | BX115: 2 | BY115: 1 | BZ115: 5 | CA115: 5 | CB115: 5 | CC115: 5 | CD115: 5 | CE115: 5 | CF115: 1 | CG115: 5 | CH115: 3 | CI115: 4.25
A116: 115 | B116: 2 | C116: 7 | D116: 14 | E116: 10 | F116: 10 | G116: 22 | H116: 0 | I116: 0 | J116: 0 | K116: 0 | L116: 1 | M116: 6.4 | N116: 0 | O116: 1 | P116: 0 | Q116: 5 | R116: 5 | S116: 5 | T116: 5 | U116: 1 | V116: 5 | W116: 5 | X116: 4 | Y116: 4 | Z116: 4 | AA116: 4 | AB116: 5 | AC116: 4 | AD116: 4 | AE116: 4 | AF116: 4.666666667 | AG116: 4.666666667 | AH116: 4.666666667 | AI116: 4.333333333 | AJ116: 3 | AK116: 0 | AL116: 0 | AM116: 0 | AN116: 0 | AO116: 0 | AP116: 0 | AQ116: 46 | AR116: 1 | AS116: 1 | AT116: 0 | AU116: 0 | AV116: 0 | AW116: 0 | AX116: 0 | AY116: 1 | AZ116: 0 | BA116: 0 | BB116: 0 | BC116: 26 | BD116: 8 | BE116: 5 | BF116: 0 | BG116: 1 | BH116: 13 | BI116: 0 | BJ116: 1 | BK116: 0 | BL116: 0 | BM116: 0 | BN116: 1 | BO116: 0 | BP116: 1 | BQ116: 0 | BR116: 0 | BS116: 0 | BT116: 0 | BU116: Commerce | BV116: innovation | BW116: innovation and HR | BX116: 1 | BY116: 1 | BZ116: 5 | CA116: 2 | CB116: 1 | CC116: 1 | CD116: 1 | CE116: 1 | CF116: 1 | CG116: 1 | CH116: 1 | CI116: 1.125
A117: 116 | B117: 5 | C117: 0 | D117: 12 | E117: 10 | F117: 2 | G117: 3 | H117: 10 | I117: 0 | J117: 1 | K117: 2 | L117: 1 | M117: 4.1 | N117: 1 | O117: 0 | P117: 0 | Q117: 4 | R117: 5 | S117: 3 | T117: 4 | U117: 3 | V117: 5 | W117: 5 | X117: 5 | Y117: 5 | Z117: 5 | AA117: 5 | AB117: 5 | AC117: 5 | AD117: 5 | AE117: 3 | AF117: 4.333333333 | AG117: 5 | AH117: 4.333333333 | AI117: 5 | AJ117: 3.666666667 | AK117: 0 | AL117: 0 | AM117: 0 | AN117: 1 | AO117: 0 | AP117: 0 | AQ117: 40 | AR117: 0 | AS117: 1 | AT117: 0 | AU117: 0 | AV117: 0 | AW117: 0 | AX117: 0 | AY117: 1 | AZ117: 1 | BA117: 0 | BB117: 0 | BC117: 14 | BD117: 14 | BE117: 13 | BF117: 0 | BG117: 1 | BH117: 7 | BI117: 0 | BJ117: 0 | BK117: 0 | BL117: 1 | BM117: 0 | BN117: 1 | BO117: 3 | BP117: 1 | BQ117: 0 | BR117: 0 | BS117: 0 | BT117: 0 | BU117: Law | BV117: legal pluralism, law and religion | BW117: family law and sucession | BX117: 3 | BY117: 1 | BZ117: 4 | CA117: 2 | CB117: 4 | CC117: 4 | CD117: 2 | CE117: 3 | CF117: 1 | CG117: 2 | CH117: 3 | CI117: 2.625
A118: 117 | B118: 1 | C118: 0 | D118: 0 | E118: 2 | F118: 2 | G118: 2 | H118: 6 | I118: 0 | J118: 0 | K118: 0 | L118: 0 | M118: 1.2 | N118: 0 | O118: 1 | P118: 0 | Q118: 4 | R118: 4 | S118: 3 | T118: 4 | U118: 3 | V118: 3 | W118: 4 | X118: 4 | Y118: 4 | Z118: 4 | AA118: 4 | AB118: 4 | AC118: 4 | AD118: 4 | AE118: 4 | AF118: 4 | AG118: 3.666666667 | AH118: 3.666666667 | AI118: 4 | AJ118: 3.666666667 | AK118: 0 | AL118: 1 | AM118: 0 | AN118: 0 | AO118: 0 | AP118: 0 | AQ118: 60 | AR118: 0 | AS118: 1 | AT118: 0 | AU118: 0 | AV118: 0 | AW118: 0 | AX118: 0 | AY118: 1 | AZ118: 0 | BA118: 0 | BB118: 0 | BC118: 40 | BD118: 12 | BE118: 10 | BF118: 1 | BG118: 1 | BH118: 20 | BI118: 0 | BJ118: 1 | BK118: 0 | BL118: 0 | BM118: 0 | BN118: 0 | BO118: 0 | BP118: 0 | BQ118: 0 | BR118: 1 | BS118: 0 | BT118: 0 | BU118: Physiology | BV118: life stress | BW118: physiology | BX118: 4 | BY118: 3 | BZ118: 4 | CA118: 2 | CB118: 2 | CC118: 3 | CD118: 1 | CE118: 2 | CF118: 3 | CG118: 2 | CH118: 3 | CI118: 2.25
A119: 118 | B119: 6 | C119: 0 | D119: 7 | E119: 43 | F119: 50 | G119: 4 | H119: 6 | I119: 0 | J119: 0 | K119: 0 | L119: 0 | M119: 11 | N119: 0 | O119: 1 | P119: 0 | Q119: 3 | R119: 2 | S119: 3 | T119: 2 | U119: 5 | V119: 1 | W119: 3 | X119: 3 | Y119: 3 | Z119: 1 | AA119: 3 | AB119: 3 | AC119: 3 | AD119: 2 | AE119: 2 | AF119: 2.666666667 | AG119: 1.333333333 | AH119: 3 | AI119: 3 | AJ119: 3 | AK119: 0 | AL119: 0 | AM119: 1 | AN119: 0 | AO119: 0 | AP119: 0 | AQ119: 55 | AR119: 1 | AS119: 1 | AT119: 0 | AU119: 0 | AV119: 0 | AW119: 0 | AX119: 0 | AY119: 1 | AZ119: 0 | BA119: 0 | BB119: 0 | BC119: 27 | BD119: 12 | BE119: 12 | BF119: 1 | BG119: 1 | BH119: 12 | BI119: 0 | BJ119: 1 | BK119: 0 | BL119: 0 | BM119: 0 | BN119: 0 | BO119: 0 | BP119: 0 | BQ119: 0 | BR119: 1 | BS119: 0 | BT119: 0 | BU119: Pharmacology | BV119: medical research | BW119: pharmacology | BX119: 5 | BY119: 1 | BZ119: 4 | CA119: 2 | CB119: 4 | CC119: 2 | CD119: 5 | CE119: 1 | CF119: 2 | CG119: 2 | CH119: 2 | CI119: 2.5
A120: 119 | B120: 20 | C120: 0 | D120: 20 | E120: 14 | F120: 1 | G120: 0 | H120: 0 | I120: 0 | J120: 0 | K120: 6 | L120: 0 | M120: 4.1 | N120: 1 | O120: 0 | P120: 0 | Q120: 5 | R120: 5 | S120: 5 | T120: 3 | U120: 1 | V120: 3 | W120: 1 | X120: 3 | Y120: 5 | Z120: 3 | AA120: 2 | AB120: 3 | AC120: 3 | AD120: 5 | AE120: 5 | AF120: 3.333333333 | AG120: 3.666666667 | AH120: 3 | AI120: 3.666666667 | AJ120: 3.666666667 | AK120: 0 | AL120: 0 | AM120: 0 | AN120: 0 | AO120: 0 | AP120: 0 | AQ120: 47 | AR120: 0 | AS120: 1 | AT120: 0 | AU120: 0 | AV120: 0 | AW120: 0 | AX120: 0 | AY120: 1 | AZ120: 0 | BA120: 0 | BB120: 0 | BC120: 23 | BD120: 23 | BE120: 23 | BF120: 0 | BG120: 1 | BH120: 9 | BI120: 0 | BJ120: 0 | BK120: 0 | BL120: 1 | BM120: 0 | BN120: 1 | BO120: 0 | BP120: 1 | BQ120: 0 | BR120: 0 | BS120: 0 | BT120: 0 | BU120: Law | BV120: law | BW120: law | BX120: 2 | BY120: 1 | BZ120: 5 | CA120: 5 | CB120: 5 | CC120: 5 | CD120: 5 | CE120: 5 | CF120: 5 | CG120: 5 | CH120: 5 | CI120: 5
A121: 120 | B121: 0 | C121: 0 | D121: 1 | E121: 1 | F121: 0 | G121: 0 | H121: 2 | I121: 0 | J121: 0 | K121: 0 | L121: 0 | M121: 0.4 | N121: 1 | O121: 0 | P121: 0 | Q121: 5 | R121: 4 | S121: 2 | T121: 2 | U121: 1 | V121: 3 | W121: 2 | X121: 2 | Y121: 4 | Z121: 3 | AA121: 5 | AB121: 4 | AC121: 2 | AD121: 4 | AE121: 4 | AF121: 4 | AG121: 3.333333333 | AH121: 2 | AI121: 3.333333333 | AJ121: 3 | AK121: 0 | AL121: 1 | AM121: 0 | AN121: 0 | AO121: 0 | AP121: 0 | AQ121: 29 | AR121: 0 | AS121: 1 | AT121: 0 | AU121: 0 | AV121: 0 | AW121: 0 | AX121: 0 | AY121: 1 | AZ121: 1 | BA121: 0 | BB121: 0 | BC121: 5 | BD121: 5 | BE121: 4 | BF121: 0 | BG121: 0 | BH121: 6 | BI121: 1 | BJ121: 0 | BK121: 0 | BL121: 0 | BM121: 3 | BN121: 0 | BO121: 0 | BP121: 1 | BQ121: 0 | BR121: 0 | BS121: 0 | BT121: 0 | BU121: Law | BV121: public law | BW121: public law and egal philosophy | BX121: 3 | BY121: 1 | BZ121: 5 | CA121: 2 | CB121: 3 | CC121: 3 | CD121: 1 | CE121: 4 | CF121: 3 | CG121: 1 | CH121: 5 | CI121: 2.75
A122: 121 | B122: 0 | C122: 0 | D122: 0 | E122: 0 | F122: 0 | G122: 0 | H122: 0 | I122: 0 | J122: 0 | K122: 0 | L122: 0 | M122: 0 | N122: 0 | O122: 1 | P122: 0 | Q122: 4 | R122: 3 | S122: 3 | T122: 2 | U122: 4 | V122: 2 | W122: 3 | X122: 1 | Y122: 3 | Z122: 1 | AA122: 2 | AB122: 1 | AC122: 3 | AD122: 2 | AE122: 2 | AF122: 2.666666667 | AG122: 2 | AH122: 3 | AI122: 1.666666667 | AJ122: 2.666666667 | AK122: 0 | AL122: 0 | AM122: 0 | AN122: 0 | AO122: 1 | AP122: 0 | AQ122: 27 | AR122: 1 | AS122: 1 | AT122: 0 | AU122: 0 | AV122: 0 | AW122: 0 | AX122: 0 | AY122: 1 | AZ122: 0 | BA122: 0 | BB122: 0 | BC122: 5 | BD122: 2 | BE122: 2 | BF122: 1 | BG122: 1 | BH122: 4 | BI122: 1 | BJ122: 0 | BK122: 0 | BL122: 0 | BM122: 9 | BN122: 1 | BO122: 0 | BP122: 1 | BQ122: 0 | BR122: 0 | BS122: 0 | BT122: 0 | BU122: Accounting | BV122: governance and deciion making | BW122: auditing | BX122: 4 | BY122: 1 | BZ122: 2 | CA122: 4 | CB122: 4 | CC122: 4 | CD122: 4 | CE122: 4 | CF122: 4 | CG122: 2 | CH122: 4 | CI122: 3.75
A123: 122 | B123: 12 | C123: 2 | D123: 8 | E123: 4 | F123: 5 | G123: 0 | H123: 10 | I123: 2 | J123: 0 | K123: 5 | L123: 1 | M123: 3.7 | N123: 1 | O123: 0 | P123: 0 | Q123: 4 | R123: 3 | S123: 5 | T123: 3 | U123: 4 | V123: 3 | W123: 4 | X123: 2 | Y123: 4 | Z123: 3 | AA123: 3 | AB123: 3 | AC123: 3 | AD123: 4 | AE123: 3 | AF123: 3.333333333 | AG123: 3 | AH123: 4 | AI123: 3 | AJ123: 3.666666667 | AK123: 0 | AL123: 0 | AM123: 0 | AN123: 0 | AO123: 0 | AP123: 1 | AQ123: 38 | AR123: 0 | AS123: 1 | AT123: 0 | AU123: 0 | AV123: 0 | AW123: 0 | AX123: 0 | AY123: 1 | AZ123: 0 | BA123: 0 | BB123: 0 | BC123: 9 | BD123: 5 | BE123: 5 | BF123: 0 | BG123: 1 | BH123: 10 | BI123: 0 | BJ123: 1 | BK123: 0 | BL123: 0 | BM123: 0 | BN123: 0 | BO123: 0 | BP123: 0 | BQ123: 0 | BR123: 1 | BS123: 0 | BT123: 0 | BU123: Psychology | BV123: early literary critica literacy | BW123: early literacy | BX123: 1 | BY123: 2 | BZ123: 1 | CA123: 3 | CB123: 4 | CC123: 2 | CD123: 1 | CE123: 2 | CF123: 2 | CG123: 3 | CH123: 1 | CI123: 2.25
A124: 123 | B124: 12 | C124: 0 | D124: 0 | E124: 5 | F124: 1 | G124: 22 | H124: 0 | I124: 0 | J124: 0 | K124: 1 | L124: 0 | M124: 2.9 | N124: 1 | O124: 0 | P124: 3 | Q124: 2 | R124: 4 | S124: 4 | T124: 2 | U124: 2 | V124: 5 | W124: 4 | X124: 4 | Y124: 3 | Z124: 4 | AA124: 2 | AB124: 3 | AC124: 4 | AD124: 4 | AE124: 4 | AF124: 2 | AG124: 4.333333333 | AH124: 4 | AI124: 3.333333333 | AJ124: 3.333333333 | AK124: 0 | AL124: 0 | AM124: 0 | AN124: 0 | AO124: 0 | AP124: 0 | AQ124: 34 | AR124: 1 | AS124: 0 | AT124: 1 | AU124: 0 | AV124: 0 | AW124: 0 | AX124: 0 | AY124: 1 | AZ124: 0 | BA124: 0 | BB124: 0 | BC124: 12 | BD124: 12 | BE124: 12 | BF124: 0 | BG124: 1 | BH124: 12 | BI124: 1 | BJ124: 0 | BK124: 0 | BL124: 0 | BM124: 0 | BN124: 0 | BO124: 0 | BP124: 0 | BQ124: 0 | BR124: 1 | BS124: 0 | BT124: 0 | BU124: Psychology | BV124: psychology | BW124: research methods | BX124: 5 | BY124: 4 | BZ124: 3 | CA124: 4 | CB124: 2 | CC124: 3 | CD124: 3 | CE124: 3 | CF124: 2 | CG124: 1 | CH124: 1 | CI124: 2.375
A125: 124 | B125: 15 | C125: 1 | D125: 4 | E125: 2 | F125: 4 | G125: 2 | H125: 7 | I125: 0 | J125: 0 | K125: 1 | L125: 1 | M125: 2.2 | N125: 0 | O125: 0 | P125: 1 | Q125: 3 | R125: 4 | S125: 4 | T125: 3 | U125: 2 | V125: 4 | W125: 4 | X125: 3 | Y125: 4 | Z125: 4 | AA125: 3 | AB125: 3 | AC125: 3 | AD125: 4 | AE125: 4 | AF125: 3 | AG125: 4 | AH125: 3.666666667 | AI125: 3.333333333 | AJ125: 3.333333333 | AK125: 0 | AL125: 0 | AM125: 0 | AN125: 0 | AO125: 1 | AP125: 0 | AQ125: 36 | AR125: 0 | AS125: 0 | AT125: 0 | AU125: 1 | AV125: 0 | AW125: 0 | AX125: 0 | AY125: 1 | AZ125: 0 | BA125: 0 | BB125: 0 | BC125: 13 | BD125: 10 | BE125: 6 | BF125: 0 | BG125: 1 | BH125: 10 | BI125: 0 | BJ125: 1 | BK125: 0 | BL125: 0 | BM125: 0 | BN125: 1 | BO125: 1 | BP125: 0 | BQ125: 0 | BR125: 1 | BS125: 0 | BT125: 0 | BU125: Psychology | BV125: infant mental health | BW125: psychology | BX125: 4 | BY125: 2 | BZ125: 4 | CA125: 3 | CB125: 4 | CC125: 4 | CD125: 5 | CE125: 3 | CF125: 4 | CG125: 3 | CH125: 5 | CI125: 3.875
A126: 125 | B126: 0 | C126: 0 | D126: 0 | E126: 3 | F126: 3 | G126: 7 | H126: 4 | I126: 0 | J126: 0 | K126: 0 | L126: 0 | M126: 1.7 | N126: 0 | O126: 0 | P126: 1 | Q126: 4 | R126: 4 | S126: 3 | T126: 3 | U126: 3 | V126: 4 | W126: 4 | X126: 4 | Y126: 4 | Z126: 3 | AA126: 3 | AB126: 3 | AC126: 2 | AD126: 4 | AE126: 2 | AF126: 3.333333333 | AG126: 3.666666667 | AH126: 3 | AI126: 3.666666667 | AJ126: 3 | AK126: 0 | AL126: 0 | AM126: 0 | AN126: 0 | AO126: 0 | AP126: 0 | AQ126: 34 | AR126: 0 | AS126: 1 | AT126: 0 | AU126: 0 | AV126: 0 | AW126: 0 | AX126: 0 | AY126: 1 | AZ126: 0 | BA126: 0 | BB126: 0 | BC126: 9 | BD126: 11 | BE126: 5 | BF126: 0 | BG126: 1 | BH126: 7 | BI126: 1 | BJ126: 0 | BK126: 0 | BL126: 0 | BM126: 0 | BN126: 0 | BO126: 0 | BP126: 0 | BQ126: 0 | BR126: 1 | BS126: 0 | BT126: 0 | BU126: Molecular Biology | BV126: obesity/diabetes | BW126: molecular protein chemistry | BX126: 4 | BY126: 2 | BZ126: 5 | CA126: 2 | CB126: 3 | CC126: 3 | CD126: 5 | CE126: 3 | CF126: 3 | CG126: 3 | CH126: 3 | CI126: 3.125
A127: 126 | B127: 0 | C127: 0 | D127: 2 | E127: 2 | F127: 2 | G127: 2 | H127: 4 | I127: 0 | J127: 0 | K127: 0 | L127: 0 | M127: 1.2 | N127: 0 | O127: 0 | P127: 1 | Q127: 4 | R127: 3 | S127: 4 | T127: 2 | U127: 2 | V127: 3 | W127: 4 | X127: 3 | Y127: 4 | Z127: 4 | AA127: 2 | AB127: 2 | AC127: 2 | AD127: 3 | AE127: 2 | AF127: 2.666666667 | AG127: 3.333333333 | AH127: 3.333333333 | AI127: 3 | AJ127: 2.333333333 | AK127: 0 | AL127: 0 | AM127: 0 | AN127: 0 | AO127: 0 | AP127: 0 | AQ127: 31 | AR127: 0 | AS127: 1 | AT127: 0 | AU127: 0 | AV127: 0 | AW127: 0 | AX127: 0 | AY127: 1 | AZ127: 0 | BA127: 0 | BB127: 0 | BC127: 5 | BD127: 10 | BE127: 1 | BF127: 0 | BG127: 1 | BH127: 8 | BI127: 1 | BJ127: 0 | BK127: 0 | BL127: 0 | BM127: 0 | BN127: 1 | BO127: 1 | BP127: 0 | BQ127: 0 | BR127: 1 | BS127: 0 | BT127: 0 | BU127: Molecular Biology | BV127: diabetes | BW127: molecular biology | BX127: 4 | BY127: 4 | BZ127: 3 | CA127: 2 | CB127: 5 | CC127: 5 | CD127: 5 | CE127: 3 | CF127: 5 | CG127: 3 | CH127: 5 | CI127: 4.125
A128: 127 | B128: 8 | C128: 14 | D128: 10 | E128: 73 | F128: 79 | G128: 0 | H128: 108 | I128: 0 | J128: 0 | K128: 1 | L128: 1 | M128: 28.6 | N128: 0 | O128: 1 | P128: 0 | Q128: 4 | R128: 4 | S128: 4 | T128: 4 | U128: 4 | V128: 2 | W128: 4 | X128: 3 | Y128: 4 | Z128: 4 | AA128: 4 | AB128: 3 | AC128: 3 | AD128: 2 | AE128: 4 | AF128: 4 | AG128: 3.333333333 | AH128: 3.666666667 | AI128: 3.333333333 | AJ128: 3.333333333 | AK128: 0 | AL128: 0 | AM128: 0 | AN128: 0 | AO128: 0 | AP128: 0 | AQ128: 51 | AR128: 1 | AS128: 0 | AT128: 1 | AU128: 0 | AV128: 0 | AW128: 0 | AX128: 0 | AY128: 1 | AZ128: 0 | BA128: 0 | BB128: 0 | BC128: 24 | BD128: 28 | BE128: 9 | BF128: 1 | BG128: 1 | BH128: 13 | BI128: 0 | BJ128: 0 | BK128: 0 | BL128: 1 | BM128: 6 | BN128: 1 | BO128: 2 | BP128: 0 | BQ128: 0 | BR128: 1 | BS128: 0 | BT128: 0 | BU128: Molecular Biology | BV128: chemistry and cardiovascular disease | BW128: as above | BX128: 4 | BY128: 2 | BZ128: 5 | CA128: 3 | CB128: 4 | CC128: 4 | CD128: 3 | CE128: 5 | CF128: 5 | CG128: 5 | CH128: 5 | CI128: 4.25
A129: 128 | B129: 0 | C129: 0 | D129: 0 | E129: 0 | F129: 0 | G129: 0 | H129: 0 | I129: 0 | J129: 0 | K129: 0 | L129: 0 | M129: 0 | N129: 0 | O129: 0 | P129: 1 | Q129: 4 | R129: 4 | S129: 2 | T129: 1 | U129: 4 | V129: 2 | W129: 4 | X129: 2 | Y129: 1 | Z129: 5 | AA129: 4 | AB129: 5 | AC129: 4 | AD129: 3 | AE129: 2 | AF129: 3 | AG129: 3.666666667 | AH129: 3.333333333 | AI129: 2.666666667 | AJ129: 3 | AK129: 0 | AL129: 0 | AM129: 0 | AN129: 0 | AO129: 0 | AP129: 0 | AQ129: 30 | AR129: 1 | AS129: 1 | AT129: 0 | AU129: 0 | AV129: 0 | AW129: 0 | AX129: 0 | AY129: 1 | AZ129: 0 | BA129: 0 | BB129: 0 | BC129: 6 | BD129: 6 | BE129: 6 | BF129: 0 | BG129: 0 | BH129: 5 | BI129: 1 | BJ129: 0 | BK129: 0 | BL129: 0 | BM129: 0 | BN129: 0 | BO129: 0 | BP129: 0 | BQ129: 0 | BR129: 0 | BS129: 0 | BT129: 1 | BU129: Mathematics | BV129: mathematics | BW129: maths | BX129: 4 | BY129: 1 | BZ129: 5 | CA129: 5 | CB129: 5 | CC129: 3 | CD129: 5 | CE129: 5 | CF129: 5 | CG129: 5 | CH129: 5 | CI129: 4.75
A130: 129 | B130: 6 | C130: 1 | D130: 0 | E130: 49 | F130: 48 | G130: 19 | H130: 16 | I130: 0 | J130: 0 | K130: 0 | L130: 0 | M130: =AVERAGE(C130:L130) -> 13.3 | N130: 0 | O130: 1 | P130: 0 | Q130: 4 | R130: 4 | S130: 3 | T130: 2 | U130: 3 | V130: 2 | W130: 4 | X130: 3 | Y130: 4 | Z130: 3 | AA130: 1 | AB130: 1 | AC130: 1 | AD130: 3 | AE130: 2 | AF130: 2.333333333 | AG130: 3 | AH130: 2.666666667 | AI130: 2.666666667 | AJ130: 2.666666667 | AK130: 0 | AL130: 1 | AM130: 0 | AN130: 0 | AO130: 0 | AP130: 0 | AQ130: 50 | AR130: 0 | AS130: 1 | AT130: 0 | AU130: 0 | AV130: 0 | AW130: 0 | AX130: 0 | AY130: 0 | AZ130: 1 | BA130: 0 | BB130: 0 | BC130: 23 | BD130: 17 | BE130: 6 | BF130: 0 | BG130: 1 | BH130: 16 | BI130: 0 | BJ130: 1 | BK130: 0 | BL130: 0 | BM130: 0 | BN130: 1 | BO130: 0 | BP130: 0 | BQ130: 0 | BR130: 1 | BS130: 0 | BT130: 0 | BU130: Pharmacology | BV130: biochem/pharmacology | BW130: pharmacology | BX130: 4 | BY130: 2 | BZ130: 5 | CA130: 5 | CB130: 4 | CC130: 4 | CD130: 1 | CE130: 2 | CF130: 3 | CG130: 3 | CH130: 4 | CI130: =AVERAGE(CA130:CH130) -> 3.25
A131: 130 | B131: 0 | C131: 0 | D131: 0 | E131: 3 | F131: 3 | G131: 2 | H131: 0 | I131: 0 | J131: 0 | K131: 0 | L131: 0 | M131: 0.8 | N131: 0 | O131: 1 | P131: 0 | Q131: 4 | R131: 4 | S131: 3 | T131: 2 | U131: 4 | V131: 3 | W131: 4 | X131: 4 | Y131: 4 | Z131: 3 | AA131: 2 | AB131: 2 | AC131: 3 | AD131: 3 | AE131: 3 | AF131: 2.666666667 | AG131: 3.333333333 | AH131: 3.333333333 | AI131: 3.333333333 | AJ131: 3.333333333 | AK131: 0 | AL131: 0 | AM131: 0 | AN131: 0 | AO131: 0 | AP131: 0 | AQ131: 25 | AR131: 0 | AS131: 1 | AT131: 0 | AU131: 0 | AV131: 0 | AW131: 0 | AX131: 0 | AY131: 1 | AZ131: 0 | BA131: 0 | BB131: 0 | BC131: 1 | BD131: 5 | BE131: 5 | BF131: 0 | BG131: 0 | BH131: 7 | BI131: 1 | BJ131: 0 | BK131: 0 | BL131: 0 | BM131: 0 | BN131: 0 | BO131: 0 | BP131: 0 | BQ131: 0 | BR131: 1 | BS131: 0 | BT131: 0 | BU131: Physiology | BV131: biomechanics and pshysiology | BW131: physiology | BX131: 4 | BY131: 1 | BZ131: 4 | CA131: 2 | CB131: 4 | CC131: 3 | CD131: 2 | CE131: 5 | CF131: 4 | CG131: 4 | CH131: 2 | CI131: 3.25
A132: 131 | B132: 4 | C132: 8 | D132: 54 | E132: 54 | F132: 54 | G132: 102 | H132: 90 | I132: 0 | J132: 0 | K132: 2 | L132: 1 | M132: 36.5 | N132: 0 | O132: 1 | P132: 0 | Q132: 5 | R132: 3 | S132: 3 | T132: 3 | U132: 1 | V132: 3 | W132: 2 | X132: 4 | Y132: 4 | Z132: 4 | AA132: 3 | AB132: 3 | AC132: 3 | AD132: 5 | AE132: 5 | AF132: 3.666666667 | AG132: 3.333333333 | AH132: 2.666666667 | AI132: 3.666666667 | AJ132: 3.666666667 | AK132: 0 | AL132: 0 | AM132: 0 | AN132: 0 | AO132: 0 | AP132: 0 | AQ132: 69 | AR132: 0 | AS132: 0 | AT132: 1 | AU132: 0 | AV132: 0 | AW132: 0 | AX132: 0 | AY132: 1 | AZ132: 0 | BA132: 0 | BB132: 0 | BC132: 48 | BD132: 44 | BE132: 32 | BF132: 0 | BG132: 1 | BH132: 16 | BI132: 0 | BJ132: 0 | BK132: 1 | BL132: 0 | BM132: 0 | BN132: 1 | BO132: 2 | BP132: 0 | BQ132: 0 | BR132: 1 | BS132: 0 | BT132: 0 | BU132: Biochemistry | BV132: medical biochemistry | BW132: medical biochemistry | BX132: 5 | BY132: 4 | BZ132: 2 | CA132: 3 | CB132: 5 | CC132: 5 | CD132: 3 | CE132: 4 | CF132: 4 | CG132: 3 | CH132: 5 | CI132: 4
A133: 132 | B133: 0 | C133: 0 | D133: 3 | E133: 3 | F133: 3 | G133: 7 | H133: 4 | I133: 0 | J133: 0 | K133: 0 | L133: 0 | M133: 2 | N133: 0 | O133: 1 | P133: 0 | Q133: 4 | R133: 4 | S133: 3 | T133: 3 | U133: 5 | V133: 5 | W133: 5 | X133: 4 | Y133: 4 | Z133: 5 | AA133: 4 | AB133: 4 | AC133: 1 | AD133: 4 | AE133: 2 | AF133: 3.666666667 | AG133: 4.666666667 | AH133: 3 | AI133: 4 | AJ133: 3.666666667 | AK133: 1 | AL133: 0 | AM133: 0 | AN133: 0 | AO133: 0 | AP133: 0 | AQ133: 27 | AR133: 0 | AS133: 1 | AT133: 0 | AU133: 0 | AV133: 0 | AW133: 0 | AX133: 0 | AY133: 1 | AZ133: 1 | BA133: 0 | BB133: 0 | BC133: 2 | BD133: 2 | BE133: 2 | BF133: 0 | BG133: 1 | BH133: 8 | BI133: 0 | BJ133: 1 | BK133: 0 | BL133: 0 | BM133: 1 | BN133: 0 | BO133: 0 | BP133: 0 | BQ133: 0 | BR133: 1 | BS133: 0 | BT133: 0 | BU133: Molecular Biology | BV133: moleculr biology | BW133: molecular biology | BX133: 2 | BY133: 1 | BZ133: 5 | CA133: 5 | CB133: 5 | CC133: 3 | CD133: 5 | CE133: 5 | CF133: 5 | CG133: 5 | CH133: 5 | CI133: 4.75
A134: 133 | B134: 0 | C134: 0 | D134: 0 | E134: 3 | F134: 3 | G134: 0 | H134: 3 | I134: 0 | J134: 0 | K134: 0 | L134: 0 | M134: 0.9 | N134: 0 | O134: 1 | P134: 0 | Q134: 3 | R134: 4 | S134: 3 | T134: 3 | U134: 4 | V134: 3 | W134: 3 | X134: 3 | Y134: 4 | Z134: 4 | AA134: 3 | AB134: 3 | AC134: 3 | AD134: 3 | AE134: 3 | AF134: 3 | AG134: 3.666666667 | AH134: 3 | AI134: 3.333333333 | AJ134: 3.333333333 | AK134: 0 | AL134: 0 | AM134: 0 | AN134: 0 | AO134: 1 | AP134: 0 | AQ134: 31 | AR134: 0 | AS134: 1 | AT134: 0 | AU134: 0 | AV134: 0 | AW134: 0 | AX134: 0 | AY134: 1 | AZ134: 0 | BA134: 0 | BB134: 0 | BC134: 10 | BD134: 6 | BE134: 6 | BF134: 0 | BG134: 1 | BH134: 4 | BI134: 1 | BJ134: 0 | BK134: 0 | BL134: 0 | BM134: 0 | BN134: 1 | BO134: 1 | BP134: 0 | BQ134: 0 | BR134: 1 | BS134: 0 | BT134: 0 | BU134: Pharmacy | BV134: clinical pharmacy | BW134: pharmacy | BX134: 5 | BY134: 1 | BZ134: 3 | CA134: 4 | CB134: 5 | CC134: 5 | CD134: 3 | CE134: 3 | CF134: 4 | CG134: 2 | CH134: 3 | CI134: 3.625
A135: 134 | B135: 0 | C135: 0 | D135: 0 | E135: 3 | F135: 0 | G135: 7 | H135: 1 | I135: 0 | J135: 0 | K135: 0 | L135: 0 | M135: 1.1 | N135: 0 | O135: 1 | P135: 0 | Q135: 5 | R135: 3 | S135: 4 | T135: 4 | U135: 3 | V135: 3 | W135: 4 | X135: 4 | Y135: 4 | Z135: 3 | AA135: 3 | AB135: 4 | AC135: 4 | AD135: 4 | AE135: 4 | AF135: 4 | AG135: 3 | AH135: 4 | AI135: 4 | AJ135: 3.666666667 | AK135: 0 | AL135: 0 | AM135: 0 | AN135: 0 | AO135: 0 | AP135: 0 | AQ135: 28 | AR135: 0 | AS135: 0 | AT135: 0 | AU135: 1 | AV135: 0 | AW135: 0 | AX135: 0 | AY135: 1 | AZ135: 0 | BA135: 0 | BB135: 0 | BC135: 3 | BD135: 5 | BE135: 5 | BF135: 0 | BG135: 1 | BH135: 8 | BI135: 1 | BJ135: 0 | BK135: 0 | BL135: 0 | BM135: 0 | BN135: 1 | BO135: 1 | BP135: 0 | BQ135: 0 | BR135: 1 | BS135: 0 | BT135: 0 | BU135: Pharmacy | BV135: pharmaceutics health sciences | BW135: pharmacy practice and therapy | BX135: 5 | BY135: 3 | BZ135: 4 | CA135: 4 | CB135: 4 | CC135: 4 | CD135: 4 | CE135: 4 | CF135: 4 | CG135: 4 | CH135: 4 | CI135: 4
A136: 135 | B136: 0 | C136: 0 | D136: 1 | E136: 1 | F136: 1 | G136: 15 | H136: 15 | I136: 0 | J136: 0 | K136: 0 | L136: 0 | M136: 3.3 | N136: 0 | O136: 1 | P136: 0 | Q136: 5 | R136: 5 | S136: 4 | T136: 4 | U136: 4 | V136: 2 | W136: 3 | X136: 4 | Y136: 4 | Z136: 5 | AA136: 5 | AB136: 4 | AC136: 3 | AD136: 2 | AE136: 2 | AF136: 4.666666667 | AG136: 4 | AH136: 3.333333333 | AI136: 4 | AJ136: 2.666666667 | AK136: 0 | AL136: 0 | AM136: 0 | AN136: 0 | AO136: 0 | AP136: 1 | AQ136: 29 | AR136: 1 | AS136: 1 | AT136: 0 | AU136: 0 | AV136: 0 | AW136: 0 | AX136: 0 | AY136: 1 | AZ136: 0 | BA136: 0 | BB136: 0 | BC136: 2 | BD136: 1 | BE136: 2 | BF136: 0 | BG136: 1 | BH136: 10 | BI136: 0 | BJ136: 1 | BK136: 0 | BL136: 0 | BM136: 0 | BN136: 0 | BO136: 0 | BP136: 0 | BQ136: 0 | BR136: 1 | BS136: 0 | BT136: 0 | BU136: Molecular Biology | BV136: gene therapy | BW136: gene therapy, cell biology, molecular biology | BX136: 2 | BY136: 1 | BZ136: 5 | CA136: 5 | CB136: 3 | CC136: 4 | CD136: 4 | CE136: 4 | CF136: 3 | CG136: 5 | CH136: 2 | CI136: 3.75
A137: 136 | B137: 0 | C137: 0 | D137: 4 | E137: 4 | F137: 4 | G137: 3 | H137: 5 | I137: 0 | J137: 0 | K137: 0 | L137: 0 | M137: 2 | N137: 0 | O137: 1 | P137: 0 | Q137: 3 | R137: 2 | S137: 4 | T137: 4 | U137: 2 | V137: 3 | W137: 4 | X137: 3 | Y137: 2 | Z137: 3 | AA137: 2 | AB137: 2 | AC137: 3 | AD137: 2 | AE137: 3 | AF137: 3 | AG137: 2.666666667 | AH137: 3.666666667 | AI137: 2.333333333 | AJ137: 2.333333333 | AK137: 0 | AL137: 0 | AM137: 0 | AN137: 0 | AO137: 0 | AP137: 0 | AQ137: 26 | AR137: 1 | AS137: 1 | AT137: 0 | AU137: 0 | AV137: 0 | AW137: 0 | AX137: 0 | AY137: 0 | AZ137: 0 | BA137: 0 | BB137: 1 | BC137: 6 | BD137: 5 | BE137: 0 | BF137: 0 | BG137: 1 | BH137: 1 | BI137: 0 | BJ137: 0 | BK137: 0 | BL137: 0 | BM137: 0 | BN137: 0 | BO137: 0 | BP137: 0 | BQ137: 0 | BR137: 1 | BS137: 0 | BT137: 0 | BU137: Molecular Biology | BV137: gene therapy | BW137: molecular biology | BX137: 3 | BY137: 4 | BZ137: 5 | CA137: 4 | CB137: 3 | CC137: 3 | CD137: 3 | CE137: 2 | CF137: 2 | CG137: 3 | CH137: 3 | CI137: 2.875
A138: 137 | B138: 0 | C138: 0 | D138: 2 | E138: 3 | F138: 2 | G138: 5 | H138: 3 | I138: 0 | J138: 0 | K138: 0 | L138: 0 | M138: 1.5 | N138: 0 | O138: 1 | P138: 0 | Q138: 4 | R138: 5 | S138: 4 | T138: 3 | U138: 1 | V138: 4 | W138: 4 | X138: 5 | Y138: 5 | Z138: 4 | AA138: 3 | AB138: 3 | AC138: 3 | AD138: 2 | AE138: 2 | AF138: 3.333333333 | AG138: 4.333333333 | AH138: 3.666666667 | AI138: 4.333333333 | AJ138: 1.666666667 | AK138: 0 | AL138: 0 | AM138: 0 | AN138: 0 | AO138: 1 | AP138: 0 | AQ138: 30 | AR138: 0 | AS138: 0 | AT138: 0 | AU138: 1 | AV138: 0 | AW138: 0 | AX138: 0 | AY138: 1 | AZ138: 0 | BA138: 0 | BB138: 0 | BC138: 5 | BD138: 10 | BE138: 3 | BF138: 1 | BG138: 1 | BH138: 7 | BI138: 0 | BJ138: 1 | BK138: 0 | BL138: 0 | BM138: 0 | BN138: 1 | BO138: 0 | BP138: 0 | BQ138: 0 | BR138: 1 | BS138: 0 | BT138: 0 | BU138: Health | BV138: health | BW138: health | BX138: 3 | BY138: 1 | BZ138: 5 | CA138: 5 | CB138: 5 | CC138: 3 | CD138: 4 | CE138: 5 | CF138: 4 | CG138: 3 | CH138: 3 | CI138: 4
A139: 138 | B139: 0 | C139: 0 | D139: 0 | E139: 0 | F139: 0 | G139: 0 | H139: 0 | I139: 0 | J139: 0 | K139: 0 | L139: 0 | M139: 0 | N139: 0 | O139: 1 | P139: 0 | Q139: 3 | R139: 5 | S139: 3 | T139: 2 | U139: 4 | V139: 4 | W139: 3 | X139: 4 | Y139: 4 | Z139: 3 | AA139: 2 | AB139: 2 | AC139: 2 | AD139: 3 | AE139: 4 | AF139: 2.333333333 | AG139: 4 | AH139: 2.666666667 | AI139: 3.333333333 | AJ139: 3.666666667 | AK139: 1 | AL139: 0 | AM139: 0 | AN139: 0 | AO139: 0 | AP139: 0 | AQ139: 23 | AR139: 1 | AS139: 1 | AT139: 0 | AU139: 0 | AV139: 0 | AW139: 0 | AX139: 0 | AY139: 1 | AZ139: 0 | BA139: 0 | BB139: 1 | BC139: 1 | BD139: 2 | BE139: 1 | BF139: 0 | BG139: 0 | BH139: 5 | BI139: 1 | BJ139: 0 | BK139: 0 | BL139: 0 | BM139: 0 | BN139: 0 | BO139: 0 | BP139: 0 | BQ139: 0 | BR139: 1 | BS139: 0 | BT139: 0 | BU139: Molecular Biology | BV139: molecular biology | BW139: molecular biology | BX139: 1 | BY139: 1 | BZ139: 5 | CA139: 4 | CB139: 2 | CC139: 4 | CD139: 3 | CE139: 2 | CF139: 3 | CG139: 2 | CH139: 3 | CI139: 2.875
A140: 139 | B140: 0 | C140: 0 | D140: 2 | E140: 3 | F140: 3 | G140: 0 | H140: 0 | I140: 0 | J140: 0 | K140: 0 | L140: 0 | M140: 0.8 | N140: 0 | O140: 1 | P140: 0 | Q140: 4 | R140: 4 | S140: 4 | T140: 3 | U140: 3 | V140: 4 | W140: 4 | X140: 4 | Y140: 4 | Z140: 3 | AA140: 3 | AB140: 3 | AC140: 4 | AD140: 3 | AE140: 3 | AF140: 3.333333333 | AG140: 3.666666667 | AH140: 4 | AI140: 3.666666667 | AJ140: 3 | AK140: 0 | AL140: 0 | AM140: 1 | AN140: 0 | AO140: 0 | AP140: 0 | AQ140: 30 | AR140: 1 | AS140: 1 | AT140: 0 | AU140: 0 | AV140: 0 | AW140: 0 | AX140: 0 | AY140: 1 | AZ140: 0 | BA140: 0 | BB140: 0 | BC140: 6 | BD140: 6 | BE140: 3 | BF140: 0 | BG140: 0 | BH140: 10 | BI140: 0 | BJ140: 1 | BK140: 0 | BL140: 0 | BM140: 2 | BN140: 1 | BO140: 0 | BP140: 0 | BQ140: 0 | BR140: 1 | BS140: 0 | BT140: 0 | BU140: Molecular Biology | BV140: HIV vaccine research | BW140: molecular bioogy | BX140: 3 | BY140: 2 | BZ140: 4 | CA140: 2 | CB140: 5 | CC140: 5 | CD140: 5 | CE140: 5 | CF140: 5 | CG140: 3 | CH140: 3 | CI140: 4.125
A141: 140 | B141: 2 | C141: 0 | D141: 0 | E141: 22 | F141: 22 | G141: 3 | H141: 6 | I141: 0 | J141: 0 | K141: 2 | L141: 0 | M141: 5.5 | N141: 1 | O141: 0 | P141: 0 | Q141: 4 | R141: 5 | S141: 4 | T141: 3 | U141: 5 | V141: 5 | W141: 3 | X141: 5 | Y141: 5 | Z141: 5 | AA141: 4 | AB141: 3 | AC141: 3 | AD141: 5 | AE141: 3 | AF141: 3.666666667 | AG141: 5 | AH141: 3.333333333 | AI141: 4.333333333 | AJ141: 4.333333333 | AK141: 0 | AL141: 0 | AM141: 0 | AN141: 0 | AO141: 0 | AP141: 0 | AQ141: 46 | AR141: 1 | AS141: 1 | AT141: 0 | AU141: 1 | AV141: 0 | AW141: 0 | AX141: 0 | AY141: 0 | AZ141: 0 | BA141: 0 | BB141: 1 | BC141: 22 | BD141: 10 | BE141: 6 | BF141: 0 | BG141: 1 | BH141: 10 | BI141: 0 | BJ141: 1 | BK141: 0 | BL141: 0 | BM141: 0 | BN141: 1 | BO141: 2 | BP141: 0 | BQ141: 0 | BR141: 1 | BS141: 0 | BT141: 0 | BU141: Physiology | BV141: nutritional physiology | BW141: physiology | BX141: 5 | BY141: 3 | BZ141: 5 | CA141: 2 | CB141: 3 | CC141: 3 | CD141: 5 | CE141: 2 | CF141: 3 | CG141: 3 | CH141: 2 | CI141: 2.875
A142: 141 | B142: 2 | C142: 0 | D142: 2 | E142: 2 | F142: 2 | G142: 2 | H142: 4 | I142: 0 | J142: 0 | K142: 0 | L142: 0 | M142: 1.2 | N142: 1 | O142: 0 | P142: 0 | Q142: 3 | R142: 2 | S142: 2 | T142: 4 | U142: 4 | V142: 3 | W142: 4 | X142: 3 | Y142: 4 | Z142: 4 | AA142: 3 | AB142: 3 | AC142: 3 | AD142: 3 | AE142: 3 | AF142: 3.333333333 | AG142: 3 | AH142: 3 | AI142: 3.333333333 | AJ142: 3.333333333 | AK142: 1 | AL142: 0 | AM142: 0 | AN142: 0 | AO142: 0 | AP142: 0 | AQ142: 35 | AR142: 0 | AS142: 1 | AT142: 0 | AU142: 0 | AV142: 0 | AW142: 0 | AX142: 0 | AY142: 0 | AZ142: 1 | BA142: 0 | BB142: 0 | BC142: 7 | BD142: 3 | BE142: 7 | BF142: 0 | BG142: 1 | BH142: 12 | BI142: 0 | BJ142: 1 | BK142: 0 | BL142: 0 | BM142: 5 | BN142: 1 | BO142: 1 | BP142: 0 | BQ142: 0 | BR142: 1 | BS142: 0 | BT142: 0 | BU142: Physiology | BV142: physiology | BW142: physiology | BX142: 3 | BY142: 3 | BZ142: 5 | CA142: 1 | CB142: 2 | CC142: 1 | CD142: 2 | CE142: 3 | CF142: 2 | CG142: 2 | CH142: 2 | CI142: 1.875
A143: 142 | B143: 0 | C143: 0 | D143: 1 | E143: 2 | F143: 2 | G143: 0 | H143: 0 | I143: 0 | J143: 0 | K143: 0 | L143: 0 | M143: 0.5 | N143: 1 | O143: 0 | P143: 0 | Q143: 3 | R143: 4 | S143: 2 | T143: 5 | U143: 5 | V143: 3 | W143: 5 | X143: 5 | Y143: 5 | Z143: 5 | AA143: 3 | AB143: 3 | AC143: 3 | AD143: 4 | AE143: 3 | AF143: 3.666666667 | AG143: 4 | AH143: 3.333333333 | AI143: 4.333333333 | AJ143: 4 | AK143: 0 | AL143: 0 | AM143: 0 | AN143: 0 | AO143: 0 | AP143: 1 | AQ143: 25 | AR143: 1 | AS143: 1 | AT143: 0 | AU143: 0 | AV143: 0 | AW143: 0 | AX143: 0 | AY143: 0 | AZ143: 0 | BA143: 1 | BB143: 0 | BC143: 0 | BD143: 3 | BE143: 2 | BF143: 0 | BG143: 0 | BH143: 6 | BI143: 1 | BJ143: 0 | BK143: 0 | BL143: 0 | BM143: 0 | BN143: 0 | BO143: 0 | BP143: 0 | BQ143: 0 | BR143: 1 | BS143: 0 | BT143: 0 | BU143: Physiology | BV143: physiology | BW143: physiology | BX143: 4 | BY143: 2 | BZ143: 4 | CA143: 3 | CB143: 3 | CC143: 3 | CD143: 3 | CE143: 2 | CF143: 3 | CG143: 2 | CH143: 2 | CI143: 2.625
A144: 143 | B144: 0 | C144: 0 | D144: 0 | E144: 5 | F144: 5 | G144: 1 | H144: 2 | I144: 0 | J144: 0 | K144: 0 | L144: 0 | M144: 1.3 | N144: 0 | O144: 1 | P144: 0 | Q144: 4 | R144: 4 | S144: 3 | T144: 3 | U144: 5 | V144: 3 | W144: 4 | X144: 4 | Y144: 4 | Z144: 4 | AA144: 3 | AB144: 3 | AC144: 3 | AD144: 2 | AE144: 2 | AF144: 3.333333333 | AG144: 3.666666667 | AH144: 3.333333333 | AI144: 3.666666667 | AJ144: 3 | AK144: 0 | AL144: 0 | AM144: 0 | AN144: 0 | AO144: 0 | AP144: 0 | AQ144: 30 | AR144: 0 | AS144: 1 | AT144: 0 | AU144: 0 | AV144: 0 | AW144: 0 | AX144: 0 | AY144: 1 | AZ144: 0 | BA144: 0 | BB144: 0 | BC144: 6 | BD144: 4 | BE144: 4 | BF144: 0 | BG144: 0 | BH144: 10 | BI144: 1 | BJ144: 0 | BK144: 0 | BL144: 0 | BM144: 0 | BN144: 0 | BO144: 0 | BP144: 0 | BQ144: 0 | BR144: 1 | BS144: 0 | BT144: 0 | BU144: Pharmacology | BV144: metabloilsm | BW144: medical sceince | BX144: 2 | BY144: 4 | BZ144: 4 | CA144: 4 | CB144: 4 | CC144: 3 | CD144: 3 | CE144: 3 | CF144: 3 | CG144: 3 | CH144: 3 | CI144: 3.25
A145: 144 | B145: 0 | C145: 0 | D145: 0 | E145: 6 | F145: 0 | G145: 6 | H145: 7 | I145: 0 | J145: 0 | K145: 0 | L145: 1 | M145: 2 | N145: 0 | O145: 1 | P145: 0 | Q145: 4 | R145: 4 | S145: 4 | T145: 3 | U145: 2 | V145: 4 | W145: 4 | X145: 4 | Y145: 4 | Z145: 4 | AA145: 3 | AB145: 3 | AC145: 3 | AD145: 4 | AE145: 4 | AF145: 3.333333333 | AG145: 4 | AH145: 3.666666667 | AI145: 3.666666667 | AJ145: 3.333333333 | AK145: 0 | AL145: 0 | AM145: 0 | AN145: 0 | AO145: 0 | AP145: 0 | AQ145: 33 | AR145: 0 | AS145: 1 | AT145: 0 | AU145: 0 | AV145: 0 | AW145: 0 | AX145: 0 | AY145: 1 | AZ145: 0 | BA145: 0 | BB145: 1 | BC145: 6 | BD145: 6 | BE145: 6 | BF145: 1 | BG145: 0 | BH145: 13 | BI145: 0 | BJ145: 1 | BK145: 0 | BL145: 0 | BM145: 0 | BN145: 0 | BO145: 2 | BP145: 0 | BQ145: 0 | BR145: 1 | BS145: 0 | BT145: 0 | BU145: Physiology | BV145: pain, sleep, women | BW145: phsysiology | BX145: 4 | BY145: 1 | BZ145: 4 | CA145: 3 | CB145: 4 | CC145: 3 | CD145: 3 | CE145: 4 | CF145: 2 | CG145: 3 | CH145: 2 | CI145: 3
A146: 145 | B146: 1 | C146: 0 | D146: 0 | E146: 0 | F146: 0 | G146: 3 | H146: 3 | I146: 0 | J146: 0 | K146: 0 | L146: 0 | M146: 0.6 | N146: 0 | O146: 1 | P146: 0 | Q146: 3 | R146: 4 | S146: 2 | T146: 2 | U146: 2 | V146: 2 | W146: 2 | X146: 3 | Y146: 4 | Z146: 2 | AA146: 3 | AB146: 2 | AC146: 2 | AD146: 3 | AE146: 2 | AF146: 2.666666667 | AG146: 2.666666667 | AH146: 2 | AI146: 3 | AJ146: 2.333333333 | AK146: 0 | AL146: 0 | AM146: 0 | AN146: 0 | AO146: 1 | AP146: 0 | AQ146: 34 | AR146: 0 | AS146: 1 | AT146: 0 | AU146: 0 | AV146: 0 | AW146: 0 | AX146: 0 | AY146: 1 | AZ146: 0 | BA146: 0 | BB146: 0 | BC146: 10 | BD146: 2 | BE146: 1 | BF146: 0 | BG146: 1 | BH146: 10 | BI146: 0 | BJ146: 1 | BK146: 0 | BL146: 0 | BM146: 10 | BN146: 1 | BO146: 0 | BP146: 0 | BQ146: 0 | BR146: 1 | BS146: 0 | BT146: 0 | BU146: Physiology | BV146: medical oncology | BW146: medical oncology | BX146: 2 | BY146: 1 | BZ146: 2 | CA146: 4 | CB146: 4 | CC146: 4 | CD146: 3 | CE146: 4 | CF146: 4 | CG146: 2 | CH146: 4 | CI146: 3.625
A147: 146 | B147: 6 | C147: 0 | D147: 8 | E147: 3 | F147: 6 | G147: 1 | H147: 4 | I147: 0 | J147: 0 | K147: 0 | L147: 0 | M147: 2.2 | N147: 1 | O147: 0 | P147: 0 | Q147: 3 | R147: 3 | S147: 5 | T147: 2 | U147: 3 | V147: 2 | W147: 4 | X147: 2 | Y147: 3 | Z147: 5 | AA147: 2 | AB147: 2 | AC147: 2 | AD147: 3 | AE147: 3 | AF147: 2.333333333 | AG147: 3.333333333 | AH147: 3.666666667 | AI147: 2.333333333 | AJ147: 3 | AK147: 0 | AL147: 0 | AM147: 0 | AN147: 0 | AO147: 1 | AP147: 0 | AQ147: 39 | AR147: 0 | AS147: 1 | AT147: 0 | AU147: 0 | AV147: 0 | AW147: 0 | AX147: 0 | AY147: 1 | AZ147: 0 | BA147: 0 | BB147: 0 | BC147: 15 | BD147: 9 | BE147: 9 | BF147: 0 | BG147: 1 | BH147: 10 | BI147: 0 | BJ147: 1 | BK147: 0 | BL147: 0 | BM147: 2 | BN147: 1 | BO147: 0 | BP147: 0 | BQ147: 0 | BR147: 1 | BS147: 0 | BT147: 0 | BU147: Pathology | BV147: head and neck diseases | BW147: pathology | BX147: 5 | BY147: 2 | BZ147: 4 | CA147: 4 | CB147: 5 | CC147: 5 | CD147: 3 | CE147: 5 | CF147: 5 | CG147: 3 | CH147: 4 | CI147: 4.25
A148: 147 | B148: 10 | C148: 0 | D148: 24 | E148: 24 | F148: 23 | G148: 2 | H148: 18 | I148: 0 | J148: 0 | K148: 0 | L148: 0 | M148: 9.1 | N148: 0 | O148: 1 | P148: 0 | Q148: 4 | R148: 4 | S148: 3 | T148: 1 | U148: 2 | V148: 3 | W148: 3 | X148: 4 | Y148: 4 | Z148: 3 | AA148: 1 | AB148: 3 | AC148: 2 | AD148: 4 | AE148: 2 | AF148: 2 | AG148: 3.333333333 | AH148: 2.666666667 | AI148: 3.666666667 | AJ148: 2.666666667 | AK148: 0 | AL148: 0 | AM148: 0 | AN148: 1 | AO148: 0 | AP148: 0 | AQ148: 54 | AR148: 0 | AS148: 1 | AT148: 0 | AU148: 0 | AV148: 0 | AW148: 0 | AX148: 0 | AY148: 1 | AZ148: 0 | BA148: 0 | BB148: 1 | BC148: 34 | BD148: 16 | BE148: 16 | BF148: 0 | BG148: 1 | BH148: 16 | BI148: 0 | BJ148: 0 | BK148: 0 | BL148: 1 | BM148: 2 | BN148: 1 | BO148: 2 | BP148: 0 | BQ148: 0 | BR148: 1 | BS148: 0 | BT148: 0 | BU148: Microbiology | BV148: microbiology | BW148: oral microbiology | BX148: 4 | BY148: 1 | BZ148: 5 | CA148: 2 | CB148: 3 | CC148: 4 | CD148: 4 | CE148: 4 | CF148: 2 | CG148: 3 | CH148: 5 | CI148: 3.375
A149: 148 | B149: 2 | C149: 0 | D149: 3 | E149: 3 | F149: 0 | G149: 3 | H149: 6 | I149: 0 | J149: 0 | K149: 1 | L149: 0 | M149: 1.6 | N149: 1 | O149: 0 | P149: 0 | Q149: 3 | R149: 3 | S149: 2 | T149: 2 | U149: 2 | V149: 2 | W149: 3 | X149: 4 | Y149: 4 | Z149: 3 | AA149: 2 | AB149: 2 | AC149: 3 | AD149: 4 | AE149: 4 | AF149: 2.333333333 | AG149: 2.666666667 | AH149: 2.666666667 | AI149: 3.333333333 | AJ149: 3.333333333 | AK149: 0 | AL149: 0 | AM149: 0 | AN149: 1 | AO149: 0 | AP149: 0 | AQ149: 36 | AR149: 1 | AS149: 1 | AT149: 0 | AU149: 0 | AV149: 0 | AW149: 0 | AX149: 0 | AY149: 1 | AZ149: 1 | BA149: 0 | BB149: 0 | BC149: 6 | BD149: 2 | BE149: 1 | BF149: 0 | BG149: 0 | BH149: 10 | BI149: 0 | BJ149: 1 | BK149: 0 | BL149: 0 | BM149: 0 | BN149: 0 | BO149: 0 | BP149: 0 | BQ149: 0 | BR149: 0 | BS149: 1 | BT149: 0 | BU149: Literature & Languages | BV149: literature | BW149: literature | BX149: 2 | BY149: 1 | BZ149: 5 | CA149: 5 | CB149: 3 | CC149: 3 | CD149: 2 | CE149: 2 | CF149: 1 | CG149: 1 | CH149: 4 | CI149: 2.625
A150: 149 | B150: 4 | C150: 1 | D150: 6 | E150: 6 | F150: 0 | G150: 0 | H150: 15 | I150: 4 | J150: 1 | K150: 3 | L150: 0 | M150: 3.6 | N150: 1 | O150: 0 | P150: 0 | Q150: 4 | R150: 2 | S150: 3 | T150: 3 | U150: 2 | V150: 2 | W150: 3 | X150: 2 | Y150: 3 | Z150: 2 | AA150: 3 | AB150: 3 | AC150: 3 | AD150: 4 | AE150: 4 | AF150: 3.333333333 | AG150: 2 | AH150: 3 | AI150: 2.666666667 | AJ150: 3.333333333 | AK150: 0 | AL150: 0 | AM150: 0 | AN150: 0 | AO150: 0 | AP150: 0 | AQ150: 35 | AR150: 1 | AS150: 1 | AT150: 0 | AU150: 0 | AV150: 0 | AW150: 0 | AX150: 0 | AY150: 1 | AZ150: 1 | BA150: 0 | BB150: 0 | BC150: 13 | BD150: 12 | BE150: 7 | BF150: 0 | BG150: 1 | BH150: 8 | BI150: 0 | BJ150: 0 | BK150: 0 | BL150: 1 | BM150: 0 | BN150: 1 | BO150: 2 | BP150: 0 | BQ150: 0 | BR150: 0 | BS150: 1 | BT150: 0 | BU150: Literature & Languages | BV150: literary and cultural studies | BW150: literature and operative writing | BX150: 4 | BY150: 2 | BZ150: 5 | CA150: 3 | CB150: 4 | CC150: 4 | CD150: 4 | CE150: 4 | CF150: 4 | CG150: 4 | CH150: 5 | CI150: 4
A151: 150 | B151: 12 | C151: 3 | D151: 6 | E151: 19 | F151: 2 | G151: 22 | H151: 22 | I151: 1 | J151: 0 | K151: 0 | L151: 0 | M151: 7.5 | N151: 0 | O151: 1 | P151: 0 | Q151: 2 | R151: 2 | S151: 4 | T151: 5 | U151: 3 | V151: 1 | W151: 5 | X151: 4 | Y151: 5 | Z151: 3 | AA151: 5 | AB151: 4 | AC151: 4 | AD151: 4 | AE151: 4 | AF151: 4 | AG151: 2 | AH151: 4.333333333 | AI151: 4.333333333 | AJ151: 3.666666667 | AK151: 0 | AL151: 0 | AM151: 0 | AN151: 0 | AO151: 0 | AP151: 0 | AQ151: 54 | AR151: 1 | AS151: 0 | AT151: 0 | AU151: 0 | AV151: 1 | AW151: 0 | AX151: 0 | AY151: 1 | AZ151: 0 | BA151: 0 | BB151: 0 | BC151: 27 | BD151: 24 | BE151: 24 | BF151: 1 | BG151: 1 | BH151: 12 | BI151: 0 | BJ151: 0 | BK151: 1 | BL151: 0 | BM151: 30 | BN151: 1 | BO151: 4 | BP151: 0 | BQ151: 1 | BR151: 0 | BS151: 0 | BT151: 0 | BU151: Civil Engineering | BV151: civil engineering | BW151: civil engineering | BX151: 3 | BY151: 4 | BZ151: 5 | CA151: 3 | CB151: 5 | CC151: 5 | CD151: 5 | CE151: 3 | CF151: 5 | CG151: 4 | CH151: 5 | CI151: 4.375
A152: 151 | B152: 0 | C152: 0 | D152: 5 | E152: 4 | F152: 2 | G152: 2 | H152: 8 | I152: 0 | J152: 0 | K152: 4 | L152: 2 | M152: 2.7 | N152: 1 | O152: 0 | P152: 0 | Q152: 4 | R152: 4 | S152: 3 | T152: 4 | U152: 2 | V152: 4 | W152: 4 | X152: 3 | Y152: 4 | Z152: 4 | AA152: 4 | AB152: 4 | AC152: 3 | AD152: 3 | AE152: 5 | AF152: 4 | AG152: 4 | AH152: 3.333333333 | AI152: 3.666666667 | AJ152: 3.333333333 | AK152: 1 | AL152: 0 | AM152: 0 | AN152: 0 | AO152: 0 | AP152: 0 | AQ152: 35 | AR152: 1 | AS152: 1 | AT152: 0 | AU152: 0 | AV152: 0 | AW152: 0 | AX152: 0 | AY152: 1 | AZ152: 0 | BA152: 0 | BB152: 0 | BC152: 1 | BD152: 10 | BE152: 1 | BF152: 0 | BG152: 0 | BH152: 10 | BI152: 0 | BJ152: 1 | BK152: 0 | BL152: 0 | BM152: 0 | BN152: 1 | BO152: 0 | BP152: 0 | BQ152: 0 | BR152: 0 | BS152: 0 | BT152: 1 | BU152: Geography | BV152: human geography | BW152: human geography | BX152: 5 | BY152: 1 | BZ152: 5 | CA152: 5 | CB152: 5 | CC152: 5 | CD152: 5 | CE152: 5 | CF152: 5 | CG152: 5 | CH152: 5 | CI152: 5
A153: 152 | B153: 0 | C153: 0 | D153: 0 | E153: 0 | F153: 0 | G153: 0 | H153: 2 | I153: 0 | J153: 0 | K153: 0 | L153: 0 | M153: 0.2 | N153: 0 | O153: 0 | P153: 1 | Q153: 4 | R153: 5 | S153: 3 | T153: 2 | U153: 2 | V153: 5 | W153: 4 | X153: 5 | Y153: 4 | Z153: 4 | AA153: 5 | AB153: 4 | AC153: 4 | AD153: 4 | AE153: 4 | AF153: 3.666666667 | AG153: 4.666666667 | AH153: 3.666666667 | AI153: 4.333333333 | AJ153: 3.333333333 | AK153: 0 | AL153: 1 | AM153: 0 | AN153: 0 | AO153: 1 | AP153: 0 | AQ153: 31 | AR153: 0 | AS153: 1 | AT153: 0 | AU153: 0 | AV153: 0 | AW153: 0 | AX153: 0 | AY153: 1 | AZ153: 0 | BA153: 1 | BB153: 0 | BC153: 4 | BD153: 2 | BE153: 1 | BF153: 0 | BG153: 0 | BH153: 5 | BI153: 0 | BJ153: 1 | BK153: 0 | BL153: 0 | BM153: 0 | BN153: 1 | BO153: 0 | BP153: 0 | BQ153: 0 | BR153: 0 | BS153: 0 | BT153: 1 | BU153: Geography | BV153: geography | BW153: geography | BX153: 4 | BY153: 2 | BZ153: 5 | CA153: 4 | CB153: 4 | CC153: 2 | CD153: 4 | CE153: 1 | CF153: 2 | CG153: 1 | CH153: 1 | CI153: 2.375
A154: 153 | B154: 0 | C154: 0 | D154: 0 | E154: 6 | F154: 4 | G154: 6 | H154: 20 | I154: 0 | J154: 0 | K154: 0 | L154: 0 | M154: 3.6 | N154: 0 | O154: 1 | P154: 0 | Q154: 2 | R154: 4 | S154: 3 | T154: 4 | U154: 4 | V154: 2 | W154: 5 | X154: 5 | Y154: 3 | Z154: 3 | AA154: 4 | AB154: 5 | AC154: 4 | AD154: 2 | AE154: 1 | AF154: 3.333333333 | AG154: 3 | AH154: 4 | AI154: 4.333333333 | AJ154: 2.333333333 | AK154: 0 | AL154: 0 | AM154: 0 | AN154: 0 | AO154: 1 | AP154: 0 | AQ154: 37 | AR154: 0 | AS154: 1 | AT154: 0 | AU154: 0 | AV154: 0 | AW154: 0 | AX154: 0 | AY154: 1 | AZ154: 0 | BA154: 1 | BB154: 0 | BC154: 15 | BD154: 9 | BE154: 3 | BF154: 1 | BG154: 1 | BH154: 10 | BI154: 0 | BJ154: 1 | BK154: 0 | BL154: 0 | BM154: 0 | BN154: 1 | BO154: 2 | BP154: 0 | BQ154: 0 | BR154: 1 | BS154: 0 | BT154: 0 | BU154: Psychology | BV154: language development | BW154: psycholinguistics and semantics | BX154: 1 | BY154: 1 | BZ154: 5 | CA154: 5 | CB154: 4 | CC154: 1 | CD154: 3 | CE154: 2 | CF154: 2 | CG154: 1 | CH154: 2 | CI154: 2.5
A155: 154 | B155: 0 | C155: 0 | D155: 2 | E155: 3 | F155: 0 | G155: 0 | H155: 3 | I155: 1 | J155: 0 | K155: 4 | L155: 0 | M155: 1.3 | N155: 1 | O155: 0 | P155: 0 | Q155: 4 | R155: 3 | S155: 4 | T155: 2 | U155: 1 | V155: 4 | W155: 3 | X155: 2 | Y155: 5 | Z155: 4 | AA155: 5 | AB155: 3 | AC155: 3 | AD155: 5 | AE155: 4 | AF155: 3.666666667 | AG155: 3.666666667 | AH155: 3.333333333 | AI155: 3.333333333 | AJ155: 3.333333333 | AK155: 0 | AL155: 0 | AM155: 1 | AN155: 0 | AO155: 0 | AP155: 0 | AQ155: 39 | AR155: 1 | AS155: 1 | AT155: 0 | AU155: 0 | AV155: 0 | AW155: 0 | AX155: 0 | AY155: 0 | AZ155: 0 | BA155: 1 | BB155: 1 | BC155: 8 | BD155: 9 | BE155: 1 | BF155: 0 | BG155: 1 | BH155: 0 | BI155: 1 | BJ155: 0 | BK155: 0 | BL155: 0 | BM155: 0 | BN155: 1 | BO155: 1 | BP155: 0 | BQ155: 0 | BR155: 0 | BS155: 1 | BT155: 0 | BU155: Literature & Languages | BV155: cinema, television | BW155: cinema, literature | BX155: 4 | BY155: 1 | BZ155: 5 | CA155: 3 | CB155: 5 | CC155: 2 | CD155: 4 | CE155: 1 | CF155: 5 | CG155: 2 | CH155: 5 | CI155: 3.375
A156: 155 | B156: 4 | C156: 0 | D156: 19 | E156: 2 | F156: 0 | G156: 2 | H156: 4 | I156: 0 | J156: 0 | K156: 0 | L156: 11 | M156: 3.8 | N156: 1 | O156: 0 | P156: 0 | Q156: 5 | R156: 3 | S156: 4 | T156: 5 | U156: 3 | V156: 1 | W156: 5 | X156: 2 | Y156: 5 | Z156: 1 | AA156: 4 | AB156: 3 | AC156: 4 | AD156: 5 | AE156: 5 | AF156: 4.666666667 | AG156: 1.666666667 | AH156: 4.333333333 | AI156: 3.333333333 | AJ156: 4.333333333 | AK156: 1 | AL156: 0 | AM156: 0 | AN156: 0 | AO156: 0 | AP156: 0 | AQ156: 46 | AR156: 0 | AS156: 1 | AT156: 0 | AU156: 0 | AV156: 0 | AW156: 0 | AX156: 0 | AY156: 1 | AZ156: 0 | BA156: 0 | BB156: 0 | BC156: 25 | BD156: 4 | BE156: 4 | BF156: 0 | BG156: 0 | BH156: 13 | BI156: 0 | BJ156: 1 | BK156: 0 | BL156: 0 | BM156: 7 | BN156: 1 | BO156: 1 | BP156: 0 | BQ156: 0 | BR156: 0 | BS156: 1 | BT156: 0 | BU156: Literature & Languages | BV156: literature | BW156: creative writing | BX156: 4 | BY156: 1 | BZ156: 4 | CA156: 4 | CB156: 5 | CC156: 3 | CD156: 3 | CE156: 3 | CF156: 5 | CG156: 5 | CH156: 5 | CI156: 4.125
A157: 156 | B157: 4 | C157: 0 | D157: 1 | E157: 0 | F157: 1 | G157: 1 | H157: 1 | I157: 0 | J157: 2 | K157: 0 | L157: 1 | M157: 0.7 | N157: 1 | O157: 0 | P157: 0 | Q157: 2 | R157: 1 | S157: 1 | T157: 5 | U157: 2 | V157: 1 | W157: 3 | X157: 1 | Y157: 4 | Z157: 1 | AA157: 1 | AB157: 1 | AC157: 1 | AD157: 4 | AE157: 1 | AF157: 2.666666667 | AG157: 1 | AH157: 1.666666667 | AI157: 2 | AJ157: 2.333333333 | AK157: 0 | AL157: 0 | AM157: 0 | AN157: 0 | AO157: 0 | AP157: 0 | AQ157: 39 | AR157: 0 | AS157: 1 | AT157: 0 | AU157: 0 | AV157: 0 | AW157: 0 | AX157: 0 | AY157: 1 | AZ157: 0 | BA157: 0 | BB157: 0 | BC157: 20 | BD157: 20 | BE157: 20 | BF157: 0 | BG157: 1 | BH157: 5 | BI157: 1 | BJ157: 0 | BK157: 0 | BL157: 0 | BM157: 0 | BN157: 0 | BO157: 2 | BP157: 0 | BQ157: 0 | BR157: 0 | BS157: 1 | BT157: 0 | BU157: Education | BV157: Education | BW157: educations | BX157: 5 | BY157: 4 | BZ157: 2 | CA157: 5 | CB157: 5 | CC157: 5 | CD157: 5 | CE157: 5 | CF157: 5 | CG157: 5 | CH157: 5 | CI157: 5
A158: 157 | B158: 14 | C158: 0 | D158: 0 | E158: 14 | F158: 13 | G158: 2 | H158: 26 | I158: 1 | J158: 0 | K158: 0 | L158: 0 | M158: 5.6 | N158: 0 | O158: 1 | P158: 0 | Q158: 3 | R158: 3 | S158: 3 | T158: 5 | U158: 3 | V158: 4 | W158: 4 | X158: 4 | Y158: 4 | Z158: 4 | AA158: 5 | AB158: 4 | AC158: 4 | AD158: 2 | AE158: 3 | AF158: 4.333333333 | AG158: 3.666666667 | AH158: 3.666666667 | AI158: 4 | AJ158: 2.666666667 | AK158: 0 | AL158: 0 | AM158: 0 | AN158: 0 | AO158: 0 | AP158: 0 | AQ158: 43 | AR158: 0 | AS158: 1 | AT158: 0 | AU158: 0 | AV158: 0 | AW158: 0 | AX158: 0 | AY158: 1 | AZ158: 1 | BA158: 0 | BB158: 0 | BC158: 16 | BD158: 16 | BE158: 6 | BF158: 1 | BG158: 1 | BH158: 11 | BI158: 0 | BJ158: 0 | BK158: 0 | BL158: 1 | BM158: 3 | BN158: 1 | BO158: 2 | BP158: 1 | BQ158: 0 | BR158: 0 | BS158: 0 | BT158: 1 | BU158: Statistics & Actuarial Science | BV158: mathematics of finance | BW158: mathematics of finance | BX158: 4 | BY158: 1 | BZ158: 5 | CA158: 5 | CB158: 5 | CC158: 5 | CD158: 5 | CE158: 5 | CF158: 5 | CG158: 5 | CH158: 5 | CI158: 5
A159: 158 | B159: 0 | C159: 0 | D159: 0 | E159: 0 | F159: 0 | G159: 0 | H159: 0 | I159: 0 | J159: 0 | K159: 1 | L159: 0 | M159: 0.1 | N159: 1 | O159: 0 | P159: 0 | Q159: 4 | R159: 2 | S159: 2 | T159: 4 | U159: 3 | V159: 2 | W159: 2 | X159: 2 | Y159: 4 | Z159: 2 | AA159: 4 | AB159: 3 | AC159: 2 | AD159: 3 | AE159: 3 | AF159: 4 | AG159: 2 | AH159: 2 | AI159: 3 | AJ159: 3 | AK159: 0 | AL159: 0 | AM159: 0 | AN159: 1 | AO159: 0 | AP159: 0 | AQ159: 40 | AR159: 0 | AS159: 1 | AT159: 0 | AU159: 0 | AV159: 0 | AW159: 0 | AX159: 0 | AY159: 1 | AZ159: 0 | BA159: 0 | BB159: 0 | BC159: 12 | BD159: 4 | BE159: 4 | BF159: 0 | BG159: 1 | BH159: 9 | BI159: 1 | BJ159: 0 | BK159: 0 | BL159: 0 | BM159: 0 | BN159: 0 | BO159: 0 | BP159: 1 | BQ159: 0 | BR159: 0 | BS159: 0 | BT159: 1 | BU159: Statistics & Actuarial Science | BV159: microinsurance | BW159: actuarial science | BX159: 4 | BY159: 2 | BZ159: 3 | CA159: 5 | CB159: 5 | CC159: 5 | CD159: 5 | CE159: 5 | CF159: 5 | CG159: 5 | CH159: 5 | CI159: 5
A160: 159 | B160: 36 | C160: 7 | D160: 8 | E160: 20 | F160: 28 | G160: 65 | H160: 41 | I160: 2 | J160: 1 | K160: 2 | L160: 0 | M160: 17.4 | N160: 0 | O160: 0 | P160: 1 | Q160: 5 | R160: 5 | S160: 3 | T160: 3 | U160: 5 | V160: 5 | W160: 5 | X160: 5 | Y160: 5 | Z160: 5 | AA160: 5 | AB160: 5 | AC160: 1 | AD160: 5 | AE160: 3 | AF160: 4.333333333 | AG160: 5 | AH160: 3 | AI160: 5 | AJ160: 4.333333333 | AK160: 0 | AL160: 0 | AM160: 0 | AN160: 0 | AO160: 0 | AP160: 0 | AQ160: 53 | AR160: 1 | AS160: 0 | AT160: 0 | AU160: 1 | AV160: 0 | AW160: 0 | AX160: 0 | AY160: 0 | AZ160: 0 | BA160: 0 | BB160: 1 | BC160: 22 | BD160: 22 | BE160: 11 | BF160: 0 | BG160: 1 | BH160: 12 | BI160: 0 | BJ160: 0 | BK160: 1 | BL160: 0 | BM160: 10 | BN160: 1 | BO160: 3 | BP160: 0 | BQ160: 0 | BR160: 0 | BS160: 0 | BT160: 1 | BU160: Demographics | BV160: demography | BW160: demography | BX160: 5 | BY160: 3 | BZ160: 5 | CA160: 5 | CB160: 5 | CC160: 5 | CD160: 5 | CE160: 5 | CF160: 5 | CG160: 5 | CH160: 5 | CI160: 5
A161: 160 | B161: 20 | C161: 3 | D161: 10 | E161: 20 | F161: 5 | G161: 40 | H161: 10 | I161: 2 | J161: 0 | K161: 4 | L161: 0 | M161: 9.4 | N161: 1 | O161: 0 | P161: 0 | Q161: 4 | R161: 3 | S161: 3 | T161: 3 | U161: 5 | V161: 3 | W161: 4 | X161: 4 | Y161: 4 | Z161: 3 | AA161: 2 | AB161: 3 | AC161: 3 | AD161: 3 | AE161: 3 | AF161: 3 | AG161: 3 | AH161: 3.333333333 | AI161: 3.666666667 | AJ161: 3.666666667 | AK161: 0 | AL161: 0 | AM161: 0 | AN161: 1 | AO161: 0 | AP161: 0 | AQ161: 58 | AR161: 1 | AS161: 1 | AT161: 0 | AU161: 0 | AV161: 0 | AW161: 0 | AX161: 0 | AY161: 1 | AZ161: 0 | BA161: 0 | BB161: 0 | BC161: 30 | BD161: 30 | BE161: 6 | BF161: 0 | BG161: 1 | BH161: 11 | BI161: 0 | BJ161: 0 | BK161: 0 | BL161: 1 | BM161: 120 | BN161: 1 | BO161: 2 | BP161: 0 | BQ161: 0 | BR161: 0 | BS161: 0 | BT161: 1 | BU161: Demographics | BV161: urban migration, heritage | BW161: urban migration, heritage, methods | BX161: 3 | BY161: 3 | BZ161: 4 | CA161: 3 | CB161: 5 | CC161: 4 | CD161: 3 | CE161: 3 | CF161: 2 | CG161: 5 | CH161: 2 | CI161: 3.375
A162: 161 | B162: 5 | C162: 1 | D162: 0 | E162: 5 | F162: 2 | G162: 0 | H162: 7 | I162: 0 | J162: 0 | K162: 0 | L162: 0 | M162: 1.5 | N162: 0 | O162: 1 | P162: 0 | Q162: 4 | R162: 3 | S162: 3 | T162: 1 | U162: 3 | V162: 2 | W162: 4 | X162: 3 | Y162: 4 | Z162: 4 | AA162: 4 | AB162: 3 | AC162: 4 | AD162: 4 | AE162: 3 | AF162: 3 | AG162: 3 | AH162: 3.666666667 | AI162: 3.333333333 | AJ162: 3.333333333 | AK162: 0 | AL162: 0 | AM162: 0 | AN162: 0 | AO162: 0 | AP162: 1 | AQ162: 37 | AR162: 0 | AS162: 1 | AT162: 0 | AU162: 0 | AV162: 0 | AW162: 0 | AX162: 0 | AY162: 1 | AZ162: 0 | BA162: 0 | BB162: 0 | BC162: 14 | BD162: 14 | BE162: 14 | BF162: 0 | BG162: 1 | BH162: 10 | BI162: 0 | BJ162: 1 | BK162: 0 | BL162: 0 | BM162: 0 | BN162: 1 | BO162: 2 | BP162: 1 | BQ162: 0 | BR162: 0 | BS162: 0 | BT162: 0 | BU162: Economics | BV162: econcomics | BW162: econmoics | BX162: 3 | BY162: 2 | BZ162: 4 | CA162: 5 | CB162: 5 | CC162: 5 | CD162: 5 | CE162: 5 | CF162: 5 | CG162: 4 | CH162: 4 | CI162: 4.75
A163: 162 | B163: 0 | C163: 0 | D163: 1 | E163: 1 | F163: 1 | G163: 1 | H163: 2 | I163: 0 | J163: 0 | K163: 0 | L163: 0 | M163: 0.6 | N163: 1 | O163: 0 | P163: 0 | Q163: 4 | R163: 4 | S163: 2 | T163: 3 | U163: 2 | V163: 4 | W163: 4 | X163: 4 | Y163: 4 | Z163: 3 | AA163: 3 | AB163: 3 | AC163: 3 | AD163: 4 | AE163: 3 | AF163: 3.333333333 | AG163: 3.666666667 | AH163: 3 | AI163: 3.666666667 | AJ163: 3 | AK163: 0 | AL163: 0 | AM163: 0 | AN163: 0 | AO163: 0 | AP163: 0 | AQ163: 32 | AR163: 0 | AS163: 1 | AT163: 0 | AU163: 0 | AV163: 0 | AW163: 0 | AX163: 0 | AY163: 1 | AZ163: 0 | BA163: 0 | BB163: 0 | BC163: 4 | BD163: 4 | BE163: 1 | BF163: 0 | BG163: 1 | BH163: 14 | BI163: 1 | BJ163: 0 | BK163: 0 | BL163: 0 | BM163: 0 | BN163: 0 | BO163: 0 | BP163: 1 | BQ163: 0 | BR163: 0 | BS163: 0 | BT163: 0 | BU163: Commerce | BV163: management | BW163: manegement | BX163: 4 | BY163: 3 | BZ163: 4 | CA163: 2 | CB163: 3 | CC163: 2 | CD163: 2 | CE163: 2 | CF163: 3 | CG163: 2 | CH163: 3 | CI163: 2.375
A164: 163 | B164: 2 | C164: 2 | D164: 0 | E164: 80 | F164: 80 | G164: 6 | H164: 16 | I164: 0 | J164: 0 | K164: 10 | L164: 0 | M164: 19.4 | N164: 0 | O164: 1 | P164: 0 | Q164: 5 | R164: 4 | S164: 3 | T164: 4 | U164: 4 | V164: 5 | W164: 5 | X164: 5 | Y164: 4 | Z164: 4 | AA164: 5 | AB164: 4 | AC164: 5 | AD164: 3 | AE164: 4 | AF164: 4.666666667 | AG164: 4.333333333 | AH164: 4.333333333 | AI164: 4.333333333 | AJ164: 3.666666667 | AK164: 0 | AL164: 0 | AM164: 0 | AN164: 0 | AO164: 0 | AP164: 0 | AQ164: 31 | AR164: 1 | AS164: 0 | AT164: 0 | AU164: 0 | AV164: 0 | AW164: 0 | AX164: 1 | AY164: 1 | AZ164: 0 | BA164: 0 | BB164: 1 | BC164: 4 | BD164: 5 | BE164: 4 | BF164: 0 | BG164: 0 | BH164: 10 | BI164: 1 | BJ164: 0 | BK164: 0 | BL164: 0 | BM164: 0 | BN164: 1 | BO164: 0 | BP164: 0 | BQ164: 0 | BR164: 1 | BS164: 0 | BT164: 0 | BU164: Pharmacology | BV164: biomaterials | BW164: pharmaceuticals | BX164: 2 | BY164: 3 | BZ164: 5 | CA164: 5 | CB164: 5 | CC164: 5 | CD164: 4 | CE164: 3 | CF164: 4 | CG164: 5 | CH164: 5 | CI164: 4.5
A165: 164 | B165: 15 | C165: 1 | D165: 45 | E165: 40 | F165: 32 | G165: 65 | H165: 15 | I165: 0 | J165: 0 | K165: 0 | L165: 0 | M165: 19.8 | N165: 0 | O165: 1 | P165: 0 | Q165: 4 | R165: 2 | S165: 4 | T165: 3 | U165: 4 | V165: 3 | W165: 5 | X165: 4 | Y165: 4 | Z165: 2 | AA165: 4 | AB165: 4 | AC165: 3 | AD165: 4 | AE165: 2 | AF165: 3.666666667 | AG165: 2.333333333 | AH165: 4 | AI165: 4 | AJ165: 3.333333333 | AK165: 0 | AL165: 0 | AM165: 0 | AN165: 1 | AO165: 0 | AP165: 0 | AQ165: 58 | AR165: 1 | AS165: 1 | AT165: 0 | AU165: 0 | AV165: 0 | AW165: 0 | AX165: 0 | AY165: 1 | AZ165: 0 | BA165: 0 | BB165: 0 | BC165: 35 | BD165: 20 | BE165: 15 | BF165: 0 | BG165: 1 | BH165: 14 | BI165: 0 | BJ165: 0 | BK165: 0 | BL165: 1 | BM165: 35 | BN165: 1 | BO165: 2 | BP165: 0 | BQ165: 0 | BR165: 1 | BS165: 0 | BT165: 0 | BU165: Pharmacology | BV165: pharmaceuticals | BW165: pharmacology | BX165: 2 | BY165: 1 | BZ165: 4 | CA165: 3 | CB165: 4 | CC165: 4 | CD165: 2 | CE165: 2 | CF165: 1 | CG165: 1 | CH165: 3 | CI165: 2.5
A166: 165 | B166: 0 | C166: 0 | D166: 0 | E166: 1 | F166: 0 | G166: 1 | H166: 1 | I166: 0 | J166: 0 | K166: 0 | L166: 0 | M166: 0.3 | N166: 0 | O166: 1 | P166: 0 | Q166: 3 | R166: 3 | S166: 3 | T166: 3 | U166: 4 | V166: 3 | W166: 4 | X166: 4 | Y166: 4 | Z166: 3 | AA166: 3 | AB166: 3 | AC166: 2 | AD166: 2 | AE166: 2 | AF166: 3 | AG166: 3 | AH166: 3 | AI166: 3.666666667 | AJ166: 2.666666667 | AK166: 0 | AL166: 1 | AM166: 0 | AN166: 0 | AO166: 1 | AP166: 1 | AQ166: 29 | AR166: 0 | AS166: 1 | AT166: 0 | AU166: 0 | AV166: 0 | AW166: 0 | AX166: 0 | AY166: 1 | AZ166: 0 | BA166: 0 | BB166: 1 | BC166: 3 | BD166: 3 | BE166: 3 | BF166: 0 | BG166: 1 | BH166: 4 | BI166: 1 | BJ166: 0 | BK166: 0 | BL166: 0 | BM166: 3 | BN166: 1 | BO166: 0 | BP166: 0 | BQ166: 0 | BR166: 1 | BS166: 0 | BT166: 0 | BU166: Pharmacology | BV166: pharmacology | BW166: pharmacology | BX166: 3 | BY166: 3 | BZ166: 4 | CA166: 3 | CB166: 4 | CC166: 3 | CD166: 2 | CE166: 4 | CF166: 5 | CG166: 2 | CH166: 3 | CI166: 3.25
A167: 166 | B167: 9 | C167: 1 | D167: 16 | E167: 80 | F167: 85 | G167: 11 | H167: 2 | I167: 0 | J167: 0 | K167: 7 | L167: 0 | M167: 20.2 | N167: 0 | O167: 1 | P167: 0 | Q167: 4 | R167: 4 | S167: 4 | T167: 4 | U167: 4 | V167: 4 | W167: 4 | X167: 4 | Y167: 4 | Z167: 5 | AA167: 4 | AB167: 4 | AC167: 4 | AD167: 3 | AE167: 3 | AF167: 4 | AG167: 4.333333333 | AH167: 4 | AI167: 4 | AJ167: 3.333333333 | AK167: 0 | AL167: 0 | AM167: 0 | AN167: 0 | AO167: 0 | AP167: 0 | AQ167: 31 | AR167: 0 | AS167: 1 | AT167: 0 | AU167: 0 | AV167: 0 | AW167: 0 | AX167: 0 | AY167: 1 | AZ167: 0 | BA167: 0 | BB167: 0 | BC167: 7 | BD167: 9 | BE167: 7 | BF167: 0 | BG167: 1 | BH167: 11 | BI167: 0 | BJ167: 1 | BK167: 0 | BL167: 0 | BM167: 25 | BN167: 0 | BO167: 0 | BP167: 0 | BQ167: 0 | BR167: 1 | BS167: 0 | BT167: 0 | BU167: Pharmacology | BV167: pharmaceutics (drug delivery) | BW167: pharaceutical chemistry | BX167: 3 | BY167: 1 | BZ167: 4 | CA167: 3 | CB167: 2 | CC167: 4 | CD167: 3 | CE167: 3 | CF167: 4 | CG167: 3 | CH167: 3 | CI167: 3.125
A168: 167 | B168: 2 | C168: 0 | D168: 0 | E168: 5 | F168: 5 | G168: 10 | H168: 14 | I168: 0 | J168: 0 | K168: 0 | L168: 0 | M168: 3.4 | N168: 0 | O168: 1 | P168: 0 | Q168: 3 | R168: 3 | S168: 4 | T168: 4 | U168: 3 | V168: 2 | W168: 4 | X168: 3 | Y168: 4 | Z168: 3 | AA168: 3 | AB168: 4 | AC168: 3 | AD168: 3 | AE168: 3 | AF168: 3.333333333 | AG168: 2.666666667 | AH168: 3.666666667 | AI168: 3.666666667 | AJ168: 3 | AK168: 0 | AL168: 0 | AM168: 0 | AN168: 0 | AO168: 0 | AP168: 0 | AQ168: 29 | AR168: 0 | AS168: 1 | AT168: 0 | AU168: 0 | AV168: 0 | AW168: 0 | AX168: 0 | AY168: 1 | AZ168: 0 | BA168: 0 | BB168: 0 | BC168: 4 | BD168: 5 | BE168: 5 | BF168: 0 | BG168: 0 | BH168: 10 | BI168: 0 | BJ168: 1 | BK168: 0 | BL168: 0 | BM168: 0 | BN168: 0 | BO168: 0 | BP168: 0 | BQ168: 0 | BR168: 1 | BS168: 0 | BT168: 0 | BU168: Physiology | BV168: neuroscience | BW168: physiology | BX168: 4 | BY168: 2 | BZ168: 4 | CA168: 4 | CB168: 4 | CC168: 4 | CD168: 4 | CE168: 4 | CF168: 4 | CG168: 4 | CH168: 4 | CI168: 4
A169: 168 | B169: 3 | C169: 2 | D169: 2 | E169: 13 | F169: 15 | G169: 5 | H169: 2 | I169: 0 | J169: 0 | K169: 0 | L169: 0 | M169: 3.9 | N169: 0 | O169: 1 | P169: 0 | Q169: 4 | R169: 4 | S169: 4 | T169: 3 | U169: 3 | V169: 3 | W169: 5 | X169: 3 | Y169: 4 | Z169: 4 | AA169: 3 | AB169: 4 | AC169: 3 | AD169: 4 | AE169: 3 | AF169: 3.333333333 | AG169: 3.666666667 | AH169: 4 | AI169: 3.666666667 | AJ169: 3.333333333 | AK169: 0 | AL169: 0 | AM169: 1 | AN169: 0 | AO169: 0 | AP169: 0 | AQ169: 39 | AR169: 1 | AS169: 1 | AT169: 0 | AU169: 0 | AV169: 0 | AW169: 0 | AX169: 0 | AY169: 1 | AZ169: 0 | BA169: 0 | BB169: 0 | BC169: 15 | BD169: 15 | BE169: 15 | BF169: 0 | BG169: 1 | BH169: 12 | BI169: 0 | BJ169: 0 | BK169: 0 | BL169: 0 | BM169: 2 | BN169: 1 | BO169: 0 | BP169: 0 | BQ169: 0 | BR169: 1 | BS169: 0 | BT169: 0 | BU169: Physiology | BV169: biomechanics | BW169: phsyiology | BX169: 2 | BY169: 2 | BZ169: 4 | CA169: 4 | CB169: 5 | CC169: 4 | CD169: 4 | CE169: 3 | CF169: 5 | CG169: 5 | CH169: 5 | CI169: 4.375
A170: 169 | B170: 0 | C170: 0 | D170: 2 | E170: 2 | F170: 2 | G170: 4 | H170: 1 | I170: 0 | J170: 0 | K170: 0 | L170: 1 | M170: 1.2 | N170: 1 | O170: 0 | P170: 0 | Q170: 5 | R170: 5 | S170: 3 | T170: 4 | U170: 5 | V170: 4 | W170: 5 | X170: 5 | Y170: 5 | Z170: 5 | AA170: 4 | AB170: 4 | AC170: 3 | AD170: 2 | AE170: 3 | AF170: 4.333333333 | AG170: 4.666666667 | AH170: 3.666666667 | AI170: 4.666666667 | AJ170: 3.333333333 | AK170: 0 | AL170: 0 | AM170: 0 | AN170: 0 | AO170: 0 | AP170: 0 | AQ170: 28 | AR170: 0 | AS170: 0 | AT170: 0 | AU170: 1 | AV170: 0 | AW170: 0 | AX170: 0 | AY170: 1 | AZ170: 0 | BA170: 0 | BB170: 1 | BC170: 1 | BD170: 1 | BE170: 1 | BF170: 0 | BG170: 1 | BH170: 9 | BI170: 0 | BJ170: 1 | BK170: 0 | BL170: 0 | BM170: 0 | BN170: 0 | BO170: 0 | BP170: 0 | BQ170: 0 | BR170: 1 | BS170: 0 | BT170: 0 | BU170: Molecular Biology | BV170: molecular biology | BW170: molecular biology | BX170: 3 | BY170: 3 | BZ170: 5 | CA170: 4 | CB170: 2 | CC170: 2 | CD170: 4 | CE170: 3 | CF170: 2 | CG170: 5 | CH170: 3 | CI170: 3.125
A171: 170 | B171: 0 | C171: 0 | D171: 0 | E171: 2 | F171: 0 | G171: 10 | H171: 3 | I171: 0 | J171: 0 | K171: 0 | L171: 0 | M171: 1.5 | N171: 0 | O171: 1 | P171: 0 | Q171: 4 | R171: 4 | S171: 3 | T171: 4 | U171: 4 | V171: 2 | W171: 5 | X171: 5 | Y171: 5 | Z171: 4 | AA171: 5 | AB171: 3 | AC171: 3 | AD171: 4 | AE171: 3 | AF171: 4.333333333 | AG171: 3.333333333 | AH171: 3.666666667 | AI171: 4.333333333 | AJ171: 3.666666667 | AK171: 0 | AL171: 0 | AM171: 0 | AN171: 0 | AO171: 0 | AP171: 0 | AQ171: 29 | AR171: 0 | AS171: 0 | AT171: 0 | AU171: 0 | AV171: 0 | AW171: 0 | AX171: 1 | AY171: 0 | AZ171: 0 | BA171: 0 | BB171: 1 | BC171: 5 | BD171: 5 | BE171: 5 | BF171: 0 | BG171: 1 | BH171: 7 | BI171: 1 | BJ171: 0 | BK171: 0 | BL171: 0 | BM171: 0 | BN171: 1 | BO171: 1 | BP171: 0 | BQ171: 0 | BR171: 1 | BS171: 0 | BT171: 0 | BU171: Pharmacology | BV171: oncology, basic pharmacology | BW171: endocrine pharmacology | BX171: 5 | BY171: 1 | BZ171: 3 | CA171: 3 | CB171: 3 | CC171: 4 | CD171: 3 | CE171: 3 | CF171: 3 | CG171: 2 | CH171: 2 | CI171: 2.875
A172: 171 | B172: 15 | C172: 29 | D172: 14 | E172: 206 | F172: 219 | G172: 16 | H172: 16 | I172: 1 | J172: 1 | K172: 13 | L172: 0 | M172: 51.5 | N172: 0 | O172: 1 | P172: 0 | Q172: 3 | R172: 5 | S172: 5 | T172: 4 | U172: 5 | V172: 2 | W172: 5 | X172: 4 | Y172: 4 | Z172: 4 | AA172: 4 | AB172: 4 | AC172: 3 | AD172: 4 | AE172: 2 | AF172: 3.666666667 | AG172: 3.666666667 | AH172: 4.333333333 | AI172: 4 | AJ172: 3.666666667 | AK172: 0 | AL172: 1 | AM172: 0 | AN172: 0 | AO172: 0 | AP172: 0 | AQ172: 73 | AR172: 1 | AS172: 1 | AT172: 0 | AU172: 0 | AV172: 0 | AW172: 0 | AX172: 0 | AY172: 1 | AZ172: 0 | BA172: 0 | BB172: 0 | BC172: 50 | BD172: 50 | BE172: 39 | BF172: 0 | BG172: 1 | BH172: 12 | BI172: 0 | BJ172: 0 | BK172: 1 | BL172: 0 | BM172: 0 | BN172: 1 | BO172: 0 | BP172: 0 | BQ172: 0 | BR172: 1 | BS172: 0 | BT172: 0 | BU172: Physiology | BV172: phsyiology | BW172: physiology | BX172: 2 | BY172: 1 | BZ172: 4 | CA172: 4 | CB172: 5 | CC172: 4 | CD172: 2 | CE172: 4 | CF172: 3 | CG172: 3 | CH172: 5 | CI172: 3.75
A173: 172 | B173: 0 | C173: 3 | D173: 1 | E173: 17 | F173: 17 | G173: 1 | H173: 6 | I173: 0 | J173: 0 | K173: 0 | L173: 0 | M173: 4.5 | N173: 0 | O173: 1 | P173: 5 | Q173: 4 | R173: 4 | S173: 4 | T173: 3 | U173: 4 | V173: 3 | W173: 3 | X173: 5 | Y173: 4 | Z173: 4 | AA173: 4 | AB173: 4 | AC173: 5 | AD173: 5 | AE173: 5 | AF173: 3.666666667 | AG173: 3.666666667 | AH173: 4 | AI173: 4.333333333 | AJ173: 4.666666667 | AK173: 0 | AL173: 0 | AM173: 0 | AN173: 0 | AO173: 0 | AP173: 0 | AQ173: 54 | AR173: 1 | AS173: 1 | AT173: 0 | AU173: 0 | AV173: 0 | AW173: 0 | AX173: 0 | AY173: 1 | AZ173: 0 | BA173: 0 | BB173: 0 | BC173: 28 | BD173: 28 | BE173: 25 | BF173: 0 | BG173: 1 | BH173: 10 | BI173: 0 | BJ173: 1 | BK173: 0 | BL173: 0 | BM173: 0 | BN173: 1 | BO173: 1 | BP173: 0 | BQ173: 0 | BR173: 1 | BS173: 0 | BT173: 0 | BU173: Physiology | BV173: wildlife applied physiology | BW173: physiology | BX173: 4 | BY173: 1 | BZ173: 5 | CA173: 2 | CB173: 4 | CC173: 3 | CD173: 5 | CE173: 5 | CF173: 5 | CG173: 4 | CH173: 5 | CI173: 4.125
A174: 173 | B174: 3 | C174: 0 | D174: 10 | E174: 10 | F174: 10 | G174: 3 | H174: 25 | I174: 0 | J174: 0 | K174: 0 | L174: 0 | M174: 5.8 | N174: 0 | O174: 1 | P174: 0 | Q174: 4 | R174: 4 | S174: 4 | T174: 4 | U174: 4 | V174: 1 | W174: 3 | X174: 4 | Y174: 4 | Z174: 3 | AA174: 2 | AB174: 3 | AC174: 2 | AD174: 3 | AE174: 2 | AF174: 3.333333333 | AG174: 2.666666667 | AH174: 3 | AI174: 3.666666667 | AJ174: 3 | AK174: 0 | AL174: 0 | AM174: 0 | AN174: 0 | AO174: 0 | AP174: 0 | AQ174: 53 | AR174: 0 | AS174: 0 | AT174: 0 | AU174: 0 | AV174: 0 | AW174: 0 | AX174: 1 | AY174: 1 | AZ174: 0 | BA174: 0 | BB174: 0 | BC174: 32 | BD174: 5 | BE174: 5 | BF174: 0 | BG174: 1 | BH174: 10 | BI174: 0 | BJ174: 1 | BK174: 0 | BL174: 0 | BM174: 40 | BN174: 1 | BO174: 1 | BP174: 0 | BQ174: 0 | BR174: 1 | BS174: 0 | BT174: 0 | BU174: Pathology | BV174: metabolic disease | BW174: metabolic disease | BX174: 1 | BY174: 5 | BZ174: 1 | CA174: 3 | CB174: 4 | CC174: 2 | CD174: 2 | CE174: 4 | CF174: 4 | CG174: 3 | CH174: 4 | CI174: 3.25
A175: 174 | B175: 0 | C175: 0 | D175: 0 | E175: 0 | F175: 0 | G175: 0 | H175: 2 | I175: 0 | J175: 0 | K175: 0 | L175: 0 | M175: 0.2 | N175: 0 | O175: 1 | P175: 0 | Q175: 3 | R175: 2 | S175: 2 | T175: 2 | U175: 4 | V175: 1 | W175: 3 | X175: 2 | Y175: 4 | Z175: 2 | AA175: 2 | AB175: 2 | AC175: 2 | AD175: 2 | AE175: 2 | AF175: 2.333333333 | AG175: 1.666666667 | AH175: 2.333333333 | AI175: 2.666666667 | AJ175: 2.666666667 | AK175: 0 | AL175: 0 | AM175: 0 | AN175: 0 | AO175: 0 | AP175: 0 | AQ175: 39 | AR175: 1 | AS175: 1 | AT175: 0 | AU175: 0 | AV175: 0 | AW175: 0 | AX175: 0 | AY175: 0 | AZ175: 0 | BA175: 1 | BB175: 0 | BC175: 13 | BD175: 2 | BE175: 2 | BF175: 1 | BG175: 1 | BH175: 11 | BI175: 0 | BJ175: 1 | BK175: 0 | BL175: 0 | BM175: 3 | BN175: 1 | BO175: 2 | BP175: 0 | BQ175: 0 | BR175: 1 | BS175: 0 | BT175: 0 | BU175: Pathology | BV175: metabolic medicine | BW175: pathology | BX175: 4 | BY175: 4 | BZ175: 2 | CA175: 3 | CB175: 2 | CC175: 3 | CD175: 4 | CE175: 4 | CF175: 3 | CG175: 3 | CH175: 4 | CI175: 3.25
A176: 175 | B176: 10 | C176: 2 | D176: 40 | E176: 45 | F176: 45 | G176: 10 | H176: 160 | I176: 0 | J176: 1 | K176: 1 | L176: 3 | M176: 30.7 | N176: 0 | O176: 1 | P176: 0 | Q176: 5 | R176: 3 | S176: 5 | T176: 3 | U176: 5 | V176: 3 | W176: 1 | X176: 5 | Y176: 5 | Z176: 4 | AA176: 4 | AB176: 5 | AC176: 5 | AD176: 5 | AE176: 4 | AF176: 4 | AG176: 3.333333333 | AH176: 3.666666667 | AI176: 5 | AJ176: 4.666666667 | AK176: 0 | AL176: 0 | AM176: 0 | AN176: 0 | AO176: 0 | AP176: 0 | AQ176: 52 | AR176: 0 | AS176: 1 | AT176: 0 | AU176: 0 | AV176: 0 | AW176: 0 | AX176: 0 | AY176: 1 | AZ176: 0 | BA176: 0 | BB176: 0 | BC176: 30 | BD176: 30 | BE176: 28 | BF176: 0 | BG176: 1 | BH176: 11 | BI176: 0 | BJ176: 0 | BK176: 0 | BL176: 1 | BM176: 15 | BN176: 1 | BO176: 3 | BP176: 0 | BQ176: 0 | BR176: 1 | BS176: 0 | BT176: 0 | BU176: Pathology | BV176: lab operational research, HIV immunology | BW176: immunology | BX176: 3 | BY176: 1 | BZ176: 5 | CA176: 3 | CB176: 3 | CC176: 3 | CD176: 4 | CE176: 4 | CF176: 4 | CG176: 3 | CH176: 5 | CI176: 3.625
A177: 176 | B177: 0 | C177: 1 | D177: 0 | E177: 1 | F177: 9 | G177: 2 | H177: 0 | I177: 0 | J177: 0 | K177: 0 | L177: 0 | M177: 1.3 | N177: 0 | O177: 1 | P177: 0 | Q177: 4 | R177: 4 | S177: 3 | T177: 1 | U177: 4 | V177: 2 | W177: 1 | X177: 2 | Y177: 3 | Z177: 1 | AA177: 1 | AB177: 3 | AC177: 1 | AD177: 2 | AE177: 2 | AF177: 2 | AG177: 2.333333333 | AH177: 1.666666667 | AI177: 2.666666667 | AJ177: 2.666666667 | AK177: 0 | AL177: 1 | AM177: 0 | AN177: 0 | AO177: 0 | AP177: 0 | AQ177: 37 | AR177: 1 | AS177: 1 | AT177: 0 | AU177: 0 | AV177: 0 | AW177: 0 | AX177: 0 | AY177: 0 | AZ177: 1 | BA177: 0 | BB177: 0 | BC177: 13 | BD177: 4 | BE177: 4 | BF177: 0 | BG177: 1 | BH177: 11 | BI177: 0 | BJ177: 1 | BK177: 0 | BL177: 0 | BM177: 0 | BN177: 1 | BO177: 0 | BP177: 0 | BQ177: 0 | BR177: 1 | BS177: 0 | BT177: 0 | BU177: Pathology | BV177: anatomical pathology | BW177: anamtomical pathology | BX177: 4 | BY177: 1 | BZ177: 3 | CA177: 5 | CB177: 4 | CC177: 4 | CD177: 3 | CE177: 4 | CF177: 4 | CG177: 3 | CH177: 3 | CI177: 3.75
A178: 177 | B178: 3 | C178: 2 | D178: 18 | E178: 23 | F178: 41 | G178: 49 | H178: 27 | I178: 0 | J178: 0 | K178: 1 | L178: 0 | M178: 16.1 | N178: 0 | O178: 1 | P178: 0 | Q178: 5 | R178: 5 | S178: 5 | T178: 3 | U178: 3 | V178: 4 | W178: 2 | X178: 4 | Y178: 4 | Z178: 4 | AA178: 3 | AB178: 3 | AC178: 4 | AD178: 4 | AE178: 4 | AF178: 3.666666667 | AG178: 4.333333333 | AH178: 3.666666667 | AI178: 3.666666667 | AJ178: 3.666666667 | AK178: 0 | AL178: 0 | AM178: 0 | AN178: 0 | AO178: 0 | AP178: 0 | AQ178: 54 | AR178: 0 | AS178: 1 | AT178: 0 | AU178: 0 | AV178: 0 | AW178: 0 | AX178: 0 | AY178: 0 | AZ178: 1 | BA178: 0 | BB178: 0 | BC178: 32 | BD178: 32 | BE178: 25 | BF178: 1 | BG178: 1 | BH178: 12 | BI178: 0 | BJ178: 1 | BK178: 0 | BL178: 0 | BM178: 2 | BN178: 0 | BO178: 0 | BP178: 0 | BQ178: 0 | BR178: 1 | BS178: 0 | BT178: 0 | BU178: Pathology | BV178: medical biochemistry | BW178: surgical skill | BX178: 5 | BY178: 1 | BZ178: 4 | CA178: 1 | CB178: 1 | CC178: 1 | CD178: 1 | CE178: 1 | CF178: 1 | CG178: 1 | CH178: 1 | CI178: 1
A179: 178 | B179: 1 | C179: 0 | D179: 2 | E179: 12 | F179: 2 | G179: 12 | H179: 6 | I179: 0 | J179: 0 | K179: 0 | L179: 0 | M179: 3.4 | N179: 1 | O179: 0 | P179: 0 | Q179: 3 | R179: 5 | S179: 3 | T179: 4 | U179: 4 | V179: 3 | W179: 4 | X179: 4 | Y179: 5 | Z179: 4 | AA179: 3 | AB179: 3 | AC179: 3 | AD179: 3 | AE179: 3 | AF179: 3.333333333 | AG179: 4 | AH179: 3.333333333 | AI179: 4 | AJ179: 3.333333333 | AK179: 0 | AL179: 0 | AM179: 0 | AN179: 0 | AO179: 0 | AP179: 0 | AQ179: 36 | AR179: 0 | AS179: 1 | AT179: 0 | AU179: 0 | AV179: 0 | AW179: 0 | AX179: 0 | AY179: 0 | AZ179: 0 | BA179: 1 | BB179: 0 | BC179: 1 | BD179: 9 | BE179: 1 | BF179: 1 | BG179: 1 | BH179: 12 | BI179: 0 | BJ179: 1 | BK179: 0 | BL179: 0 | BM179: 0 | BN179: 0 | BO179: 0 | BP179: 0 | BQ179: 0 | BR179: 1 | BS179: 0 | BT179: 0 | BU179: Pathology | BV179: medical science | BW179: medical science | BX179: 2 | BY179: 2 | BZ179: 5 | CA179: 4 | CB179: 4 | CC179: 4 | CD179: 3 | CE179: 2 | CF179: 3 | CG179: 2 | CH179: 2 | CI179: 3
A180: 179 | B180: 1 | C180: 0 | D180: 1 | E180: 12 | F180: 13 | G180: 4 | H180: 10 | I180: 0 | J180: 0 | K180: 0 | L180: 0 | M180: 4 | N180: 1 | O180: 0 | P180: 0 | Q180: 3 | R180: 3 | S180: 2 | T180: 2 | U180: 4 | V180: 2 | W180: 3 | X180: 3 | Y180: 4 | Z180: 2 | AA180: 2 | AB180: 2 | AC180: 2 | AD180: 3 | AE180: 2 | AF180: 2.333333333 | AG180: 2.333333333 | AH180: 2.333333333 | AI180: 3 | AJ180: 3 | AK180: 0 | AL180: 0 | AM180: 0 | AN180: 0 | AO180: 0 | AP180: 1 | AQ180: 59 | AR180: 0 | AS180: 1 | AT180: 0 | AU180: 0 | AV180: 0 | AW180: 0 | AX180: 0 | AY180: 1 | AZ180: 0 | BA180: 0 | BB180: 0 | BC180: 21 | BD180: 13 | BE180: 2 | BF180: 0 | BG180: 1 | BH180: 7 | BI180: 1 | BJ180: 0 | BK180: 0 | BL180: 0 | BM180: 0 | BN180: 1 | BO180: 0 | BP180: 0 | BQ180: 0 | BR180: 1 | BS180: 0 | BT180: 0 | BU180: Pathology | BV180: medical science | BW180: biology | BX180: 4 | BY180: 1 | BZ180: 4 | CA180: 4 | CB180: 3 | CC180: 3 | CD180: 2 | CE180: 3 | CF180: 2 | CG180: 4 | CH180: 2 | CI180: 2.875
A181: 180 | B181: 0 | C181: 0 | D181: 302 | E181: 3 | F181: 2 | G181: 1 | H181: 0 | I181: 1 | J181: 4 | K181: 0 | L181: 1 | M181: 31.4 | N181: 0 | O181: 0 | P181: 4 | Q181: 4 | R181: 3 | S181: 2 | T181: 1 | U181: 4 | V181: 2 | W181: 3 | X181: 4 | Y181: 4 | Z181: 2 | AA181: 4 | AB181: 3 | AC181: 4 | AD181: 4 | AE181: 3 | AF181: 3 | AG181: 2.333333333 | AH181: 3 | AI181: 3.666666667 | AJ181: 3.666666667 | AK181: 0 | AL181: 0 | AM181: 0 | AN181: 0 | AO181: 0 | AP181: 0 | AQ181: 69 | AR181: 1 | AS181: 1 | AT181: 0 | AU181: 0 | AV181: 0 | AW181: 0 | AX181: 0 | AY181: 1 | AZ181: 0 | BA181: 0 | BB181: 1 | BC181: 42 | BD181: 5 | BE181: 5 | BF181: 1 | BG181: 1 | BH181: 7 | BI181: 1 | BJ181: 0 | BK181: 0 | BL181: 0 | BM181: 0 | BN181: 1 | BO181: 0 | BP181: 0 | BQ181: 0 | BR181: 1 | BS181: 0 | BT181: 0 | BU181: Pathology | BV181: substance abuse | BW181: susbtance abuse | BX181: 4 | BY181: 1 | BZ181: 4 | CA181: 2 | CB181: 5 | CC181: 5 | CD181: 2 | CE181: 3 | CF181: 3 | CG181: 2 | CH181: 3 | CI181: 3.125
A182: 181 | B182: 2 | C182: 0 | D182: 0 | E182: 24 | F182: 24 | G182: 2 | H182: 16 | I182: 0 | J182: 0 | K182: 0 | L182: 0 | M182: 6.6 | N182: 0 | O182: 1 | P182: 0 | Q182: 3 | R182: 4 | S182: 2 | T182: 4 | U182: 4 | V182: 3 | W182: 4 | X182: 3 | Y182: 4 | Z182: 3 | AA182: 4 | AB182: 3 | AC182: 3 | AD182: 4 | AE182: 3 | AF182: 3.666666667 | AG182: 3.333333333 | AH182: 3 | AI182: 3.333333333 | AJ182: 3.666666667 | AK182: 0 | AL182: 0 | AM182: 0 | AN182: 0 | AO182: 0 | AP182: 0 | AQ182: 32 | AR182: 0 | AS182: 1 | AT182: 0 | AU182: 0 | AV182: 0 | AW182: 0 | AX182: 0 | AY182: 1 | AZ182: 0 | BA182: 0 | BB182: 0 | BC182: 6 | BD182: 6 | BE182: 6 | BF182: 0 | BG182: 1 | BH182: 9 | BI182: 0 | BJ182: 1 | BK182: 0 | BL182: 0 | BM182: 4 | BN182: 1 | BO182: 1 | BP182: 0 | BQ182: 0 | BR182: 1 | BS182: 0 | BT182: 0 | BU182: Physiology | BV182: ecophysiology | BW182: ecophysiology | BX182: 3 | BY182: 1 | BZ182: 5 | CA182: 3 | CB182: 4 | CC182: 5 | CD182: 5 | CE182: 5 | CF182: 5 | CG182: 5 | CH182: 5 | CI182: 4.625
A183: 182 | B183: 17 | C183: 4 | D183: 0 | E183: 36 | F183: 36 | G183: 0 | H183: 10 | I183: 0 | J183: 0 | K183: 0 | L183: 0 | M183: 8.6 | N183: 0 | O183: 1 | P183: 0 | Q183: 4 | R183: 4 | S183: 3 | T183: 4 | U183: 4 | V183: 4 | W183: 4 | X183: 2 | Y183: 5 | Z183: 4 | AA183: 3 | AB183: 3 | AC183: 3 | AD183: 4 | AE183: 3 | AF183: 3.666666667 | AG183: 4 | AH183: 3.333333333 | AI183: 3.333333333 | AJ183: 3.666666667 | AK183: 1 | AL183: 0 | AM183: 0 | AN183: 0 | AO183: 0 | AP183: 0 | AQ183: 46 | AR183: 0 | AS183: 1 | AT183: 0 | AU183: 0 | AV183: 0 | AW183: 0 | AX183: 0 | AY183: 1 | AZ183: 0 | BA183: 0 | BB183: 0 | BC183: 22 | BD183: 22 | BE183: 22 | BF183: 0 | BG183: 1 | BH183: 11 | BI183: 0 | BJ183: 0 | BK183: 0 | BL183: 1 | BM183: 16 | BN183: 0 | BO183: 0 | BP183: 0 | BQ183: 0 | BR183: 1 | BS183: 0 | BT183: 0 | BU183: Pharmacology | BV183: pharmacology, malaria, toxicology | BW183: pharmacology, parasitology | BX183: 4 | BY183: 1 | BZ183: 5 | CA183: 1 | CB183: 5 | CC183: 5 | CD183: 5 | CE183: 5 | CF183: 5 | CG183: 5 | CH183: 5 | CI183: 4.5
A184: 183 | B184: 2 | C184: 0 | D184: 14 | E184: 14 | F184: 0 | G184: 40 | H184: 40 | I184: 0 | J184: 0 | K184: 0 | L184: 0 | M184: 10.8 | N184: 0 | O184: 1 | P184: 0 | Q184: 3 | R184: 2 | S184: 3 | T184: 3 | U184: 2 | V184: 3 | W184: 2 | X184: 3 | Y184: 3 | Z184: 3 | AA184: 2 | AB184: 3 | AC184: 3 | AD184: 3 | AE184: 3 | AF184: 2.666666667 | AG184: 2.666666667 | AH184: 2.666666667 | AI184: 3 | AJ184: 2.666666667 | AK184: 0 | AL184: 0 | AM184: 1 | AN184: 0 | AO184: 0 | AP184: 0 | AQ184: 55 | AR184: 1 | AS184: 1 | AT184: 0 | AU184: 0 | AV184: 0 | AW184: 0 | AX184: 0 | AY184: 1 | AZ184: 0 | BA184: 0 | BB184: 0 | BC184: 26 | BD184: 24 | BE184: 20 | BF184: 0 | BG184: 1 | BH184: 8 | BI184: 0 | BJ184: 1 | BK184: 0 | BL184: 0 | BM184: 0 | BN184: 1 | BO184: 2 | BP184: 0 | BQ184: 0 | BR184: 1 | BS184: 0 | BT184: 0 | BU184: Pharmacy | BV184: CVD | BW184: CVD | BX184: 4 | BY184: 1 | BZ184: 4 | CA184: 4 | CB184: 4 | CC184: 4 | CD184: 4 | CE184: 3 | CF184: 4 | CG184: 4 | CH184: 4 | CI184: 3.875
A185: 184 | B185: 14 | C185: 10 | D185: 0 | E185: 135 | F185: 135 | G185: 50 | H185: 205 | I185: 0 | J185: 0 | K185: 15 | L185: 0 | M185: 55 | N185: 0 | O185: 1 | P185: 0 | Q185: 5 | R185: 5 | S185: 5 | T185: 4 | U185: 5 | V185: 5 | W185: 5 | X185: 5 | Y185: 5 | Z185: 5 | AA185: 5 | AB185: 5 | AC185: 5 | AD185: 3 | AE185: 1 | AF185: 4.666666667 | AG185: 5 | AH185: 5 | AI185: 5 | AJ185: 3 | AK185: 0 | AL185: 0 | AM185: 0 | AN185: 0 | AO185: 0 | AP185: 0 | AQ185: 33 | AR185: 1 | AS185: 1 | AT185: 0 | AU185: 0 | AV185: 0 | AW185: 0 | AX185: 0 | AY185: 1 | AZ185: 1 | BA185: 0 | BB185: 0 | BC185: 10 | BD185: 12 | BE185: 11 | BF185: 0 | BG185: 1 | BH185: 10 | BI185: 0 | BJ185: 0 | BK185: 0 | BL185: 1 | BM185: 15 | BN185: 1 | BO185: 1 | BP185: 0 | BQ185: 0 | BR185: 1 | BS185: 0 | BT185: 0 | BU185: Pharmacology | BV185: pharamceutics/drug delivery | BW185: pharmaceutics/drug delivery | BX185: 5 | BY185: 4 | BZ185: 5 | CA185: 3 | CB185: 3 | CC185: 3 | CD185: 3 | CE185: 3 | CF185: 3 | CG185: 2 | CH185: 3 | CI185: 2.875
A186: 185 | B186: 50 | C186: 5 | D186: 20 | E186: 12 | F186: 16 | G186: 2 | H186: 20 | I186: 2 | J186: 0 | K186: 10 | L186: 2 | M186: 8.9 | N186: 1 | O186: 0 | P186: 0 | Q186: 3 | R186: 3 | S186: 2 | T186: 4 | U186: 2 | V186: 1 | W186: 4 | X186: 3 | Y186: 4 | Z186: 1 | AA186: 3 | AB186: 3 | AC186: 2 | AD186: 3 | AE186: 2 | AF186: 3.333333333 | AG186: 1.666666667 | AH186: 2.666666667 | AI186: 3.333333333 | AJ186: 2.333333333 | AK186: 0 | AL186: 0 | AM186: 0 | AN186: 0 | AO186: 1 | AP186: 0 | AQ186: 58 | AR186: 0 | AS186: 1 | AT186: 0 | AU186: 0 | AV186: 0 | AW186: 0 | AX186: 0 | AY186: 1 | AZ186: 0 | BA186: 0 | BB186: 0 | BC186: 34 | BD186: 24 | BE186: 24 | BF186: 0 | BG186: 1 | BH186: 10 | BI186: 0 | BJ186: 0 | BK186: 1 | BL186: 0 | BM186: 0 | BN186: 0 | BO186: 0 | BP186: 0 | BQ186: 0 | BR186: 1 | BS186: 0 | BT186: 0 | BU186: Psychology | BV186: social science | BW186: social sciences/psychology | BX186: 4 | BY186: 2 | BZ186: 4 | CA186: 3 | CB186: 4 | CC186: 3 | CD186: 4 | CE186: 3 | CF186: 3 | CG186: 3 | CH186: 5 | CI186: 3.5
A187: 186 | B187: 12 | C187: 0 | D187: 3 | E187: 2 | F187: 4 | G187: 7 | H187: 3 | I187: 1 | J187: 4 | K187: 1 | L187: 5 | M187: 3 | N187: 0 | O187: 1 | P187: 0 | Q187: 4 | R187: 4 | S187: 3 | T187: 3 | U187: 4 | V187: 4 | W187: 3 | X187: 3 | Y187: 4 | Z187: 4 | AA187: 3 | AB187: 3 | AC187: 4 | AD187: 3 | AE187: 3 | AF187: 3.333333333 | AG187: 4 | AH187: 3.333333333 | AI187: 3.333333333 | AJ187: 3.333333333 | AK187: 0 | AL187: 0 | AM187: 0 | AN187: 0 | AO187: 0 | AP187: 0 | AQ187: 40 | AR187: 1 | AS187: 1 | AT187: 0 | AU187: 0 | AV187: 0 | AW187: 0 | AX187: 0 | AY187: 1 | AZ187: 0 | BA187: 0 | BB187: 0 | BC187: 18 | BD187: 18 | BE187: 18 | BF187: 0 | BG187: 0 | BH187: 13 | BI187: 0 | BJ187: 1 | BK187: 0 | BL187: 0 | BM187: 0 | BN187: 1 | BO187: 2 | BP187: 1 | BQ187: 0 | BR187: 0 | BS187: 0 | BT187: 0 | BU187: Commerce | BV187: management | BW187: management | BX187: 4 | BY187: 1 | BZ187: 4 | CA187: 3 | CB187: 3 | CC187: 4 | CD187: 4 | CE187: 3 | CF187: 3 | CG187: 3 | CH187: 4 | CI187: 3.375
A188: 187 | B188: 4 | C188: 0 | D188: 10 | E188: 10 | F188: 0 | G188: 4 | H188: 36 | I188: 1 | J188: 0 | K188: 11 | L188: 6 | M188: 7.8 | N188: 1 | O188: 0 | P188: 0 | Q188: 4 | R188: 5 | S188: 4 | T188: 3 | U188: 1 | V188: 4 | W188: 5 | X188: 4 | Y188: 4 | Z188: 4 | AA188: 4 | AB188: 4 | AC188: 4 | AD188: 5 | AE188: 4 | AF188: 3.666666667 | AG188: 4.333333333 | AH188: 4.333333333 | AI188: 4 | AJ188: 3.333333333 | AK188: 0 | AL188: 0 | AM188: 0 | AN188: 0 | AO188: 1 | AP188: 0 | AQ188: 47 | AR188: 1 | AS188: 1 | AT188: 0 | AU188: 0 | AV188: 0 | AW188: 0 | AX188: 0 | AY188: 0 | AZ188: 0 | BA188: 1 | BB188: 0 | BC188: 16 | BD188: 16 | BE188: 16 | BF188: 0 | BG188: 1 | BH188: 13 | BI188: 0 | BJ188: 0 | BK188: 0 | BL188: 1 | BM188: 8 | BN188: 1 | BO188: 3 | BP188: 0 | BQ188: 0 | BR188: 0 | BS188: 1 | BT188: 0 | BU188: Education | BV188: social sciences | BW188: history | BX188: 4 | BY188: 2 | BZ188: 5 | CA188: 4 | CB188: 4 | CC188: 5 | CD188: 5 | CE188: 5 | CF188: 4 | CG188: 3 | CH188: 5 | CI188: 4.375
A189: 188 | B189: 18 | C189: 6 | D189: 42 | E189: 41 | F189: 3 | G189: 15 | H189: 150 | I189: 3 | J189: 0 | K189: 35 | L189: 2 | M189: 29.7 | N189: 1 | O189: 0 | P189: 0 | Q189: 4 | R189: 3 | S189: 3 | T189: 5 | U189: 2 | V189: 2 | W189: 3 | X189: 3 | Y189: 4 | Z189: 2 | AA189: 2 | AB189: 4 | AC189: 3 | AD189: 4 | AE189: 4 | AF189: 3.666666667 | AG189: 2.333333333 | AH189: 3 | AI189: 3.666666667 | AJ189: 3.333333333 | AK189: 0 | AL189: 0 | AM189: 0 | AN189: 0 | AO189: 0 | AP189: 0 | AQ189: 66 | AR189: 1 | AS189: 1 | AT189: 0 | AU189: 0 | AV189: 0 | AW189: 0 | AX189: 0 | AY189: 1 | AZ189: 0 | BA189: 0 | BB189: 0 | BC189: 44 | BD189: 43 | BE189: 12 | BF189: 0 | BG189: 1 | BH189: 8 | BI189: 0 | BJ189: 0 | BK189: 1 | BL189: 0 | BM189: 0 | BN189: 1 | BO189: 3 | BP189: 0 | BQ189: 0 | BR189: 0 | BS189: 1 | BT189: 0 | BU189: Anthropology | BV189: anthropology of performance | BW189: antrhropology | BX189: 4 | BY189: 1 | BZ189: 4 | CA189: 3 | CB189: 5 | CC189: 5 | CD189: 5 | CE189: 5 | CF189: 5 | CG189: 5 | CH189: 5 | CI189: 4.75
A190: 189 | B190: 6 | C190: 1 | D190: 8 | E190: 8 | F190: 0 | G190: 0 | H190: 7 | I190: 0 | J190: 0 | K190: 1 | L190: 0 | M190: 2.5 | N190: 1 | O190: 0 | P190: 0 | Q190: 5 | R190: 3 | S190: 3 | T190: 4 | U190: 4 | V190: 3 | W190: 4 | X190: 3 | Y190: 5 | Z190: 3 | AA190: 4 | AB190: 3 | AC190: 4 | AD190: 3 | AE190: 4 | AF190: 4.333333333 | AG190: 3 | AH190: 3.666666667 | AI190: 3.666666667 | AJ190: 3.666666667 | AK190: 0 | AL190: 0 | AM190: 0 | AN190: 0 | AO190: 0 | AP190: 0 | AQ190: 39 | AR190: 0 | AS190: 1 | AT190: 0 | AU190: 0 | AV190: 0 | AW190: 0 | AX190: 0 | AY190: 1 | AZ190: 0 | BA190: 0 | BB190: 0 | BC190: 10 | BD190: 10 | BE190: 3 | BF190: 0 | BG190: 1 | BH190: 9 | BI190: 9 | BJ190: 1 | BK190: 9 | BL190: 9 | BM190: 0 | BN190: 0 | BO190: 0 | BP190: 0 | BQ190: 0 | BR190: 1 | BS190: 0 | BT190: 0 | BU190: Physiology | BV190: medicine | BW190: reproduction | BX190: 3 | BY190: 2 | BZ190: 5 | CA190: 4 | CB190: 4 | CC190: 4 | CD190: 4 | CE190: 4 | CF190: 5 | CG190: 5 | CH190: 5 | CI190: 4.375
A191: 190 | B191: 10 | C191: 0 | D191: 1 | E191: 5 | F191: 0 | G191: 0 | H191: 0 | I191: 1 | J191: 0 | K191: 5 | L191: 0 | M191: 1.2 | N191: 1 | O191: 0 | P191: 0 | Q191: 4 | R191: 3 | S191: 1 | T191: 5 | U191: 2 | V191: 3 | W191: 2 | X191: 5 | Y191: 4 | Z191: 4 | AA191: 4 | AB191: 3 | AC191: 2 | AD191: 4 | AE191: 4 | AF191: 4.333333333 | AG191: 3.333333333 | AH191: 1.666666667 | AI191: 4 | AJ191: 3.333333333 | AK191: 0 | AL191: 0 | AM191: 0 | AN191: 0 | AO191: 1 | AP191: 0 | AQ191: 42 | AR191: 0 | AS191: 0 | AT191: 0 | AU191: 0 | AV191: 0 | AW191: 1 | AX191: 0 | AY191: 0 | AZ191: 0 | BA191: 0 | BB191: 1 | BC191: 10 | BD191: 15 | BE191: 1 | BF191: 0 | BG191: 1 | BH191: 8 | BI191: 0 | BJ191: 1 | BK191: 0 | BL191: 0 | BM191: 0 | BN191: 1 | BO191: 1 | BP191: 0 | BQ191: 0 | BR191: 0 | BS191: 1 | BT191: 0 | BU191: Anthropology | BV191: antrhrolopology | BW191: anthropology | BX191: 3 | BY191: 2 | BZ191: 4 | CA191: 5 | CB191: 5 | CC191: 5 | CD191: 4 | CE191: 5 | CF191: 5 | CG191: 4 | CH191: 5 | CI191: 4.75
A192: 191 | B192: 0 | C192: 0 | D192: 2 | E192: 2 | F192: 1 | G192: 5 | H192: 14 | I192: 0 | J192: 0 | K192: 0 | L192: 0 | M192: 2.4 | N192: 1 | O192: 0 | P192: 0 | Q192: 4 | R192: 5 | S192: 4 | T192: 2 | U192: 2 | V192: 4 | W192: 2 | X192: 4 | Y192: 4 | Z192: 3 | AA192: 1 | AB192: 3 | AC192: 2 | AD192: 3 | AE192: 3 | AF192: 2.333333333 | AG192: 4 | AH192: 2.666666667 | AI192: 3.666666667 | AJ192: 2.666666667 | AK192: 0 | AL192: 0 | AM192: 0 | AN192: 0 | AO192: 1 | AP192: 0 | AQ192: 36 | AR192: 1 | AS192: 1 | AT192: 0 | AU192: 0 | AV192: 0 | AW192: 0 | AX192: 0 | AY192: 0 | AZ192: 0 | BA192: 1 | BB192: 0 | BC192: 8 | BD192: 2 | BE192: 2 | BF192: 0 | BG192: 1 | BH192: 8 | BI192: 0 | BJ192: 1 | BK192: 0 | BL192: 0 | BM192: 3 | BN192: 1 | BO192: 0 | BP192: 0 | BQ192: 0 | BR192: 0 | BS192: 1 | BT192: 0 | BU192: Education | BV192: social science | BW192: sociology and education | BX192: 4 | BY192: 2 | BZ192: 4 | CA192: 2 | CB192: 2 | CC192: 2 | CD192: 2 | CE192: 3 | CF192: 5 | CG192: 3 | CH192: 4 | CI192: 2.875
A193: 192 | B193: 0 | C193: 0 | D193: 0 | E193: 1 | F193: 1 | G193: 1 | H193: 2 | I193: 0 | J193: 0 | K193: 0 | L193: 0 | M193: 0.5 | N193: 1 | O193: 0 | P193: 0 | Q193: 3 | R193: 3 | S193: 3 | T193: 2 | U193: 4 | V193: 3 | W193: 3 | X193: 2 | Y193: 4 | Z193: 3 | AA193: 3 | AB193: 2 | AC193: 2 | AD193: 2 | AE193: 2 | AF193: 2.666666667 | AG193: 3 | AH193: 2.666666667 | AI193: 2.666666667 | AJ193: 2.666666667 | AK193: 0 | AL193: 1 | AM193: 0 | AN193: 0 | AO193: 0 | AP193: 0 | AQ193: 28 | AR193: 1 | AS193: 1 | AT193: 0 | AU193: 0 | AV193: 0 | AW193: 0 | AX193: 0 | AY193: 1 | AZ193: 0 | BA193: 0 | BB193: 0 | BC193: 6 | BD193: 4 | BE193: 4 | BF193: 0 | BG193: 1 | BH193: 4 | BI193: 1 | BJ193: 0 | BK193: 0 | BL193: 0 | BM193: 0 | BN193: 1 | BO193: 0 | BP193: 1 | BQ193: 0 | BR193: 0 | BS193: 1 | BT193: 0 | BU193: Education | BV193: insurance | BW193: insurance/stats | BX193: 4 | BY193: 2 | BZ193: 3 | CA193: 3 | CB193: 3 | CC193: 4 | CD193: 2 | CE193: 5 | CF193: 4 | CG193: 3 | CH193: 3 | CI193: 3.375
A194: 193 | B194: 0 | C194: 0 | D194: 0 | E194: 0 | F194: 0 | G194: 0 | H194: 5 | I194: 0 | J194: 0 | K194: 0 | L194: 0 | M194: =AVERAGE(C194:L194) -> 0.5 | N194: 1 | O194: 0 | P194: 0 | Q194: 3 | R194: 2 | S194: 2 | T194: 2 | U194: 3 | V194: 2 | W194: 3 | X194: 3 | Y194: 3 | Z194: 2 | AA194: 2 | AB194: 3 | AC194: 3 | AD194: 4 | AE194: 4 | AF194: 2.333333333 | AG194: 2 | AH194: 2.666666667 | AI194: 3 | AJ194: 3.666666667 | AK194: 0 | AL194: 0 | AM194: 0 | AN194: 0 | AO194: 0 | AP194: 0 | AQ194: 42 | AR194: 0 | AS194: 1 | AT194: 0 | AU194: 0 | AV194: 0 | AW194: 0 | AX194: 0 | AY194: 1 | AZ194: 0 | BA194: 0 | BB194: 0 | BC194: 16 | BD194: 10 | BE194: 10 | BF194: 0 | BG194: 1 | BH194: 5 | BI194: 1 | BJ194: 0 | BK194: 0 | BL194: 0 | BM194: 6 | BN194: 1 | BO194: 2 | BP194: 0 | BQ194: 0 | BR194: 0 | BS194: 1 | BT194: 0 | BU194: Education | BV194: education | BW194: statistics | BX194: 5 | BY194: 4 | BZ194: 2 | CA194: 3 | CB194: 3 | CC194: 4 | CD194: 3 | CE194: 2 | CF194: 2 | CG194: 3 | CH194: 2 | CI194: =AVERAGE(CA194:CH194) -> 2.75
A195: 194 | B195: 10 | C195: 2 | D195: 15 | E195: 2 | F195: 2 | G195: 0 | H195: 2 | I195: 0 | J195: 0 | K195: 3 | L195: 1 | M195: 2.7 | N195: 1 | O195: 0 | P195: 0 | Q195: 2 | R195: 3 | S195: 3 | T195: 1 | U195: 2 | V195: 3 | W195: 2 | X195: 2 | Y195: 3 | Z195: 2 | AA195: 2 | AB195: 1 | AC195: 5 | AD195: 3 | AE195: 2 | AF195: 1.666666667 | AG195: 2.666666667 | AH195: 3.333333333 | AI195: 2 | AJ195: 2.333333333 | AK195: 0 | AL195: 0 | AM195: 0 | AN195: 0 | AO195: 0 | AP195: 0 | AQ195: 53 | AR195: 1 | AS195: 1 | AT195: 0 | AU195: 0 | AV195: 0 | AW195: 0 | AX195: 0 | AY195: 1 | AZ195: 0 | BA195: 0 | BB195: 0 | BC195: 25 | BD195: 15 | BE195: 16 | BF195: 0 | BG195: 1 | BH195: 9 | BI195: 0 | BJ195: 0 | BK195: 0 | BL195: 1 | BM195: 0 | BN195: 1 | BO195: 3 | BP195: 1 | BQ195: 0 | BR195: 0 | BS195: 0 | BT195: 0 | BU195: Law | BV195: international law | BW195: international law | BX195: 3 | BY195: 1 | BZ195: 5 | CA195: 5 | CB195: 5 | CC195: 5 | CD195: 5 | CE195: 5 | CF195: 5 | CG195: 5 | CH195: 5 | CI195: 5
A196: 195 | B196: 10 | C196: 0 | D196: 23 | E196: 2 | F196: 1 | G196: 0 | H196: 15 | I196: 0 | J196: 0 | K196: 0 | L196: 1 | M196: 4.2 | N196: 1 | O196: 0 | P196: 0 | Q196: 4 | R196: 4 | S196: 4 | T196: 2 | U196: 1 | V196: 4 | W196: 4 | X196: 3 | Y196: 4 | Z196: 4 | AA196: 4 | AB196: 4 | AC196: 3 | AD196: 3 | AE196: 4 | AF196: 3.333333333 | AG196: 4 | AH196: 3.666666667 | AI196: 3.666666667 | AJ196: 2.666666667 | AK196: 0 | AL196: 0 | AM196: 1 | AN196: 0 | AO196: 0 | AP196: 0 | AQ196: 53 | AR196: 0 | AS196: 1 | AT196: 0 | AU196: 0 | AV196: 0 | AW196: 0 | AX196: 0 | AY196: 1 | AZ196: 1 | BA196: 0 | BB196: 0 | BC196: 29 | BD196: 8 | BE196: 14 | BF196: 0 | BG196: 1 | BH196: 11 | BI196: 0 | BJ196: 1 | BK196: 0 | BL196: 0 | BM196: 0 | BN196: 1 | BO196: 2 | BP196: 1 | BQ196: 0 | BR196: 0 | BS196: 0 | BT196: 0 | BU196: Law | BV196: consumer law | BW196: consumer and contract law | BX196: 3 | BY196: 1 | BZ196: 5 | CA196: 3 | CB196: 2 | CC196: 2 | CD196: 1 | CE196: 1 | CF196: 5 | CG196: 2 | CH196: 1 | CI196: 2.125
A197: 196 | B197: 22 | C197: 0 | D197: 13 | E197: 2 | F197: 2 | G197: 2 | H197: 3 | I197: 2 | J197: 2 | K197: 2 | L197: 3 | M197: 3.1 | N197: 1 | O197: 0 | P197: 0 | Q197: 5 | R197: 4 | S197: 3 | T197: 1 | U197: 3 | V197: 4 | W197: 2 | X197: 4 | Y197: 4 | Z197: 3 | AA197: 3 | AB197: 4 | AC197: 3 | AD197: 5 | AE197: 5 | AF197: 3 | AG197: 3.666666667 | AH197: 2.666666667 | AI197: 4 | AJ197: 4.333333333 | AK197: 0 | AL197: 0 | AM197: 0 | AN197: 0 | AO197: 0 | AP197: 0 | AQ197: 41 | AR197: 1 | AS197: 1 | AT197: 0 | AU197: 0 | AV197: 0 | AW197: 0 | AX197: 0 | AY197: 1 | AZ197: 1 | BA197: 1 | BB197: 0 | BC197: 18 | BD197: 10 | BE197: 2 | BF197: 0 | BG197: 1 | BH197: 8 | BI197: 0 | BJ197: 0 | BK197: 0 | BL197: 1 | BM197: 0 | BN197: 1 | BO197: 4 | BP197: 1 | BQ197: 0 | BR197: 0 | BS197: 0 | BT197: 0 | BU197: Law | BV197: corporate law | BW197: commercial law | BX197: 5 | BY197: 3 | BZ197: 3 | CA197: 2 | CB197: 2 | CC197: 3 | CD197: 3 | CE197: 2 | CF197: 3 | CG197: 3 | CH197: 3 | CI197: 2.625
A198: 197 | B198: 1 | C198: 0 | D198: 0 | E198: 0 | F198: 0 | G198: 4 | H198: 4 | I198: 0 | J198: 20 | K198: 1 | L198: 20 | M198: 4.9 | N198: 1 | O198: 0 | P198: 0 | Q198: 3 | R198: 3 | S198: 2 | T198: 4 | U198: 2 | V198: 3 | W198: 2 | X198: 3 | Y198: 4 | Z198: 3 | AA198: 2 | AB198: 3 | AC198: 3 | AD198: 3 | AE198: 4 | AF198: 3 | AG198: 3 | AH198: 2.333333333 | AI198: 3.333333333 | AJ198: 3 | AK198: 1 | AL198: 0 | AM198: 0 | AN198: 0 | AO198: 0 | AP198: 0 | AQ198: 60 | AR198: 0 | AS198: 1 | AT198: 0 | AU198: 0 | AV198: 0 | AW198: 0 | AX198: 0 | AY198: 1 | AZ198: 0 | BA198: 0 | BB198: 0 | BC198: 35 | BD198: 8 | BE198: 6 | BF198: 0 | BG198: 1 | BH198: 6 | BI198: 1 | BJ198: 0 | BK198: 0 | BL198: 0 | BM198: 0 | BN198: 1 | BO198: 0 | BP198: 0 | BQ198: 0 | BR198: 0 | BS198: 1 | BT198: 0 | BU198: Literature & Languages | BV198: literacy | BW198: literacry | BX198: 4 | BY198: 1 | BZ198: 4 | CA198: 3 | CB198: 3 | CC198: 2 | CD198: 2 | CE198: 4 | CF198: 4 | CG198: 3 | CH198: 4 | CI198: 3.125
A199: 198 | B199: 1 | C199: 0 | D199: 0 | E199: 4 | F199: 1 | G199: 0 | H199: 18 | I199: 0 | J199: 0 | K199: 0 | L199: 4 | M199: 2.7 | N199: 1 | O199: 0 | P199: 0 | Q199: 4 | R199: 3 | S199: 3 | T199: 5 | U199: 5 | V199: 3 | W199: 4 | X199: 2 | Y199: 4 | Z199: 4 | AA199: 3 | AB199: 1 | AC199: 3 | AD199: 4 | AE199: 1 | AF199: 4 | AG199: 3.333333333 | AH199: 3.333333333 | AI199: 2.333333333 | AJ199: 3.333333333 | AK199: 0 | AL199: 0 | AM199: 1 | AN199: 0 | AO199: 0 | AP199: 0 | AQ199: 31 | AR199: 1 | AS199: 0 | AT199: 0 | AU199: 1 | AV199: 0 | AW199: 0 | AX199: 0 | AY199: 1 | AZ199: 0 | BA199: 0 | BB199: 0 | BC199: 5 | BD199: 8 | BE199: 1 | BF199: 1 | BG199: 1 | BH199: 8 | BI199: 0 | BJ199: 1 | BK199: 0 | BL199: 0 | BM199: 0 | BN199: 1 | BO199: 1 | BP199: 0 | BQ199: 0 | BR199: 0 | BS199: 1 | BT199: 0 | BU199: Literature & Languages | BV199: communications | BW199: communications | BX199: 4 | BY199: 3 | BZ199: 5 | CA199: 3 | CB199: 3 | CC199: 5 | CD199: 5 | CE199: 3 | CF199: 5 | CG199: 3 | CH199: 5 | CI199: 4
A200: 199 | B200: 0 | C200: 0 | D200: 2 | E200: 2 | F200: 0 | G200: 1 | H200: 3 | I200: 0 | J200: 0 | K200: 0 | L200: 0 | M200: 0.8 | N200: 1 | O200: 0 | P200: 0 | Q200: 2 | R200: 3 | S200: 4 | T200: 2 | U200: 3 | V200: 2 | W200: 2 | X200: 2 | Y200: 4 | Z200: 3 | AA200: 2 | AB200: 3 | AC200: 3 | AD200: 4 | AE200: 4 | AF200: 2 | AG200: 2.666666667 | AH200: 3 | AI200: 3 | AJ200: 3.666666667 | AK200: 0 | AL200: 0 | AM200: 0 | AN200: 0 | AO200: 1 | AP200: 0 | AQ200: 36 | AR200: 0 | AS200: 1 | AT200: 0 | AU200: 0 | AV200: 0 | AW200: 0 | AX200: 0 | AY200: 1 | AZ200: 0 | BA200: 0 | BB200: 0 | BC200: 8 | BD200: 3 | BE200: 7 | BF200: 0 | BG200: 1 | BH200: 10 | BI200: 0 | BJ200: 1 | BK200: 0 | BL200: 0 | BM200: 1 | BN200: 0 | BO200: 0 | BP200: 0 | BQ200: 0 | BR200: 0 | BS200: 1 | BT200: 0 | BU200: Literature & Languages | BV200: didactics, languages, literature | BW200: foreign languages | BX200: 4 | BY200: 2 | BZ200: 3 | CA200: 4 | CB200: 4 | CC200: 5 | CD200: 2 | CE200: 4 | CF200: 4 | CG200: 1 | CH200: 5 | CI200: 3.625
... 101 more rows
